Body Name,Body,Service Label,Service Code,CIPFA Detailed Expenditure Type,CIPFA Detailed Expenditure Code,Date,Transaction Number,Net Amount,Supplier Name,,,,,,,,,,#REF!
Nottinghamshire County Council,1111/1001,Surplus or Deficit from Trading Undertak,TRADING,Premises Related,BJA,04/02/2015,11-10001,645.03,Biffa Waste Services Ltd,,,,,,,,,,
Nottinghamshire County Council,1111/1001,Surplus or Deficit from Trading Undertak,TRADING,Premises Related,BJA,10/02/2015,11-10001,570.56,Biffa Waste Services Ltd,,,,,,,,,,
Nottinghamshire County Council,1111/1001,Surplus or Deficit from Trading Undertak,TRADING,Supplies & Services,DDA,03/02/2015,11-10001,716.3,Hamelin Paperbrands Ltd,,,,,,,,,,
Nottinghamshire County Council,1111/1001,Surplus or Deficit from Trading Undertak,TRADING,Supplies & Services,DDA,12/02/2015,11-10001,634.88,Hamelin Paperbrands Ltd,,,,,,,,,,
Nottinghamshire County Council,1111/1001,Surplus or Deficit from Trading Undertak,TRADING,Supplies & Services,DDA,20/02/2015,11-10001,1006.4,Hamelin Paperbrands Ltd,,,,,,,,,,
Nottinghamshire County Council,1111/1001,Surplus or Deficit from Trading Undertak,TRADING,Supplies & Services,DDA,27/02/2015,11-10001,1172.17,Hamelin Paperbrands Ltd,,,,,,,,,,
Nottinghamshire County Council,1111/1001,Surplus or Deficit from Trading Undertak,TRADING,Supplies & Services,DDA,20/02/2015,11-10001,507.6,Plastoreg Smidt Gmbh,,,,,,,,,,
Nottinghamshire County Council,1111/1001,Surplus or Deficit from Trading Undertak,TRADING,Supplies & Services,DDA,12/02/2015,11-10001,1280.5,Pirongs Ltd,,,,,,,,,,
Nottinghamshire County Council,1111/1001,Surplus or Deficit from Trading Undertak,TRADING,Supplies & Services,DDA,19/02/2015,11-10001,947.74,Henkel Loctite Adhesives Ltd,,,,,,,,,,
Nottinghamshire County Council,1111/1001,Surplus or Deficit from Trading Undertak,TRADING,Supplies & Services,DDA,20/02/2015,11-10001,2229.96,Henkel Loctite Adhesives Ltd,,,,,,,,,,
Nottinghamshire County Council,1111/1001,Surplus or Deficit from Trading Undertak,TRADING,Supplies & Services,DDA,20/02/2015,11-10001,1862.88,Henkel Loctite Adhesives Ltd,,,,,,,,,,
Nottinghamshire County Council,1111/1001,Surplus or Deficit from Trading Undertak,TRADING,Supplies & Services,DAA,20/02/2015,11-10001,615.8,Reliance Medical Ltd,,,,,,,,,,
Nottinghamshire County Council,1111/1001,Surplus or Deficit from Trading Undertak,TRADING,Supplies & Services,DAA,20/02/2015,11-10001,523.05,Synergy Health (Uk) Ltd,,,,,,,,,,
Nottinghamshire County Council,1111/1001,Surplus or Deficit from Trading Undertak,TRADING,Supplies & Services,DAA,12/02/2015,11-10001,964.7,Vivid Laminating Technologies Ltd,,,,,,,,,,
Nottinghamshire County Council,1111/1001,Surplus or Deficit from Trading Undertak,TRADING,Supplies & Services,DAA,26/02/2015,11-10001,1508.4,Vivid Laminating Technologies Ltd,,,,,,,,,,
Nottinghamshire County Council,1111/1001,Surplus or Deficit from Trading Undertak,TRADING,Supplies & Services,DAA,19/02/2015,11-10001,880,Premier Paper Group Ltd,,,,,,,,,,
Nottinghamshire County Council,1111/1001,Surplus or Deficit from Trading Undertak,TRADING,Supplies & Services,DAA,24/02/2015,11-10001,686.63,Heritage Envelopes Ltd,,,,,,,,,,
Nottinghamshire County Council,1111/1001,Surplus or Deficit from Trading Undertak,TRADING,Supplies & Services,DAA,24/02/2015,11-10001,638.4,Heritage Envelopes Ltd,,,,,,,,,,
Nottinghamshire County Council,1111/1001,Surplus or Deficit from Trading Undertak,TRADING,Supplies & Services,DAA,27/02/2015,11-10001,524.7,Heritage Envelopes Ltd,,,,,,,,,,
Nottinghamshire County Council,1111/1001,Surplus or Deficit from Trading Undertak,TRADING,Supplies & Services,DAA,26/02/2015,11-10001,1878.45,Omser (Scotland) Ltd,,,,,,,,,,
Nottinghamshire County Council,1111/1001,Surplus or Deficit from Trading Undertak,TRADING,Supplies & Services,DAA,12/02/2015,11-10001,860,Antalis Key Accounts,,,,,,,,,,
Nottinghamshire County Council,1111/1001,Surplus or Deficit from Trading Undertak,TRADING,Supplies & Services,DAA,12/02/2015,11-10001,731.95,Antalis Key Accounts,,,,,,,,,,
Nottinghamshire County Council,1111/1001,Surplus or Deficit from Trading Undertak,TRADING,Supplies & Services,DAA,12/02/2015,11-10001,1756.4,Antalis Key Accounts,,,,,,,,,,
Nottinghamshire County Council,1111/1001,Surplus or Deficit from Trading Undertak,TRADING,Supplies & Services,DAA,19/02/2015,11-10001,1187.5,Antalis Key Accounts,,,,,,,,,,
Nottinghamshire County Council,1111/1001,Surplus or Deficit from Trading Undertak,TRADING,Supplies & Services,DAA,24/02/2015,11-10001,1555.15,Antalis Key Accounts,,,,,,,,,,
Nottinghamshire County Council,1111/1001,Surplus or Deficit from Trading Undertak,TRADING,Supplies & Services,DAA,24/02/2015,11-10001,880.44,Xma Ltd,,,,,,,,,,
Nottinghamshire County Council,1111/1001,Surplus or Deficit from Trading Undertak,TRADING,Premises Related,BAA,12/02/2015,11-10001,661.95,Avery Uk,,,,,,,,,,
Nottinghamshire County Council,1111/1001,Surplus or Deficit from Trading Undertak,TRADING,Premises Related,BAA,12/02/2015,11-10001,557.1,Avery Uk,,,,,,,,,,
Nottinghamshire County Council,1111/1001,Surplus or Deficit from Trading Undertak,TRADING,Premises Related,BJA,24/02/2015,11-10001,787.6,Freudenberg Household Products Lp,,,,,,,,,,
Nottinghamshire County Council,1111/1001,Surplus or Deficit from Trading Undertak,TRADING,Premises Related,BJA,03/02/2015,11-10001,1632.54,Polystar Plastics Ltd,,,,,,,,,,
Nottinghamshire County Council,1111/1001,Surplus or Deficit from Trading Undertak,TRADING,Premises Related,BJA,19/02/2015,11-10001,1375.22,Kimberley Clark European Services Ltd,,,,,,,,,,
Nottinghamshire County Council,1111/1001,Surplus or Deficit from Trading Undertak,TRADING,Premises Related,BJA,20/02/2015,11-10001,1308.3,Kimberley Clark European Services Ltd,,,,,,,,,,
Nottinghamshire County Council,1111/1001,Surplus or Deficit from Trading Undertak,TRADING,Premises Related,BJA,24/02/2015,11-10001,1786,Kimberley Clark European Services Ltd,,,,,,,,,,
Nottinghamshire County Council,1111/1001,Surplus or Deficit from Trading Undertak,TRADING,Premises Related,BJA,27/02/2015,11-10001,3231.36,Peacock Salt,,,,,,,,,,
Nottinghamshire County Council,1111/1001,Surplus or Deficit from Trading Undertak,TRADING,Premises Related,BJA,27/02/2015,11-10001,561.79,Ecover (Uk) Ltd,,,,,,,,,,
Nottinghamshire County Council,1111/1001,Surplus or Deficit from Trading Undertak,TRADING,Premises Related,BJA,20/02/2015,11-10001,1090.8,Cromwell Polythene Ltd,,,,,,,,,,
Nottinghamshire County Council,1111/1001,Surplus or Deficit from Trading Undertak,TRADING,Premises Related,BJA,19/02/2015,11-10001,674.1,Chemex International Ltd,,,,,,,,,,
Nottinghamshire County Council,1111/1001,Surplus or Deficit from Trading Undertak,TRADING,Premises Related,BJA,27/02/2015,11-10001,718.24,Midland Wiper Manufacturing Co Ltd,,,,,,,,,,
Nottinghamshire County Council,1111/1001,Surplus or Deficit from Trading Undertak,TRADING,Premises Related,BJA,12/02/2015,11-10001,600.14,Evans Vanodine International Ltd,,,,,,,,,,
Nottinghamshire County Council,1111/1001,Surplus or Deficit from Trading Undertak,TRADING,Premises Related,BJA,03/02/2015,11-10001,2572.32,Johnson Diversey,,,,,,,,,,
Nottinghamshire County Council,1111/1001,Surplus or Deficit from Trading Undertak,TRADING,Premises Related,BJA,20/02/2015,11-10001,991.25,Johnson Diversey,,,,,,,,,,
Nottinghamshire County Council,1111/1001,Surplus or Deficit from Trading Undertak,TRADING,Premises Related,BJA,03/02/2015,11-10001,1738.46,Premiere Products,,,,,,,,,,
Nottinghamshire County Council,1111/1001,Surplus or Deficit from Trading Undertak,TRADING,Premises Related,BJA,19/02/2015,11-10001,2207.98,Premiere Products,,,,,,,,,,
Nottinghamshire County Council,1111/1001,Surplus or Deficit from Trading Undertak,TRADING,Premises Related,BJA,19/02/2015,11-10001,1144.55,Premiere Products,,,,,,,,,,
Nottinghamshire County Council,1111/1001,Surplus or Deficit from Trading Undertak,TRADING,Premises Related,BJA,26/02/2015,11-10001,522,Premiere Products,,,,,,,,,,
Nottinghamshire County Council,1111/1001,Surplus or Deficit from Trading Undertak,TRADING,Premises Related,BJA,19/02/2015,11-10001,803.5,Candor Services,,,,,,,,,,
Nottinghamshire County Council,1111/1001,Surplus or Deficit from Trading Undertak,TRADING,Premises Related,BJA,27/02/2015,11-10001,890,Candor Services,,,,,,,,,,
Nottinghamshire County Council,1111/1001,Surplus or Deficit from Trading Undertak,TRADING,Supplies & Services,DAA,24/02/2015,11-10001,505.56,Dudson Bros Ltd,,,,,,,,,,
Nottinghamshire County Council,1111/1001,Surplus or Deficit from Trading Undertak,TRADING,Supplies & Services,DAA,03/02/2015,11-10001,1329.7,W V Howe (Hardware) Ltd,,,,,,,,,,
Nottinghamshire County Council,1111/1001,Surplus or Deficit from Trading Undertak,TRADING,Supplies & Services,DAA,20/02/2015,11-10001,582.8,Catering Supplies (Wakefield) Ltd,,,,,,,,,,
Nottinghamshire County Council,1111/1001,Surplus or Deficit from Trading Undertak,TRADING,Supplies & Services,DAA,12/02/2015,11-10001,727.8,Sca Hygiene,,,,,,,,,,
Nottinghamshire County Council,1111/1001,Surplus or Deficit from Trading Undertak,TRADING,Supplies & Services,DAA,19/02/2015,11-10001,3547.52,Sca Hygiene,,,,,,,,,,
Nottinghamshire County Council,1111/1001,Surplus or Deficit from Trading Undertak,TRADING,Supplies & Services,DAA,04/02/2015,11-10001,825,Kay-Metzeler Ltd,,,,,,,,,,
Nottinghamshire County Council,1111/1001,Surplus or Deficit from Trading Undertak,TRADING,Supplies & Services,DAA,12/02/2015,11-10001,878.3,Dualit Ltd,,,,,,,,,,
Nottinghamshire County Council,1111/1001,Surplus or Deficit from Trading Undertak,TRADING,Supplies & Services,DAA,24/02/2015,11-10001,710,Stearn Electric Company Ltd,,,,,,,,,,
Nottinghamshire County Council,1111/1001,Surplus or Deficit from Trading Undertak,TRADING,Supplies & Services,DCA,03/02/2015,11-10001,819.92,Shermond,,,,,,,,,,
Nottinghamshire County Council,1111/1001,Surplus or Deficit from Trading Undertak,TRADING,Supplies & Services,DCA,20/02/2015,11-10001,1588.68,Shermond,,,,,,,,,,
Nottinghamshire County Council,1111/1001,Surplus or Deficit from Trading Undertak,TRADING,Supplies & Services,DCA,20/02/2015,11-10001,504.87,Shermond,,,,,,,,,,
Nottinghamshire County Council,1111/1001,Surplus or Deficit from Trading Undertak,TRADING,Supplies & Services,DCA,24/02/2015,11-10001,1736.68,Shermond,,,,,,,,,,
Nottinghamshire County Council,1111/1001,Surplus or Deficit from Trading Undertak,TRADING,Supplies & Services,DCA,26/02/2015,11-10001,1754.05,Shermond,,,,,,,,,,
Nottinghamshire County Council,1111/1001,Surplus or Deficit from Trading Undertak,TRADING,Supplies & Services,DKA,19/02/2015,11-10001,520,Gailarde Ltd,,,,,,,,,,
Nottinghamshire County Council,1111/1001,Surplus or Deficit from Trading Undertak,TRADING,Supplies & Services,DKA,20/02/2015,11-10001,532.6,Gailarde Ltd,,,,,,,,,,
Nottinghamshire County Council,1111/1001,Surplus or Deficit from Trading Undertak,TRADING,Supplies & Services,DKA,04/02/2015,11-10001,531.5,Bunzl Cleaning & Hygiene Supplies,,,,,,,,,,
Nottinghamshire County Council,1111/1001,Surplus or Deficit from Trading Undertak,TRADING,Supplies & Services,DKA,04/02/2015,11-10001,531.5,Bunzl Cleaning & Hygiene Supplies,,,,,,,,,,
Nottinghamshire County Council,1111/1001,Surplus or Deficit from Trading Undertak,TRADING,Supplies & Services,DKA,12/02/2015,11-10001,517.34,Bunzl Cleaning & Hygiene Supplies,,,,,,,,,,
Nottinghamshire County Council,1111/1001,Surplus or Deficit from Trading Undertak,TRADING,Supplies & Services,DKA,26/02/2015,11-10001,1839.98,Bunzl Cleaning & Hygiene Supplies,,,,,,,,,,
Nottinghamshire County Council,1111/1001,Surplus or Deficit from Trading Undertak,TRADING,Supplies & Services,DKA,26/02/2015,11-10001,876.2,Bunzl Cleaning & Hygiene Supplies,,,,,,,,,,
Nottinghamshire County Council,1111/1001,Surplus or Deficit from Trading Undertak,TRADING,Supplies & Services,DKA,26/02/2015,11-10001,788.1,Bunzl Cleaning & Hygiene Supplies,,,,,,,,,,
Nottinghamshire County Council,1111/1001,Surplus or Deficit from Trading Undertak,TRADING,Supplies & Services,DAA,19/02/2015,11-10001,743,R Scott & Sons Ltd,,,,,,,,,,
Nottinghamshire County Council,1111/1001,Surplus or Deficit from Trading Undertak,TRADING,Supplies & Services,DAA,20/02/2015,11-10001,3148.65,R Scott & Sons Ltd,,,,,,,,,,
Nottinghamshire County Council,1111/1001,Surplus or Deficit from Trading Undertak,TRADING,Supplies & Services,DAA,20/02/2015,11-10001,2908.8,R Scott & Sons Ltd,,,,,,,,,,
Nottinghamshire County Council,1111/1001,Surplus or Deficit from Trading Undertak,TRADING,Supplies & Services,DAA,27/02/2015,11-10001,1358.6,R Scott & Sons Ltd,,,,,,,,,,
Nottinghamshire County Council,1111/1001,Surplus or Deficit from Trading Undertak,TRADING,Supplies & Services,DAA,24/02/2015,11-10001,614.32,Office Innovations,,,,,,,,,,
Nottinghamshire County Council,1111/1001,Surplus or Deficit from Trading Undertak,TRADING,Supplies & Services,DAA,24/02/2015,11-10001,726.6,Office Innovations,,,,,,,,,,
Nottinghamshire County Council,1111/1001,Surplus or Deficit from Trading Undertak,TRADING,Supplies & Services,DAA,27/02/2015,11-10001,595.36,Office Innovations,,,,,,,,,,
Nottinghamshire County Council,1111/1001,Surplus or Deficit from Trading Undertak,TRADING,Supplies & Services,DAA,19/02/2015,11-10001,822,Principal Furniture,,,,,,,,,,
Nottinghamshire County Council,1111/1001,Surplus or Deficit from Trading Undertak,TRADING,Supplies & Services,DAA,20/02/2015,11-10001,505.62,Addis Housewares Ltd,,,,,,,,,,
Nottinghamshire County Council,1111/1001,Surplus or Deficit from Trading Undertak,TRADING,Supplies & Services,DAA,19/02/2015,11-10001,648.9,Denis Rawlins Ltd,,,,,,,,,,
Nottinghamshire County Council,1111/1001,Surplus or Deficit from Trading Undertak,TRADING,Supplies & Services,DAA,19/02/2015,11-10001,514.66,Gopak Ltd,,,,,,,,,,
Nottinghamshire County Council,1111/1001,Surplus or Deficit from Trading Undertak,TRADING,Supplies & Services,DAA,12/02/2015,11-10001,605.04,Gratnells Ltd,,,,,,,,,,
Nottinghamshire County Council,1111/1001,Surplus or Deficit from Trading Undertak,TRADING,Supplies & Services,DAA,27/02/2015,11-10001,602.4,Gratnells Ltd,,,,,,,,,,
Nottinghamshire County Council,1111/1001,Surplus or Deficit from Trading Undertak,TRADING,Supplies & Services,DAA,03/02/2015,11-10001,1701.3,Wybone Ltd,,,,,,,,,,
Nottinghamshire County Council,1111/1001,Surplus or Deficit from Trading Undertak,TRADING,Supplies & Services,DAA,20/02/2015,11-10001,2199.12,Kent County Supplies,,,,,,,,,,
Nottinghamshire County Council,1111/1001,Surplus or Deficit from Trading Undertak,TRADING,Supplies & Services,DAA,20/02/2015,11-10001,580.72,Kent County Supplies,,,,,,,,,,
Nottinghamshire County Council,1111/1001,Surplus or Deficit from Trading Undertak,TRADING,Supplies & Services,DAA,26/02/2015,11-10001,2581.92,Kent County Supplies,,,,,,,,,,
Nottinghamshire County Council,1111/1001,Surplus or Deficit from Trading Undertak,TRADING,Supplies & Services,DAA,12/02/2015,11-10001,1327.4,Newell Rubbermaid,,,,,,,,,,
Nottinghamshire County Council,1111/1001,Surplus or Deficit from Trading Undertak,TRADING,Supplies & Services,DAA,20/02/2015,11-10001,1453.72,Newell Rubbermaid,,,,,,,,,,
Nottinghamshire County Council,1111/1001,Surplus or Deficit from Trading Undertak,TRADING,Supplies & Services,DAA,20/02/2015,11-10001,724.13,Newell Rubbermaid,,,,,,,,,,
Nottinghamshire County Council,1111/1001,Surplus or Deficit from Trading Undertak,TRADING,Supplies & Services,DAA,24/02/2015,11-10001,1138.87,Newell Rubbermaid,,,,,,,,,,
Nottinghamshire County Council,1111/1001,Surplus or Deficit from Trading Undertak,TRADING,Supplies & Services,DAA,27/02/2015,11-10001,959.95,Newell Rubbermaid,,,,,,,,,,
Nottinghamshire County Council,1111/1001,Surplus or Deficit from Trading Undertak,TRADING,Supplies & Services,DAA,19/02/2015,11-10001,644.28,Acco-Rexel Ltd,,,,,,,,,,
Nottinghamshire County Council,1111/1001,Surplus or Deficit from Trading Undertak,TRADING,Supplies & Services,DAA,27/02/2015,11-10001,538.5,Acco-Rexel Ltd,,,,,,,,,,
Nottinghamshire County Council,1111/1001,Surplus or Deficit from Trading Undertak,TRADING,Supplies & Services,DAA,26/02/2015,11-10001,764.1,R.H.Ritchings Ltd,,,,,,,,,,
Nottinghamshire County Council,1111/1001,Surplus or Deficit from Trading Undertak,TRADING,Supplies & Services,DAA,20/02/2015,11-10001,2141.33,Staedtler (Uk) Ltd,,,,,,,,,,
Nottinghamshire County Council,1111/1001,Surplus or Deficit from Trading Undertak,TRADING,Supplies & Services,DAA,20/02/2015,11-10001,594.85,Staedtler (Uk) Ltd,,,,,,,,,,
Nottinghamshire County Council,1111/1001,Surplus or Deficit from Trading Undertak,TRADING,Supplies & Services,DAA,24/02/2015,11-10001,867.13,Staedtler (Uk) Ltd,,,,,,,,,,
Nottinghamshire County Council,1111/1001,Surplus or Deficit from Trading Undertak,TRADING,Supplies & Services,DAA,26/02/2015,11-10001,1310.4,Staedtler (Uk) Ltd,,,,,,,,,,
Nottinghamshire County Council,1111/1001,Surplus or Deficit from Trading Undertak,TRADING,Supplies & Services,DAA,20/02/2015,11-10001,789.84,Bic U.K. Ltd,,,,,,,,,,
Nottinghamshire County Council,1111/1001,Surplus or Deficit from Trading Undertak,TRADING,Supplies & Services,DAA,03/02/2015,11-10001,664.48,Rapesco Office Products Plc,,,,,,,,,,
Nottinghamshire County Council,1111/1001,Surplus or Deficit from Trading Undertak,TRADING,Supplies & Services,DAA,12/02/2015,11-10001,692.8,Rapesco Office Products Plc,,,,,,,,,,
Nottinghamshire County Council,1111/1001,Surplus or Deficit from Trading Undertak,TRADING,Supplies & Services,DAA,12/02/2015,11-10001,577.57,Allen Glenold Ltd,,,,,,,,,,
Nottinghamshire County Council,1111/1001,Surplus or Deficit from Trading Undertak,TRADING,Supplies & Services,DAA,26/02/2015,11-10001,602.48,Allen Glenold Ltd,,,,,,,,,,
Nottinghamshire County Council,1111/1001,Surplus or Deficit from Trading Undertak,TRADING,Supplies & Services,DAA,26/02/2015,11-10001,900.55,Allen Glenold Ltd,,,,,,,,,,
Nottinghamshire County Council,1111/1001,Surplus or Deficit from Trading Undertak,TRADING,Supplies & Services,DAA,03/02/2015,11-10001,1995.22,Higher Kings Mill Ltd,,,,,,,,,,
Nottinghamshire County Council,1111/1001,Surplus or Deficit from Trading Undertak,TRADING,Supplies & Services,DAA,12/02/2015,11-10001,633.74,Slater Harrison & Co Ltd,,,,,,,,,,
Nottinghamshire County Council,1111/1001,Surplus or Deficit from Trading Undertak,TRADING,Supplies & Services,DAA,20/02/2015,11-10001,1086.52,Slater Harrison & Co Ltd,,,,,,,,,,
Nottinghamshire County Council,1111/1001,Surplus or Deficit from Trading Undertak,TRADING,Supplies & Services,DAA,27/02/2015,11-10001,749.06,Slater Harrison & Co Ltd,,,,,,,,,,
Nottinghamshire County Council,1111/1001,Surplus or Deficit from Trading Undertak,TRADING,Supplies & Services,DAA,27/02/2015,11-10001,1101.62,Slater Harrison & Co Ltd,,,,,,,,,,
Nottinghamshire County Council,1111/1001,Surplus or Deficit from Trading Undertak,TRADING,Supplies & Services,DAA,12/02/2015,11-10001,700.64,Creativity International Ltd,,,,,,,,,,
Nottinghamshire County Council,1111/1001,Surplus or Deficit from Trading Undertak,TRADING,Supplies & Services,DAA,12/02/2015,11-10001,1062,Spaceright Europe Ltd,,,,,,,,,,
Nottinghamshire County Council,1111/1001,Surplus or Deficit from Trading Undertak,TRADING,Supplies & Services,DAA,24/02/2015,11-10001,1076.4,William Sinclair Horticulture Ltd,,,,,,,,,,
Nottinghamshire County Council,1111/1001,Surplus or Deficit from Trading Undertak,TRADING,Supplies & Services,DAA,19/02/2015,11-10001,565.82,Brian Clegg (Educational Products) Ltd,,,,,,,,,,
Nottinghamshire County Council,1111/1001,Surplus or Deficit from Trading Undertak,TRADING,Supplies & Services,DAA,19/02/2015,11-10001,1037.92,Brian Clegg (Educational Products) Ltd,,,,,,,,,,
Nottinghamshire County Council,1111/1001,Surplus or Deficit from Trading Undertak,TRADING,Supplies & Services,DAA,12/02/2015,11-10001,568.15,Profile Education Ltd,,,,,,,,,,
Nottinghamshire County Council,1111/1001,Surplus or Deficit from Trading Undertak,TRADING,Supplies & Services,DAA,20/02/2015,11-10001,667.41,Profile Education Ltd,,,,,,,,,,
Nottinghamshire County Council,1111/1001,Surplus or Deficit from Trading Undertak,TRADING,Supplies & Services,DAA,19/02/2015,11-10001,943.04,Monarch Computer Furniture,,,,,,,,,,
Nottinghamshire County Council,1111/1001,Surplus or Deficit from Trading Undertak,TRADING,Supplies & Services,DAA,24/02/2015,11-10001,788.16,Monarch Computer Furniture,,,,,,,,,,
Nottinghamshire County Council,1111/1001,Surplus or Deficit from Trading Undertak,TRADING,Supplies & Services,DAA,24/02/2015,11-10001,1178.1,Monarch Computer Furniture,,,,,,,,,,
Nottinghamshire County Council,1111/1001,Surplus or Deficit from Trading Undertak,TRADING,Premises Related,BBA,19/02/2015,11-10001,750,Mansfield Sand Company Ltd,,,,,,,,,,
Nottinghamshire County Council,1111/1001,Surplus or Deficit from Trading Undertak,TRADING,Supplies & Services,DFA,27/02/2015,11-10001,511.41,Royal Mail Group Ltd,,,,,,,,,,
Nottinghamshire County Council,1111/1001,Children and Young People,CYP,Premises Related,BCA,20/02/2015,11-12001,761.45,British Gas Business,,,,,,,,,,
Nottinghamshire County Council,1111/1001,Children and Young People,CYP,Premises Related,BDA,04/02/2015,11-10001,5747.54,Making It! Enterprises Ltd,,,,,,,,,,
Nottinghamshire County Council,1111/1001,Children and Young People,CYP,Premises Related,BDA,04/02/2015,11-10002,1099.99,Nottingham City Council,,,,,,,,,,
Nottinghamshire County Council,1111/1001,Children and Young People,CYP,Premises Related,BDA,04/02/2015,11-10003,4674.76,Making It! Enterprises Ltd,,,,,,,,,,
Nottinghamshire County Council,1111/1001,Children and Young People,CYP,Premises Related,BDA,04/02/2015,11-10006,606.67,J Sedoo t/a Sedoo Investments,,,,,,,,,,
Nottinghamshire County Council,1111/1001,Children and Young People,CYP,Premises Related,BDA,04/02/2015,11-10007,606.67,J Sedoo t/a Sedoo Investments,,,,,,,,,,
Nottinghamshire County Council,1111/1001,Children and Young People,CYP,Premises Related,BDA,04/02/2015,11-10008,606.67,J Sedoo t/a Sedoo Investments,,,,,,,,,,
Nottinghamshire County Council,1111/1001,Children and Young People,CYP,Premises Related,BDA,11/02/2015,11-10009,2975.37,Making It! Enterprises Ltd,,,,,,,,,,
Nottinghamshire County Council,1111/1001,Children and Young People,CYP,Premises Related,BDA,13/02/2015,11-10010,11500,[Redacted],,,,,,,,,,
Nottinghamshire County Council,1111/1001,Children and Young People,CYP,Transport Related,CCA,04/02/2015,11-10470,2723.65,Taxicover Uk Ltd,,,,,,,,,,
Nottinghamshire County Council,1111/1001,Children and Young People,CYP,Transport Related,CCA,04/02/2015,11-10471,3622.92,Taxicover Uk Ltd,,,,,,,,,,
Nottinghamshire County Council,1111/1001,Children and Young People,CYP,Transport Related,CCA,04/02/2015,11-10472,2803.83,Taxicover Uk Ltd,,,,,,,,,,
Nottinghamshire County Council,1111/1001,Children and Young People,CYP,Transport Related,CCA,04/02/2015,11-10474,2701.23,Taxicover Uk Ltd,,,,,,,,,,
Nottinghamshire County Council,1111/1001,Children and Young People,CYP,Transport Related,CCA,04/02/2015,11-10475,2713.2,Taxicover Uk Ltd,,,,,,,,,,
Nottinghamshire County Council,1111/1001,Children and Young People,CYP,Transport Related,CCA,04/02/2015,11-10476,3014.35,Taxicover Uk Ltd,,,,,,,,,,
Nottinghamshire County Council,1111/1001,Children and Young People,CYP,Transport Related,CCA,04/02/2015,11-10477,2775.52,Taxicover Uk Ltd,,,,,,,,,,
Nottinghamshire County Council,1111/1001,Children and Young People,CYP,Transport Related,CCA,04/02/2015,11-10478,2849.05,Taxicover Uk Ltd,,,,,,,,,,
Nottinghamshire County Council,1111/1001,Children and Young People,CYP,Transport Related,CCA,04/02/2015,11-10479,1224,Southside Cars,,,,,,,,,,
Nottinghamshire County Council,1111/1001,Children and Young People,CYP,Transport Related,CCA,04/02/2015,11-10480,1505.2,Southside Cars,,,,,,,,,,
Nottinghamshire County Council,1111/1001,Children and Young People,CYP,Transport Related,CCA,04/02/2015,11-10481,1152.4,Southside Cars,,,,,,,,,,
Nottinghamshire County Council,1111/1001,Children and Young People,CYP,Transport Related,CCA,04/02/2015,11-10482,1402.58,Southside Cars,,,,,,,,,,
Nottinghamshire County Council,1111/1001,Children and Young People,CYP,Transport Related,CCA,04/02/2015,11-10483,1883.7,Southside Cars,,,,,,,,,,
Nottinghamshire County Council,1111/1001,Children and Young People,CYP,Transport Related,CCA,04/02/2015,11-10484,1148.4,Southside Cars,,,,,,,,,,
Nottinghamshire County Council,1111/1001,Children and Young People,CYP,Transport Related,CCA,04/02/2015,11-10485,1730.4,Southside Cars,,,,,,,,,,
Nottinghamshire County Council,1111/1001,Children and Young People,CYP,Transport Related,CCA,04/02/2015,11-10486,2166.05,Southside Cars,,,,,,,,,,
Nottinghamshire County Council,1111/1001,Children and Young People,CYP,Transport Related,CCA,04/02/2015,11-10487,970.8,Southside Cars,,,,,,,,,,
Nottinghamshire County Council,1111/1001,Children and Young People,CYP,Transport Related,CCA,04/02/2015,11-10488,1918,Southside Cars,,,,,,,,,,
Nottinghamshire County Council,1111/1001,Children and Young People,CYP,Transport Related,CCA,04/02/2015,11-10490,2205.24,All Wayz Travel,,,,,,,,,,
Nottinghamshire County Council,1111/1001,Children and Young People,CYP,Transport Related,CCA,04/02/2015,11-10494,2094,Arrow Specialised Transport Ltd,,,,,,,,,,
Nottinghamshire County Council,1111/1001,Children and Young People,CYP,Transport Related,CCA,04/02/2015,11-10495,1606.5,Arrow Specialised Transport Ltd,,,,,,,,,,
Nottinghamshire County Council,1111/1001,Children and Young People,CYP,Transport Related,CCA,04/02/2015,11-10496,2320,Arrow Specialised Transport Ltd,,,,,,,,,,
Nottinghamshire County Council,1111/1001,Children and Young People,CYP,Transport Related,CCA,04/02/2015,11-10497,2046,Arrow Specialised Transport Ltd,,,,,,,,,,
Nottinghamshire County Council,1111/1001,Children and Young People,CYP,Transport Related,CCA,04/02/2015,11-10498,2130.4,Arrow Specialised Transport Ltd,,,,,,,,,,
Nottinghamshire County Council,1111/1001,Children and Young People,CYP,Transport Related,CCA,04/02/2015,11-10499,1974,Arrow Specialised Transport Ltd,,,,,,,,,,
Nottinghamshire County Council,1111/1001,Children and Young People,CYP,Transport Related,CCA,04/02/2015,11-10500,2554.6,Arrow Specialised Transport Ltd,,,,,,,,,,
Nottinghamshire County Council,1111/1001,Children and Young People,CYP,Transport Related,CCA,04/02/2015,11-10501,2900,Arrow Specialised Transport Ltd,,,,,,,,,,
Nottinghamshire County Council,1111/1001,Children and Young People,CYP,Transport Related,CCA,04/02/2015,11-10502,1693,Arrow Specialised Transport Ltd,,,,,,,,,,
Nottinghamshire County Council,1111/1001,Children and Young People,CYP,Transport Related,CCA,04/02/2015,11-10503,1989.87,Arrow Specialised Transport Ltd,,,,,,,,,,
Nottinghamshire County Council,1111/1001,Children and Young People,CYP,Transport Related,CCA,04/02/2015,11-10504,2687.4,Arrow Specialised Transport Ltd,,,,,,,,,,
Nottinghamshire County Council,1111/1001,Children and Young People,CYP,Transport Related,CCA,04/02/2015,11-10505,2488.8,Arrow Specialised Transport Ltd,,,,,,,,,,
Nottinghamshire County Council,1111/1001,Children and Young People,CYP,Transport Related,CCA,04/02/2015,11-10506,1488,Arrow Specialised Transport Ltd,,,,,,,,,,
Nottinghamshire County Council,1111/1001,Children and Young People,CYP,Transport Related,CCA,04/02/2015,11-10507,3298.6,Arrow Specialised Transport Ltd,,,,,,,,,,
Nottinghamshire County Council,1111/1001,Children and Young People,CYP,Transport Related,CCA,04/02/2015,11-10508,2860,Arrow Specialised Transport Ltd,,,,,,,,,,
Nottinghamshire County Council,1111/1001,Children and Young People,CYP,Transport Related,CCA,04/02/2015,11-10509,2265.56,Arrow Specialised Transport Ltd,,,,,,,,,,
Nottinghamshire County Council,1111/1001,Children and Young People,CYP,Transport Related,CCA,04/02/2015,11-10510,2326.6,Arrow Specialised Transport Ltd,,,,,,,,,,
Nottinghamshire County Council,1111/1001,Children and Young People,CYP,Transport Related,CCA,04/02/2015,11-10511,1923.2,Arrow Specialised Transport Ltd,,,,,,,,,,
Nottinghamshire County Council,1111/1001,Children and Young People,CYP,Transport Related,CCA,04/02/2015,11-10512,2314,Arrow Specialised Transport Ltd,,,,,,,,,,
Nottinghamshire County Council,1111/1001,Children and Young People,CYP,Transport Related,CCA,04/02/2015,11-10513,1908,Arrow Specialised Transport Ltd,,,,,,,,,,
Nottinghamshire County Council,1111/1001,Children and Young People,CYP,Transport Related,CCA,04/02/2015,11-10514,1003.4,Arrow Specialised Transport Ltd,,,,,,,,,,
Nottinghamshire County Council,1111/1001,Children and Young People,CYP,Transport Related,CCA,04/02/2015,11-10515,2786,Arrow Specialised Transport Ltd,,,,,,,,,,
Nottinghamshire County Council,1111/1001,Children and Young People,CYP,Transport Related,CCA,04/02/2015,11-10516,3188.2,Arrow Specialised Transport Ltd,,,,,,,,,,
Nottinghamshire County Council,1111/1001,Children and Young People,CYP,Transport Related,CCA,04/02/2015,11-10517,1340.8,Arrow Specialised Transport Ltd,,,,,,,,,,
Nottinghamshire County Council,1111/1001,Children and Young People,CYP,Transport Related,CCA,04/02/2015,11-10518,2142,Arrow Specialised Transport Ltd,,,,,,,,,,
Nottinghamshire County Council,1111/1001,Children and Young People,CYP,Transport Related,CCA,04/02/2015,11-10519,1895.6,Arrow Specialised Transport Ltd,,,,,,,,,,
Nottinghamshire County Council,1111/1001,Children and Young People,CYP,Transport Related,CCA,04/02/2015,11-10520,2364.4,Arrow Specialised Transport Ltd,,,,,,,,,,
Nottinghamshire County Council,1111/1001,Children and Young People,CYP,Transport Related,CCA,04/02/2015,11-10521,2271.4,Arrow Specialised Transport Ltd,,,,,,,,,,
Nottinghamshire County Council,1111/1001,Children and Young People,CYP,Transport Related,CCA,04/02/2015,11-10522,1785.8,Arrow Specialised Transport Ltd,,,,,,,,,,
Nottinghamshire County Council,1111/1001,Children and Young People,CYP,Transport Related,CCA,04/02/2015,11-10523,2190.2,Arrow Specialised Transport Ltd,,,,,,,,,,
Nottinghamshire County Council,1111/1001,Children and Young People,CYP,Transport Related,CCA,04/02/2015,11-10524,2050.2,Arrow Specialised Transport Ltd,,,,,,,,,,
Nottinghamshire County Council,1111/1001,Children and Young People,CYP,Transport Related,CCA,04/02/2015,11-10525,1978.8,Arrow Specialised Transport Ltd,,,,,,,,,,
Nottinghamshire County Council,1111/1001,Children and Young People,CYP,Transport Related,CCA,04/02/2015,11-10526,2199.82,Arrow Specialised Transport Ltd,,,,,,,,,,
Nottinghamshire County Council,1111/1001,Children and Young People,CYP,Transport Related,CCA,04/02/2015,11-10527,1896.58,Arrow Specialised Transport Ltd,,,,,,,,,,
Nottinghamshire County Council,1111/1001,Children and Young People,CYP,Transport Related,CCA,04/02/2015,11-10528,1026,Arrow Specialised Transport Ltd,,,,,,,,,,
Nottinghamshire County Council,1111/1001,Children and Young People,CYP,Transport Related,CCA,04/02/2015,11-10530,1782.4,Arrow Specialised Transport Ltd,,,,,,,,,,
Nottinghamshire County Council,1111/1001,Children and Young People,CYP,Transport Related,CCA,04/02/2015,11-10532,2373.2,Arrow Specialised Transport Ltd,,,,,,,,,,
Nottinghamshire County Council,1111/1001,Children and Young People,CYP,Transport Related,CCA,04/02/2015,11-10533,1079.1,Arrow Specialised Transport Ltd,,,,,,,,,,
Nottinghamshire County Council,1111/1001,Children and Young People,CYP,Transport Related,CCA,04/02/2015,11-10535,3360,Arrow Specialised Transport Ltd,,,,,,,,,,
Nottinghamshire County Council,1111/1001,Children and Young People,CYP,Transport Related,CCA,04/02/2015,11-10536,2781.6,Arrow Specialised Transport Ltd,,,,,,,,,,
Nottinghamshire County Council,1111/1001,Children and Young People,CYP,Transport Related,CCA,04/02/2015,11-10537,2314.72,Arrow Specialised Transport Ltd,,,,,,,,,,
Nottinghamshire County Council,1111/1001,Children and Young People,CYP,Transport Related,CCA,04/02/2015,11-10539,1030,Arrow Specialised Transport Ltd,,,,,,,,,,
Nottinghamshire County Council,1111/1001,Children and Young People,CYP,Transport Related,CCA,04/02/2015,11-10541,3426.2,Arrow Specialised Transport Ltd,,,,,,,,,,
Nottinghamshire County Council,1111/1001,Children and Young People,CYP,Transport Related,CCA,04/02/2015,11-10542,1212.4,Arrow Specialised Transport Ltd,,,,,,,,,,
Nottinghamshire County Council,1111/1001,Children and Young People,CYP,Transport Related,CCA,04/02/2015,11-10544,1483.4,Arrow Specialised Transport Ltd,,,,,,,,,,
Nottinghamshire County Council,1111/1001,Children and Young People,CYP,Transport Related,CCA,04/02/2015,11-10545,2641,Arrow Specialised Transport Ltd,,,,,,,,,,
Nottinghamshire County Council,1111/1001,Children and Young People,CYP,Transport Related,CCA,04/02/2015,11-10546,3029.8,Arrow Specialised Transport Ltd,,,,,,,,,,
Nottinghamshire County Council,1111/1001,Children and Young People,CYP,Transport Related,CCA,04/02/2015,11-10547,1462.6,Arrow Specialised Transport Ltd,,,,,,,,,,
Nottinghamshire County Council,1111/1001,Children and Young People,CYP,Transport Related,CCA,04/02/2015,11-10548,2500,Arrow Specialised Transport Ltd,,,,,,,,,,
Nottinghamshire County Council,1111/1001,Children and Young People,CYP,Transport Related,CCA,04/02/2015,11-10549,1780,Arrow Specialised Transport Ltd,,,,,,,,,,
Nottinghamshire County Council,1111/1001,Children and Young People,CYP,Transport Related,CCA,04/02/2015,11-10550,1110,Arrow Specialised Transport Ltd,,,,,,,,,,
Nottinghamshire County Council,1111/1001,Children and Young People,CYP,Transport Related,CCA,04/02/2015,11-10551,1960,Arrow Specialised Transport Ltd,,,,,,,,,,
Nottinghamshire County Council,1111/1001,Children and Young People,CYP,Transport Related,CCA,04/02/2015,11-10552,2560,Arrow Specialised Transport Ltd,,,,,,,,,,
Nottinghamshire County Council,1111/1001,Children and Young People,CYP,Transport Related,CCA,04/02/2015,11-10553,1669,Arrow Specialised Transport Ltd,,,,,,,,,,
Nottinghamshire County Council,1111/1001,Children and Young People,CYP,Transport Related,CCA,04/02/2015,11-10554,746.9,Arrow Specialised Transport Ltd,,,,,,,,,,
Nottinghamshire County Council,1111/1001,Children and Young People,CYP,Transport Related,CCA,04/02/2015,11-10556,1751.4,Arrow Specialised Transport Ltd,,,,,,,,,,
Nottinghamshire County Council,1111/1001,Children and Young People,CYP,Transport Related,CCA,04/02/2015,11-10557,1566,Arrow Specialised Transport Ltd,,,,,,,,,,
Nottinghamshire County Council,1111/1001,Children and Young People,CYP,Transport Related,CCA,04/02/2015,11-10558,1949.8,Arrow Specialised Transport Ltd,,,,,,,,,,
Nottinghamshire County Council,1111/1001,Children and Young People,CYP,Transport Related,CCA,04/02/2015,11-10559,1415.9,Arrow Specialised Transport Ltd,,,,,,,,,,
Nottinghamshire County Council,1111/1001,Children and Young People,CYP,Transport Related,CCA,04/02/2015,11-10561,2016,Arrow Specialised Transport Ltd,,,,,,,,,,
Nottinghamshire County Council,1111/1001,Children and Young People,CYP,Transport Related,CCA,04/02/2015,11-10562,2225.2,Arrow Specialised Transport Ltd,,,,,,,,,,
Nottinghamshire County Council,1111/1001,Children and Young People,CYP,Transport Related,CCA,04/02/2015,11-10563,2377.2,Arrow Specialised Transport Ltd,,,,,,,,,,
Nottinghamshire County Council,1111/1001,Children and Young People,CYP,Transport Related,CCA,04/02/2015,11-10564,2099.4,Arrow Specialised Transport Ltd,,,,,,,,,,
Nottinghamshire County Council,1111/1001,Children and Young People,CYP,Transport Related,CCA,04/02/2015,11-10565,2315.4,Arrow Specialised Transport Ltd,,,,,,,,,,
Nottinghamshire County Council,1111/1001,Children and Young People,CYP,Transport Related,CCA,04/02/2015,11-10566,2611.2,Arrow Specialised Transport Ltd,,,,,,,,,,
Nottinghamshire County Council,1111/1001,Children and Young People,CYP,Transport Related,CCA,04/02/2015,11-10567,2960,Arrow Specialised Transport Ltd,,,,,,,,,,
Nottinghamshire County Council,1111/1001,Children and Young People,CYP,Transport Related,CCA,04/02/2015,11-10568,1833.8,Arrow Specialised Transport Ltd,,,,,,,,,,
Nottinghamshire County Council,1111/1001,Children and Young People,CYP,Transport Related,CCA,04/02/2015,11-10570,570,Mct Uk Ltd,,,,,,,,,,
Nottinghamshire County Council,1111/1001,Children and Young People,CYP,Transport Related,CCA,04/02/2015,11-10571,760,Mct Uk Ltd,,,,,,,,,,
Nottinghamshire County Council,1111/1001,Children and Young People,CYP,Transport Related,CCA,04/02/2015,11-10572,760,Mct Uk Ltd,,,,,,,,,,
Nottinghamshire County Council,1111/1001,Children and Young People,CYP,Transport Related,CCA,04/02/2015,11-10575,2894.4,Midfield Travel,,,,,,,,,,
Nottinghamshire County Council,1111/1001,Children and Young People,CYP,Transport Related,CCA,04/02/2015,11-10576,1639.4,Carlton Cars Ltd T/A Trent Cars,,,,,,,,,,
Nottinghamshire County Council,1111/1001,Children and Young People,CYP,Transport Related,CCA,04/02/2015,11-10577,3088.2,K & S Coaches,,,,,,,,,,
Nottinghamshire County Council,1111/1001,Children and Young People,CYP,Transport Related,CCA,04/02/2015,11-10592,3177,Freeway Coaches Ltd,,,,,,,,,,
Nottinghamshire County Council,1111/1001,Children and Young People,CYP,Transport Related,CCA,04/02/2015,11-10605,7400,Kettlewell Retford Ltd,,,,,,,,,,
Nottinghamshire County Council,1111/1001,Children and Young People,CYP,Transport Related,CCA,04/02/2015,11-10606,980,Kettlewell Retford Ltd,,,,,,,,,,
Nottinghamshire County Council,1111/1001,Children and Young People,CYP,Transport Related,CCA,04/02/2015,11-10626,3164.07,Taxicover Uk Ltd,,,,,,,,,,
Nottinghamshire County Council,1111/1001,Children and Young People,CYP,Transport Related,CCA,04/02/2015,11-10627,2919.35,Taxicover Uk Ltd,,,,,,,,,,
Nottinghamshire County Council,1111/1001,Children and Young People,CYP,Transport Related,CCA,04/02/2015,11-10628,3084.65,Taxicover Uk Ltd,,,,,,,,,,
Nottinghamshire County Council,1111/1001,Children and Young People,CYP,Transport Related,CCA,04/02/2015,11-10629,2995.54,Taxicover Uk Ltd,,,,,,,,,,
Nottinghamshire County Council,1111/1001,Children and Young People,CYP,Transport Related,CCA,04/02/2015,11-10630,2692.62,Marriotts Travel,,,,,,,,,,
Nottinghamshire County Council,1111/1001,Children and Young People,CYP,Transport Related,CCA,04/02/2015,11-10631,3346,Marriotts Travel,,,,,,,,,,
Nottinghamshire County Council,1111/1001,Children and Young People,CYP,Transport Related,CCA,04/02/2015,11-10632,2174.64,Arrow Specialised Transport Ltd,,,,,,,,,,
Nottinghamshire County Council,1111/1001,Children and Young People,CYP,Transport Related,CCA,04/02/2015,11-10633,2584,Arrow Specialised Transport Ltd,,,,,,,,,,
Nottinghamshire County Council,1111/1001,Children and Young People,CYP,Transport Related,CCA,04/02/2015,11-10636,1806.4,Fozcabs Newark Taxis,,,,,,,,,,
Nottinghamshire County Council,1111/1001,Children and Young People,CYP,Transport Related,CCA,04/02/2015,11-10637,1523.4,Fozcabs Newark Taxis,,,,,,,,,,
Nottinghamshire County Council,1111/1001,Children and Young People,CYP,Transport Related,CCA,04/02/2015,11-10638,1631.8,Fozcabs Newark Taxis,,,,,,,,,,
Nottinghamshire County Council,1111/1001,Children and Young People,CYP,Transport Related,CCA,04/02/2015,11-10639,840,Fozcabs Newark Taxis,,,,,,,,,,
Nottinghamshire County Council,1111/1001,Children and Young People,CYP,Transport Related,CCA,04/02/2015,11-10640,846,Fozcabs Newark Taxis,,,,,,,,,,
Nottinghamshire County Council,1111/1001,Children and Young People,CYP,Transport Related,CCA,04/02/2015,11-10641,747.5,Fozcabs Newark Taxis,,,,,,,,,,
Nottinghamshire County Council,1111/1001,Children and Young People,CYP,Transport Related,CCA,04/02/2015,11-10643,750,Galaxy Cabs,,,,,,,,,,
Nottinghamshire County Council,1111/1001,Children and Young People,CYP,Transport Related,CCA,04/02/2015,11-10644,1140,Galaxy Cabs,,,,,,,,,,
Nottinghamshire County Council,1111/1001,Children and Young People,CYP,Transport Related,CCA,04/02/2015,11-10646,2739.2,Horizon Travel,,,,,,,,,,
Nottinghamshire County Council,1111/1001,Children and Young People,CYP,Transport Related,CCA,04/02/2015,11-10647,2100,Horizon Travel,,,,,,,,,,
Nottinghamshire County Council,1111/1001,Children and Young People,CYP,Transport Related,CCA,04/02/2015,11-10648,1734.6,Ja Travel Ltd,,,,,,,,,,
Nottinghamshire County Council,1111/1001,Children and Young People,CYP,Transport Related,CCA,04/02/2015,11-10649,3249.8,Ja Travel Ltd,,,,,,,,,,
Nottinghamshire County Council,1111/1001,Children and Young People,CYP,Transport Related,CCA,04/02/2015,11-10650,2445.8,Ja Travel Ltd,,,,,,,,,,
Nottinghamshire County Council,1111/1001,Children and Young People,CYP,Transport Related,CCA,04/02/2015,11-10652,2443.97,Oasis Taxis Mansfield Ltd,,,,,,,,,,
Nottinghamshire County Council,1111/1001,Children and Young People,CYP,Transport Related,CCA,04/02/2015,11-10653,2635.68,Oasis Taxis Mansfield Ltd,,,,,,,,,,
Nottinghamshire County Council,1111/1001,Children and Young People,CYP,Transport Related,CCA,04/02/2015,11-10654,1360,Oasis Taxis Mansfield Ltd,,,,,,,,,,
Nottinghamshire County Council,1111/1001,Children and Young People,CYP,Transport Related,CCA,04/02/2015,11-10655,1360,Oasis Taxis Mansfield Ltd,,,,,,,,,,
Nottinghamshire County Council,1111/1001,Children and Young People,CYP,Transport Related,CCA,04/02/2015,11-10656,3400,Vallances Coaches,,,,,,,,,,
Nottinghamshire County Council,1111/1001,Children and Young People,CYP,Transport Related,CCA,04/02/2015,11-10658,2055.6,Vallances Coaches,,,,,,,,,,
Nottinghamshire County Council,1111/1001,Children and Young People,CYP,Transport Related,CCA,04/02/2015,11-10659,2679.4,Vallances Coaches,,,,,,,,,,
Nottinghamshire County Council,1111/1001,Children and Young People,CYP,Transport Related,CCA,04/02/2015,11-10660,3027,Goldstar Travel Nottm Ltd,,,,,,,,,,
Nottinghamshire County Council,1111/1001,Children and Young People,CYP,Transport Related,CCA,04/02/2015,11-10661,1442.2,Goldstar Travel Nottm Ltd,,,,,,,,,,
Nottinghamshire County Council,1111/1001,Children and Young People,CYP,Transport Related,CCA,04/02/2015,11-10662,2506.1,Goldstar Travel Nottm Ltd,,,,,,,,,,
Nottinghamshire County Council,1111/1001,Children and Young People,CYP,Transport Related,CCA,04/02/2015,11-10666,870,P & P Taxis,,,,,,,,,,
Nottinghamshire County Council,1111/1001,Children and Young People,CYP,Transport Related,CCA,04/02/2015,11-10667,1264.8,P & P Taxis,,,,,,,,,,
Nottinghamshire County Council,1111/1001,Children and Young People,CYP,Transport Related,CCA,04/02/2015,11-10682,3600,C W Moxon Ltd,,,,,,,,,,
Nottinghamshire County Council,1111/1001,Children and Young People,CYP,Transport Related,CCA,04/02/2015,11-10685,3099.8,L A Travel,,,,,,,,,,
Nottinghamshire County Council,1111/1001,Children and Young People,CYP,Transport Related,CCA,04/02/2015,11-10687,628.2,Diamond Cars,,,,,,,,,,
Nottinghamshire County Council,1111/1001,Children and Young People,CYP,Transport Related,CCA,04/02/2015,11-10688,628.2,Diamond Cars,,,,,,,,,,
Nottinghamshire County Council,1111/1001,Children and Young People,CYP,Transport Related,CCA,04/02/2015,11-10689,575,Diamond Cars,,,,,,,,,,
Nottinghamshire County Council,1111/1001,Children and Young People,CYP,Transport Related,CCA,04/02/2015,11-10690,575,Diamond Cars,,,,,,,,,,
Nottinghamshire County Council,1111/1001,Children and Young People,CYP,Transport Related,CCA,06/02/2015,11-10873,630,Taxicover Uk Ltd,,,,,,,,,,
Nottinghamshire County Council,1111/1001,Children and Young People,CYP,Transport Related,CCA,06/02/2015,11-10874,2460.88,Martins Travel,,,,,,,,,,
Nottinghamshire County Council,1111/1001,Children and Young People,CYP,Transport Related,CCA,06/02/2015,11-10875,2469.4,Martins Travel,,,,,,,,,,
Nottinghamshire County Council,1111/1001,Children and Young People,CYP,Transport Related,CCA,06/02/2015,11-10876,3043.6,CBC Taxis Ltd,,,,,,,,,,
Nottinghamshire County Council,1111/1001,Children and Young People,CYP,Transport Related,CCA,06/02/2015,11-10877,1398.4,CBC Taxis Ltd,,,,,,,,,,
Nottinghamshire County Council,1111/1001,Children and Young People,CYP,Transport Related,CCA,06/02/2015,11-10878,535.23,CBC Taxis Ltd,,,,,,,,,,
Nottinghamshire County Council,1111/1001,Children and Young People,CYP,Transport Related,CCA,06/02/2015,11-10879,526.32,CBC Taxis Ltd,,,,,,,,,,
Nottinghamshire County Council,1111/1001,Children and Young People,CYP,Transport Related,CCA,06/02/2015,11-10880,979.4,CBC Taxis Ltd,,,,,,,,,,
Nottinghamshire County Council,1111/1001,Children and Young People,CYP,Transport Related,CCA,06/02/2015,11-10888,540,Ace Of Mansfield Ltd,,,,,,,,,,
Nottinghamshire County Council,1111/1001,Children and Young People,CYP,Transport Related,CCA,06/02/2015,11-10889,550,Ace Of Mansfield Ltd,,,,,,,,,,
Nottinghamshire County Council,1111/1001,Children and Young People,CYP,Transport Related,CCA,06/02/2015,11-10892,632.32,Alpha Cars,,,,,,,,,,
Nottinghamshire County Council,1111/1001,Children and Young People,CYP,Transport Related,CCA,06/02/2015,11-10893,1251.95,Alpha Cars,,,,,,,,,,
Nottinghamshire County Council,1111/1001,Children and Young People,CYP,Transport Related,CCA,06/02/2015,11-10895,1513.09,Arrow Specialised Transport Ltd,,,,,,,,,,
Nottinghamshire County Council,1111/1001,Children and Young People,CYP,Transport Related,CCA,06/02/2015,11-10906,1716,Bridges Transport Services,,,,,,,,,,
Nottinghamshire County Council,1111/1001,Children and Young People,CYP,Transport Related,CCA,06/02/2015,11-10907,3087.31,Bridges Transport Services,,,,,,,,,,
Nottinghamshire County Council,1111/1001,Children and Young People,CYP,Transport Related,CCA,06/02/2015,11-10908,2743.6,Bridges Transport Services,,,,,,,,,,
Nottinghamshire County Council,1111/1001,Children and Young People,CYP,Transport Related,CCA,06/02/2015,11-10909,1087,Bridges Transport Services,,,,,,,,,,
Nottinghamshire County Council,1111/1001,Children and Young People,CYP,Transport Related,CCA,06/02/2015,11-10910,1611.4,Bridges Transport Services,,,,,,,,,,
Nottinghamshire County Council,1111/1001,Children and Young People,CYP,Transport Related,CCA,06/02/2015,11-10911,1413.2,Bridges Transport Services,,,,,,,,,,
Nottinghamshire County Council,1111/1001,Children and Young People,CYP,Transport Related,CCA,06/02/2015,11-10912,2779.6,Bridges Transport Services,,,,,,,,,,
Nottinghamshire County Council,1111/1001,Children and Young People,CYP,Transport Related,CCA,06/02/2015,11-10913,1442.2,Bridges Transport Services,,,,,,,,,,
Nottinghamshire County Council,1111/1001,Children and Young People,CYP,Transport Related,CCA,06/02/2015,11-10914,1814.94,Bridges Transport Services,,,,,,,,,,
Nottinghamshire County Council,1111/1001,Children and Young People,CYP,Transport Related,CCA,06/02/2015,11-10916,4079.8,Bridges Transport Services,,,,,,,,,,
Nottinghamshire County Council,1111/1001,Children and Young People,CYP,Transport Related,CCA,06/02/2015,11-10917,1549.83,Bridges Transport Services,,,,,,,,,,
Nottinghamshire County Council,1111/1001,Children and Young People,CYP,Transport Related,CCA,06/02/2015,11-10918,895,Bridges Transport Services,,,,,,,,,,
Nottinghamshire County Council,1111/1001,Children and Young People,CYP,Transport Related,CCA,06/02/2015,11-10919,596.7,Bridges Transport Services,,,,,,,,,,
Nottinghamshire County Council,1111/1001,Children and Young People,CYP,Transport Related,CCA,06/02/2015,11-10921,2992,Bridges Transport Services,,,,,,,,,,
Nottinghamshire County Council,1111/1001,Children and Young People,CYP,Transport Related,CCA,06/02/2015,11-10922,2238.39,Bridges Transport Services,,,,,,,,,,
Nottinghamshire County Council,1111/1001,Children and Young People,CYP,Transport Related,CCA,06/02/2015,11-10923,2148.15,Bridges Transport Services,,,,,,,,,,
Nottinghamshire County Council,1111/1001,Children and Young People,CYP,Transport Related,CCA,06/02/2015,11-10924,1615.8,Bridges Transport Services,,,,,,,,,,
Nottinghamshire County Council,1111/1001,Children and Young People,CYP,Transport Related,CCA,06/02/2015,11-10925,1522,Bridges Transport Services,,,,,,,,,,
Nottinghamshire County Council,1111/1001,Children and Young People,CYP,Transport Related,CCA,06/02/2015,11-10926,3045,Bridges Transport Services,,,,,,,,,,
Nottinghamshire County Council,1111/1001,Children and Young People,CYP,Transport Related,CCA,06/02/2015,11-10929,591.31,Fozcabs Newark Taxis,,,,,,,,,,
Nottinghamshire County Council,1111/1001,Children and Young People,CYP,Transport Related,CCA,06/02/2015,11-10932,1280,Fozcabs Newark Taxis,,,,,,,,,,
Nottinghamshire County Council,1111/1001,Children and Young People,CYP,Transport Related,CCA,06/02/2015,11-10933,1752,Fozcabs Newark Taxis,,,,,,,,,,
Nottinghamshire County Council,1111/1001,Children and Young People,CYP,Transport Related,CCA,06/02/2015,11-10934,1200,Fozcabs Newark Taxis,,,,,,,,,,
Nottinghamshire County Council,1111/1001,Children and Young People,CYP,Transport Related,CCA,06/02/2015,11-10935,1975.6,Headland Taxi Services,,,,,,,,,,
Nottinghamshire County Council,1111/1001,Children and Young People,CYP,Transport Related,CCA,06/02/2015,11-10936,1472.35,Headland Taxi Services,,,,,,,,,,
Nottinghamshire County Council,1111/1001,Children and Young People,CYP,Transport Related,CCA,06/02/2015,11-10937,655.5,Oasis Taxis Mansfield Ltd,,,,,,,,,,
Nottinghamshire County Council,1111/1001,Children and Young People,CYP,Transport Related,CCA,06/02/2015,11-10938,1200,Shelleys Taxis Ltd,,,,,,,,,,
Nottinghamshire County Council,1111/1001,Children and Young People,CYP,Transport Related,CCA,06/02/2015,11-10939,1236,Shelleys Taxis Ltd,,,,,,,,,,
Nottinghamshire County Council,1111/1001,Children and Young People,CYP,Transport Related,CCA,06/02/2015,11-10940,1140,Shelleys Taxis Ltd,,,,,,,,,,
Nottinghamshire County Council,1111/1001,Children and Young People,CYP,Transport Related,CCA,06/02/2015,11-10941,748,Shelleys Taxis Ltd,,,,,,,,,,
Nottinghamshire County Council,1111/1001,Children and Young People,CYP,Transport Related,CCA,06/02/2015,11-10942,1200,Shelleys Taxis Ltd,,,,,,,,,,
Nottinghamshire County Council,1111/1001,Children and Young People,CYP,Transport Related,CCA,06/02/2015,11-10943,525,Sprays Transport Ltd,,,,,,,,,,
Nottinghamshire County Council,1111/1001,Children and Young People,CYP,Transport Related,CCA,06/02/2015,11-10944,1187.5,Sprays Transport Ltd,,,,,,,,,,
Nottinghamshire County Council,1111/1001,Children and Young People,CYP,Transport Related,CCA,06/02/2015,11-10946,1840,Sprays Transport Ltd,,,,,,,,,,
Nottinghamshire County Council,1111/1001,Children and Young People,CYP,Transport Related,CCA,06/02/2015,11-10947,1689.6,Sprays Transport Ltd,,,,,,,,,,
Nottinghamshire County Council,1111/1001,Children and Young People,CYP,Transport Related,CCA,06/02/2015,11-10948,1667.2,Sprays Transport Ltd,,,,,,,,,,
Nottinghamshire County Council,1111/1001,Children and Young People,CYP,Transport Related,CCA,06/02/2015,11-10949,1854.4,Sprays Transport Ltd,,,,,,,,,,
Nottinghamshire County Council,1111/1001,Children and Young People,CYP,Transport Related,CCA,06/02/2015,11-10950,1596.9,Sprays Transport Ltd,,,,,,,,,,
Nottinghamshire County Council,1111/1001,Children and Young People,CYP,Transport Related,CCA,06/02/2015,11-10952,1834.8,Sprays Transport Ltd,,,,,,,,,,
Nottinghamshire County Council,1111/1001,Children and Young People,CYP,Transport Related,CCA,06/02/2015,11-10953,1730.8,Sprays Transport Ltd,,,,,,,,,,
Nottinghamshire County Council,1111/1001,Children and Young People,CYP,Transport Related,CCA,06/02/2015,11-10954,1900,Sprays Transport Ltd,,,,,,,,,,
Nottinghamshire County Council,1111/1001,Children and Young People,CYP,Transport Related,CCA,06/02/2015,11-10955,1813.2,Sprays Transport Ltd,,,,,,,,,,
Nottinghamshire County Council,1111/1001,Children and Young People,CYP,Transport Related,CCA,06/02/2015,11-10956,1936.8,Sprays Transport Ltd,,,,,,,,,,
Nottinghamshire County Council,1111/1001,Children and Young People,CYP,Transport Related,CCA,06/02/2015,11-10957,1751.4,Sprays Transport Ltd,,,,,,,,,,
Nottinghamshire County Council,1111/1001,Children and Young People,CYP,Transport Related,CCA,06/02/2015,11-10958,1876.8,Sprays Transport Ltd,,,,,,,,,,
Nottinghamshire County Council,1111/1001,Children and Young People,CYP,Transport Related,CCA,06/02/2015,11-10959,2109.2,Sprays Transport Ltd,,,,,,,,,,
Nottinghamshire County Council,1111/1001,Children and Young People,CYP,Transport Related,CCA,06/02/2015,11-10960,1913,Sprays Transport Ltd,,,,,,,,,,
Nottinghamshire County Council,1111/1001,Children and Young People,CYP,Transport Related,CCA,06/02/2015,11-10961,2380,Sprays Transport Ltd,,,,,,,,,,
Nottinghamshire County Council,1111/1001,Children and Young People,CYP,Transport Related,CCA,06/02/2015,11-10962,2360,Sprays Transport Ltd,,,,,,,,,,
Nottinghamshire County Council,1111/1001,Children and Young People,CYP,Transport Related,CCA,06/02/2015,11-10963,1724.82,Sprays Transport Ltd,,,,,,,,,,
Nottinghamshire County Council,1111/1001,Children and Young People,CYP,Transport Related,CCA,06/02/2015,11-10964,2098.17,Sprays Transport Ltd,,,,,,,,,,
Nottinghamshire County Council,1111/1001,Children and Young People,CYP,Transport Related,CCA,06/02/2015,11-10965,1839.96,Sprays Transport Ltd,,,,,,,,,,
Nottinghamshire County Council,1111/1001,Children and Young People,CYP,Transport Related,CCA,06/02/2015,11-10966,2812.95,Sprays Transport Ltd,,,,,,,,,,
Nottinghamshire County Council,1111/1001,Children and Young People,CYP,Transport Related,CCA,06/02/2015,11-10967,1550.4,Sprays Transport Ltd,,,,,,,,,,
Nottinghamshire County Council,1111/1001,Children and Young People,CYP,Transport Related,CCA,06/02/2015,11-10968,1999.2,Sprays Transport Ltd,,,,,,,,,,
Nottinghamshire County Council,1111/1001,Children and Young People,CYP,Transport Related,CCA,06/02/2015,11-10971,1925,Sprays Transport Ltd,,,,,,,,,,
Nottinghamshire County Council,1111/1001,Children and Young People,CYP,Transport Related,CCA,06/02/2015,11-10972,2810.6,Sprays Transport Ltd,,,,,,,,,,
Nottinghamshire County Council,1111/1001,Children and Young People,CYP,Transport Related,CCA,06/02/2015,11-10977,2700,F & J Marriott T/A Unity Coaches,,,,,,,,,,
Nottinghamshire County Council,1111/1001,Children and Young People,CYP,Transport Related,CCA,06/02/2015,11-10978,2700,F & J Marriott T/A Unity Coaches,,,,,,,,,,
Nottinghamshire County Council,1111/1001,Children and Young People,CYP,Transport Related,CCA,06/02/2015,11-10979,2781.6,F & J Marriott T/A Unity Coaches,,,,,,,,,,
Nottinghamshire County Council,1111/1001,Children and Young People,CYP,Transport Related,CCA,06/02/2015,11-10985,575,D G Private Hire Ltd,,,,,,,,,,
Nottinghamshire County Council,1111/1001,Children and Young People,CYP,Transport Related,CCA,06/02/2015,11-10987,604,D G Private Hire Ltd,,,,,,,,,,
Nottinghamshire County Council,1111/1001,Children and Young People,CYP,Transport Related,CCA,06/02/2015,11-10988,765,D G Private Hire Ltd,,,,,,,,,,
Nottinghamshire County Council,1111/1001,Children and Young People,CYP,Transport Related,CCA,06/02/2015,11-10989,580,D G Private Hire Ltd,,,,,,,,,,
Nottinghamshire County Council,1111/1001,Children and Young People,CYP,Transport Related,CCA,06/02/2015,11-10991,1555,D G Private Hire Ltd,,,,,,,,,,
Nottinghamshire County Council,1111/1001,Children and Young People,CYP,Transport Related,CCA,06/02/2015,11-11012,3346.2,Marshalls Of Sutton On Trent Ltd,,,,,,,,,,
Nottinghamshire County Council,1111/1001,Children and Young People,CYP,Transport Related,CCA,06/02/2015,11-11021,2733.8,Travel Wright Ltd,,,,,,,,,,
Nottinghamshire County Council,1111/1001,Children and Young People,CYP,Transport Related,CCA,06/02/2015,11-11037,2200,P & P Taxis,,,,,,,,,,
Nottinghamshire County Council,1111/1001,Children and Young People,CYP,Transport Related,CCA,06/02/2015,11-11038,609,Town Cars (UK) Ltd,,,,,,,,,,
Nottinghamshire County Council,1111/1001,Children and Young People,CYP,Transport Related,CCA,06/02/2015,11-11040,526.5,Town Cars (UK) Ltd,,,,,,,,,,
Nottinghamshire County Council,1111/1001,Children and Young People,CYP,Transport Related,CCA,06/02/2015,11-11041,960,Town Cars (UK) Ltd,,,,,,,,,,
Nottinghamshire County Council,1111/1001,Children and Young People,CYP,Transport Related,CCA,06/02/2015,11-11042,550,Cable Cars Taxis Nottm Ltd,,,,,,,,,,
Nottinghamshire County Council,1111/1001,Children and Young People,CYP,Transport Related,CCA,06/02/2015,11-11046,1900,Target Taxis,,,,,,,,,,
Nottinghamshire County Council,1111/1001,Children and Young People,CYP,Transport Related,CCA,06/02/2015,11-11047,1255.5,A2B Licensed Taxis,,,,,,,,,,
Nottinghamshire County Council,1111/1001,Children and Young People,CYP,Transport Related,CCA,06/02/2015,11-11048,720,A2B Licensed Taxis,,,,,,,,,,
Nottinghamshire County Council,1111/1001,Children and Young People,CYP,Transport Related,CCA,09/02/2015,11-11092,4900,Redfern Travel,,,,,,,,,,
Nottinghamshire County Council,1111/1001,Children and Young People,CYP,Transport Related,CCA,09/02/2015,11-11093,2080,Redfern Travel,,,,,,,,,,
Nottinghamshire County Council,1111/1001,Children and Young People,CYP,Transport Related,CCA,09/02/2015,11-11096,1160,Alpha Cars,,,,,,,,,,
Nottinghamshire County Council,1111/1001,Children and Young People,CYP,Transport Related,CCA,09/02/2015,11-11098,3590,Butler Brothers Ltd,,,,,,,,,,
Nottinghamshire County Council,1111/1001,Children and Young People,CYP,Transport Related,CCA,09/02/2015,11-11101,852,Ng11 Cars,,,,,,,,,,
Nottinghamshire County Council,1111/1001,Children and Young People,CYP,Transport Related,CCA,09/02/2015,11-11102,840,Ng11 Cars,,,,,,,,,,
Nottinghamshire County Council,1111/1001,Children and Young People,CYP,Transport Related,CCA,09/02/2015,11-11103,1595,Ng11 Cars,,,,,,,,,,
Nottinghamshire County Council,1111/1001,Children and Young People,CYP,Transport Related,CCA,09/02/2015,11-11105,676,Ng11 Cars,,,,,,,,,,
Nottinghamshire County Council,1111/1001,Children and Young People,CYP,Transport Related,CCA,09/02/2015,11-11107,2600,Shelleys Taxis Ltd,,,,,,,,,,
Nottinghamshire County Council,1111/1001,Children and Young People,CYP,Transport Related,CCA,09/02/2015,11-11108,1100,Shelleys Taxis Ltd,,,,,,,,,,
Nottinghamshire County Council,1111/1001,Children and Young People,CYP,Transport Related,CCA,09/02/2015,11-11109,1400,Shelleys Taxis Ltd,,,,,,,,,,
Nottinghamshire County Council,1111/1001,Children and Young People,CYP,Transport Related,CCA,09/02/2015,11-11112,1867.8,123 Taxis,,,,,,,,,,
Nottinghamshire County Council,1111/1001,Children and Young People,CYP,Transport Related,CCA,09/02/2015,11-11123,1320,Jb Tours Watnall Ltd,,,,,,,,,,
Nottinghamshire County Council,1111/1001,Children and Young People,CYP,Transport Related,CCA,09/02/2015,11-11124,1720,Jb Tours Watnall Ltd,,,,,,,,,,
Nottinghamshire County Council,1111/1001,Children and Young People,CYP,Transport Related,CCA,09/02/2015,11-11128,2990,Tiger European Uk Ltd,,,,,,,,,,
Nottinghamshire County Council,1111/1001,Children and Young People,CYP,Transport Related,CCA,09/02/2015,11-11129,2181.4,Rio Cabs,,,,,,,,,,
Nottinghamshire County Council,1111/1001,Children and Young People,CYP,Transport Related,CCA,09/02/2015,11-11130,1214.4,Rio Cabs,,,,,,,,,,
Nottinghamshire County Council,1111/1001,Children and Young People,CYP,Transport Related,CCA,09/02/2015,11-11133,1544.48,Rio Cabs,,,,,,,,,,
Nottinghamshire County Council,1111/1001,Children and Young People,CYP,Transport Related,CCA,10/02/2015,11-11318,1000,Southside Cars,,,,,,,,,,
Nottinghamshire County Council,1111/1001,Children and Young People,CYP,Transport Related,CCA,10/02/2015,11-11319,1734,Central Cars Nottm Ltd,,,,,,,,,,
Nottinghamshire County Council,1111/1001,Children and Young People,CYP,Transport Related,CCA,10/02/2015,11-11320,1728,Central Cars Nottm Ltd,,,,,,,,,,
Nottinghamshire County Council,1111/1001,Children and Young People,CYP,Transport Related,CCA,10/02/2015,11-11322,1680,Central Cars Nottm Ltd,,,,,,,,,,
Nottinghamshire County Council,1111/1001,Children and Young People,CYP,Transport Related,CCA,10/02/2015,11-11323,2133.8,Central Cars Nottm Ltd,,,,,,,,,,
Nottinghamshire County Council,1111/1001,Children and Young People,CYP,Transport Related,CCA,10/02/2015,11-11324,1560.6,Central Cars Nottm Ltd,,,,,,,,,,
Nottinghamshire County Council,1111/1001,Children and Young People,CYP,Transport Related,CCA,10/02/2015,11-11325,1800,Central Cars Nottm Ltd,,,,,,,,,,
Nottinghamshire County Council,1111/1001,Children and Young People,CYP,Transport Related,CCA,10/02/2015,11-11326,1938,Central Cars Nottm Ltd,,,,,,,,,,
Nottinghamshire County Council,1111/1001,Children and Young People,CYP,Transport Related,CCA,10/02/2015,11-11327,600,Central Cars Nottm Ltd,,,,,,,,,,
Nottinghamshire County Council,1111/1001,Children and Young People,CYP,Transport Related,CCA,10/02/2015,11-11328,1620,Central Cars Nottm Ltd,,,,,,,,,,
Nottinghamshire County Council,1111/1001,Children and Young People,CYP,Transport Related,CCA,10/02/2015,11-11329,2178.8,Central Cars Nottm Ltd,,,,,,,,,,
Nottinghamshire County Council,1111/1001,Children and Young People,CYP,Transport Related,CCA,10/02/2015,11-11330,2250.2,Central Cars Nottm Ltd,,,,,,,,,,
Nottinghamshire County Council,1111/1001,Children and Young People,CYP,Transport Related,CCA,10/02/2015,11-11331,1440,Central Cars Nottm Ltd,,,,,,,,,,
Nottinghamshire County Council,1111/1001,Children and Young People,CYP,Transport Related,CCA,10/02/2015,11-11332,500,200 Cars Ltd,,,,,,,,,,
Nottinghamshire County Council,1111/1001,Children and Young People,CYP,Transport Related,CCA,10/02/2015,11-11333,528,200 Cars Ltd,,,,,,,,,,
Nottinghamshire County Council,1111/1001,Children and Young People,CYP,Transport Related,CCA,10/02/2015,11-11334,383.28,Acorn Contracts,,,,,,,,,,
Nottinghamshire County Council,1111/1001,Children and Young People,CYP,Transport Related,CCA,10/02/2015,11-11336,2264.4,D G Private Hire Ltd,,,,,,,,,,
Nottinghamshire County Council,1111/1001,Children and Young People,CYP,Transport Related,CCA,10/02/2015,11-11337,1700,D G Private Hire Ltd,,,,,,,,,,
Nottinghamshire County Council,1111/1001,Children and Young People,CYP,Transport Related,CCA,10/02/2015,11-11338,2344.98,D G Private Hire Ltd,,,,,,,,,,
Nottinghamshire County Council,1111/1001,Children and Young People,CYP,Transport Related,CCA,10/02/2015,11-11339,3495.2,D G Private Hire Ltd,,,,,,,,,,
Nottinghamshire County Council,1111/1001,Children and Young People,CYP,Transport Related,CCA,10/02/2015,11-11340,1158.25,D G Private Hire Ltd,,,,,,,,,,
Nottinghamshire County Council,1111/1001,Children and Young People,CYP,Transport Related,CCA,10/02/2015,11-11341,1162.8,D G Private Hire Ltd,,,,,,,,,,
Nottinghamshire County Council,1111/1001,Children and Young People,CYP,Transport Related,CCA,10/02/2015,11-11342,2205.2,Erewash Community Transport,,,,,,,,,,
Nottinghamshire County Council,1111/1001,Children and Young People,CYP,Transport Related,CCA,10/02/2015,11-11343,3168.44,Erewash Community Transport,,,,,,,,,,
Nottinghamshire County Council,1111/1001,Children and Young People,CYP,Transport Related,CCA,10/02/2015,11-11344,865.45,Erewash Community Transport,,,,,,,,,,
Nottinghamshire County Council,1111/1001,Children and Young People,CYP,Transport Related,CCA,10/02/2015,11-11346,1901.14,Erewash Community Transport,,,,,,,,,,
Nottinghamshire County Council,1111/1001,Children and Young People,CYP,Transport Related,CCA,10/02/2015,11-11347,2205.52,Erewash Community Transport,,,,,,,,,,
Nottinghamshire County Council,1111/1001,Children and Young People,CYP,Transport Related,CCA,10/02/2015,11-11348,2224.9,Carlton Cars Ltd T/A Trent Cars,,,,,,,,,,
Nottinghamshire County Council,1111/1001,Children and Young People,CYP,Transport Related,CCA,10/02/2015,11-11349,2260,D G Private Hire Ltd,,,,,,,,,,
Nottinghamshire County Council,1111/1001,Children and Young People,CYP,Transport Related,CCA,10/02/2015,11-11350,1856.4,D G Private Hire Ltd,,,,,,,,,,
Nottinghamshire County Council,1111/1001,Children and Young People,CYP,Transport Related,CCA,10/02/2015,11-11351,1242,D G Private Hire Ltd,,,,,,,,,,
Nottinghamshire County Council,1111/1001,Children and Young People,CYP,Transport Related,CCA,10/02/2015,11-11352,587.1,D G Private Hire Ltd,,,,,,,,,,
Nottinghamshire County Council,1111/1001,Children and Young People,CYP,Transport Related,CCA,10/02/2015,11-11353,1440,D G Private Hire Ltd,,,,,,,,,,
Nottinghamshire County Council,1111/1001,Children and Young People,CYP,Transport Related,CCA,10/02/2015,11-11354,1608,D G Private Hire Ltd,,,,,,,,,,
Nottinghamshire County Council,1111/1001,Children and Young People,CYP,Transport Related,CCA,10/02/2015,11-11355,1734,D G Private Hire Ltd,,,,,,,,,,
Nottinghamshire County Council,1111/1001,Children and Young People,CYP,Transport Related,CCA,10/02/2015,11-11356,1500,D G Private Hire Ltd,,,,,,,,,,
Nottinghamshire County Council,1111/1001,Children and Young People,CYP,Transport Related,CCA,10/02/2015,11-11357,1600,D G Private Hire Ltd,,,,,,,,,,
Nottinghamshire County Council,1111/1001,Children and Young People,CYP,Transport Related,CCA,10/02/2015,11-11358,1900,D G Private Hire Ltd,,,,,,,,,,
Nottinghamshire County Council,1111/1001,Children and Young People,CYP,Transport Related,CCA,10/02/2015,11-11359,1096.11,D G Private Hire Ltd,,,,,,,,,,
Nottinghamshire County Council,1111/1001,Children and Young People,CYP,Transport Related,CCA,10/02/2015,11-11361,350,D G Private Hire Ltd,,,,,,,,,,
Nottinghamshire County Council,1111/1001,Children and Young People,CYP,Transport Related,CCA,10/02/2015,11-11372,1480.77,Abacus Cars,,,,,,,,,,
Nottinghamshire County Council,1111/1001,Children and Young People,CYP,Transport Related,CCA,10/02/2015,11-11373,2510,Abacus Cars,,,,,,,,,,
Nottinghamshire County Council,1111/1001,Children and Young People,CYP,Transport Related,CCA,10/02/2015,11-11375,3570,Abacus Cars,,,,,,,,,,
Nottinghamshire County Council,1111/1001,Children and Young People,CYP,Transport Related,CCA,10/02/2015,11-11376,1632,Abacus Cars,,,,,,,,,,
Nottinghamshire County Council,1111/1001,Children and Young People,CYP,Transport Related,CCA,10/02/2015,11-11377,1600,Abacus Cars,,,,,,,,,,
Nottinghamshire County Council,1111/1001,Children and Young People,CYP,Transport Related,CCA,10/02/2015,11-11379,1305.6,Abacus Cars,,,,,,,,,,
Nottinghamshire County Council,1111/1001,Children and Young People,CYP,Transport Related,CCA,10/02/2015,11-11380,1574.72,Nunns Cars,,,,,,,,,,
Nottinghamshire County Council,1111/1001,Children and Young People,CYP,Transport Related,CCA,10/02/2015,11-11391,6326.24,Stagecoach Services Ltd,,,,,,,,,,
Nottinghamshire County Council,1111/1001,Children and Young People,CYP,Transport Related,CCA,10/02/2015,11-11441,1297.98,Ace Cars,,,,,,,,,,
Nottinghamshire County Council,1111/1001,Children and Young People,CYP,Transport Related,CCA,11/02/2015,11-11490,2142,Arrow Specialised Transport Ltd,,,,,,,,,,
Nottinghamshire County Council,1111/1001,Children and Young People,CYP,Transport Related,CCA,11/02/2015,11-11491,1624,Arrow Specialised Transport Ltd,,,,,,,,,,
Nottinghamshire County Council,1111/1001,Children and Young People,CYP,Transport Related,CCA,11/02/2015,11-11492,2320,Arrow Specialised Transport Ltd,,,,,,,,,,
Nottinghamshire County Council,1111/1001,Children and Young People,CYP,Transport Related,CCA,11/02/2015,11-11493,1932,Arrow Specialised Transport Ltd,,,,,,,,,,
Nottinghamshire County Council,1111/1001,Children and Young People,CYP,Transport Related,CCA,11/02/2015,11-11494,11560,Arrow Specialised Transport Ltd,,,,,,,,,,
Nottinghamshire County Council,1111/1001,Children and Young People,CYP,Transport Related,CCA,11/02/2015,11-11495,1720.44,Arrow Specialised Transport Ltd,,,,,,,,,,
Nottinghamshire County Council,1111/1001,Children and Young People,CYP,Transport Related,CCA,11/02/2015,11-11497,2036.23,Arrow Specialised Transport Ltd,,,,,,,,,,
Nottinghamshire County Council,1111/1001,Children and Young People,CYP,Transport Related,CCA,11/02/2015,11-11498,2619,Arrow Specialised Transport Ltd,,,,,,,,,,
Nottinghamshire County Council,1111/1001,Children and Young People,CYP,Transport Related,CCA,12/02/2015,11-11540,600,Sharpes Of Nottingham,,,,,,,,,,
Nottinghamshire County Council,1111/1001,Children and Young People,CYP,Transport Related,CCA,12/02/2015,11-11546,2520,Sharpes Of Nottingham,,,,,,,,,,
Nottinghamshire County Council,1111/1001,Children and Young People,CYP,Transport Related,CCA,12/02/2015,11-11547,1260,Sharpes Of Nottingham,,,,,,,,,,
Nottinghamshire County Council,1111/1001,Children and Young People,CYP,Transport Related,CCA,12/02/2015,11-11548,1320,Sharpes Of Nottingham,,,,,,,,,,
Nottinghamshire County Council,1111/1001,Children and Young People,CYP,Transport Related,CCA,12/02/2015,11-11555,14300,Sharpes Of Nottingham,,,,,,,,,,
Nottinghamshire County Council,1111/1001,Children and Young People,CYP,Transport Related,CCA,12/02/2015,11-11564,2500,Johnson Bros Tours Ltd,,,,,,,,,,
Nottinghamshire County Council,1111/1001,Children and Young People,CYP,Transport Related,CCA,12/02/2015,11-11568,1000,Shelleys Taxis Ltd,,,,,,,,,,
Nottinghamshire County Council,1111/1001,Children and Young People,CYP,Transport Related,CCA,12/02/2015,11-11570,2120,Abacus Cars,,,,,,,,,,
Nottinghamshire County Council,1111/1001,Children and Young People,CYP,Transport Related,CCA,12/02/2015,11-11572,2340,Silverdale Tours Nottm Ltd,,,,,,,,,,
Nottinghamshire County Council,1111/1001,Children and Young People,CYP,Transport Related,CCA,12/02/2015,11-11573,1540,Silverdale Tours Nottm Ltd,,,,,,,,,,
Nottinghamshire County Council,1111/1001,Children and Young People,CYP,Transport Related,CCA,12/02/2015,11-11576,1637.2,Ace Cars,,,,,,,,,,
Nottinghamshire County Council,1111/1001,Children and Young People,CYP,Transport Related,CCA,12/02/2015,11-11577,989,Ace Cars,,,,,,,,,,
Nottinghamshire County Council,1111/1001,Children and Young People,CYP,Transport Related,CCA,12/02/2015,11-11578,1669,Ace Cars,,,,,,,,,,
Nottinghamshire County Council,1111/1001,Children and Young People,CYP,Transport Related,CCA,13/02/2015,11-11665,841.5,Central Cars Nottm Ltd,,,,,,,,,,
Nottinghamshire County Council,1111/1001,Children and Young People,CYP,Transport Related,CCA,13/02/2015,11-11666,918,Central Cars Nottm Ltd,,,,,,,,,,
Nottinghamshire County Council,1111/1001,Children and Young People,CYP,Transport Related,CCA,13/02/2015,11-11667,1964.8,Johnson Bros Tours Ltd,,,,,,,,,,
Nottinghamshire County Council,1111/1001,Children and Young People,CYP,Transport Related,CCA,13/02/2015,11-11687,2126.8,Sprays Transport Ltd,,,,,,,,,,
Nottinghamshire County Council,1111/1001,Children and Young People,CYP,Transport Related,CCA,13/02/2015,11-11688,2260,Sprays Transport Ltd,,,,,,,,,,
Nottinghamshire County Council,1111/1001,Children and Young People,CYP,Transport Related,CCA,13/02/2015,11-11693,1901.1,BN Gibson Ltd,,,,,,,,,,
Nottinghamshire County Council,1111/1001,Children and Young People,CYP,Transport Related,CCA,17/02/2015,11-10710,2720,K Matthews Travel,,,,,,,,,,
Nottinghamshire County Council,1111/1001,Children and Young People,CYP,Transport Related,CCA,17/02/2015,11-11793,1590,Tiger European Uk Ltd,,,,,,,,,,
Nottinghamshire County Council,1111/1001,Children and Young People,CYP,Transport Related,CCA,17/02/2015,11-11810,1680,Sprays Transport Ltd,,,,,,,,,,
Nottinghamshire County Council,1111/1001,Children and Young People,CYP,Transport Related,CCA,17/02/2015,11-11811,1725,Sprays Transport Ltd,,,,,,,,,,
Nottinghamshire County Council,1111/1001,Children and Young People,CYP,Transport Related,CCA,17/02/2015,11-11812,2300,Sprays Transport Ltd,,,,,,,,,,
Nottinghamshire County Council,1111/1001,Children and Young People,CYP,Transport Related,CCA,17/02/2015,11-11813,1297.67,BN Gibson Ltd,,,,,,,,,,
Nottinghamshire County Council,1111/1001,Children and Young People,CYP,Transport Related,CCA,17/02/2015,11-11814,924,BN Gibson Ltd,,,,,,,,,,
Nottinghamshire County Council,1111/1001,Children and Young People,CYP,Transport Related,CCA,17/02/2015,11-11815,3337.6,BN Gibson Ltd,,,,,,,,,,
Nottinghamshire County Council,1111/1001,Children and Young People,CYP,Transport Related,CCA,17/02/2015,11-11816,4262.2,BN Gibson Ltd,,,,,,,,,,
Nottinghamshire County Council,1111/1001,Children and Young People,CYP,Transport Related,CCA,17/02/2015,11-11817,4587,BN Gibson Ltd,,,,,,,,,,
Nottinghamshire County Council,1111/1001,Children and Young People,CYP,Transport Related,CCA,17/02/2015,11-11818,3657.12,BN Gibson Ltd,,,,,,,,,,
Nottinghamshire County Council,1111/1001,Children and Young People,CYP,Transport Related,CCA,17/02/2015,11-11819,3808,BN Gibson Ltd,,,,,,,,,,
Nottinghamshire County Council,1111/1001,Children and Young People,CYP,Transport Related,CCA,17/02/2015,11-11820,3595.4,BN Gibson Ltd,,,,,,,,,,
Nottinghamshire County Council,1111/1001,Children and Young People,CYP,Transport Related,CCA,17/02/2015,11-11821,3106.2,BN Gibson Ltd,,,,,,,,,,
Nottinghamshire County Council,1111/1001,Children and Young People,CYP,Transport Related,CCA,17/02/2015,11-11823,2791.2,BN Gibson Ltd,,,,,,,,,,
Nottinghamshire County Council,1111/1001,Children and Young People,CYP,Transport Related,CCA,17/02/2015,11-11827,1884.44,BN Gibson Ltd,,,,,,,,,,
Nottinghamshire County Council,1111/1001,Children and Young People,CYP,Transport Related,CCA,17/02/2015,11-11828,1440,AOT Coaches,,,,,,,,,,
Nottinghamshire County Council,1111/1001,Children and Young People,CYP,Transport Related,CCA,17/02/2015,11-11829,1920,AOT Coaches,,,,,,,,,,
Nottinghamshire County Council,1111/1001,Children and Young People,CYP,Transport Related,CCA,17/02/2015,11-11830,3960,P & P Taxis,,,,,,,,,,
Nottinghamshire County Council,1111/1001,Children and Young People,CYP,Transport Related,CCA,18/02/2015,11-11914,3814.6,BN Gibson Ltd,,,,,,,,,,
Nottinghamshire County Council,1111/1001,Children and Young People,CYP,Transport Related,CCA,18/02/2015,11-11915,2934.45,BN Gibson Ltd,,,,,,,,,,
Nottinghamshire County Council,1111/1001,Children and Young People,CYP,Transport Related,CCA,18/02/2015,11-11917,3948.8,BN Gibson Ltd,,,,,,,,,,
Nottinghamshire County Council,1111/1001,Children and Young People,CYP,Transport Related,CCA,18/02/2015,11-11918,3722.2,BN Gibson Ltd,,,,,,,,,,
Nottinghamshire County Council,1111/1001,Children and Young People,CYP,Transport Related,CCA,18/02/2015,11-11919,3419.4,BN Gibson Ltd,,,,,,,,,,
Nottinghamshire County Council,1111/1001,Children and Young People,CYP,Transport Related,CCA,18/02/2015,11-11921,3537.8,BN Gibson Ltd,,,,,,,,,,
Nottinghamshire County Council,1111/1001,Children and Young People,CYP,Transport Related,CCA,18/02/2015,11-11922,3131.2,BN Gibson Ltd,,,,,,,,,,
Nottinghamshire County Council,1111/1001,Children and Young People,CYP,Transport Related,CCA,18/02/2015,11-11929,649.4,I Can Charity,,,,,,,,,,
Nottinghamshire County Council,1111/1001,Children and Young People,CYP,Transport Related,CCA,18/02/2015,11-11930,840,I Can Charity,,,,,,,,,,
Nottinghamshire County Council,1111/1001,Children and Young People,CYP,Transport Related,CCA,18/02/2015,11-11933,1330,Eurocab 2000 Ltd,,,,,,,,,,
Nottinghamshire County Council,1111/1001,Children and Young People,CYP,Transport Related,CCA,18/02/2015,11-11934,4976,Eurocab 2000 Ltd,,,,,,,,,,
Nottinghamshire County Council,1111/1001,Children and Young People,CYP,Transport Related,CCA,18/02/2015,11-11935,2900,Eurocab 2000 Ltd,,,,,,,,,,
Nottinghamshire County Council,1111/1001,Children and Young People,CYP,Transport Related,CCA,18/02/2015,11-11936,5700,Eurocab 2000 Ltd,,,,,,,,,,
Nottinghamshire County Council,1111/1001,Children and Young People,CYP,Transport Related,CCA,20/02/2015,11-11977,628.2,Diamond Cars,,,,,,,,,,
Nottinghamshire County Council,1111/1001,Children and Young People,CYP,Transport Related,CCA,20/02/2015,11-11978,628.2,Diamond Cars,,,,,,,,,,
Nottinghamshire County Council,1111/1001,Children and Young People,CYP,Transport Related,CCA,20/02/2015,11-11979,575,Diamond Cars,,,,,,,,,,
Nottinghamshire County Council,1111/1001,Children and Young People,CYP,Transport Related,CCA,24/02/2015,11-12178,1010,Cabline Uk Ltd,,,,,,,,,,
Nottinghamshire County Council,1111/1001,Children and Young People,CYP,Transport Related,CCA,24/02/2015,11-12179,595,Cabline Uk Ltd,,,,,,,,,,
Nottinghamshire County Council,1111/1001,Children and Young People,CYP,Transport Related,CCA,24/02/2015,11-12180,1212,Cabline Uk Ltd,,,,,,,,,,
Nottinghamshire County Council,1111/1001,Children and Young People,CYP,Transport Related,CCA,24/02/2015,11-12182,800,SJW (Muskham) Ltd T/A Z Cars,,,,,,,,,,
Nottinghamshire County Council,1111/1001,Children and Young People,CYP,Transport Related,CCA,25/02/2015,11-16080,2880,Wallis Coachways,,,,,,,,,,
Nottinghamshire County Council,1111/1001,Children and Young People,CYP,Transport Related,CCA,25/02/2015,11-16081,1800,[Redacted],,,,,,,,,,
Nottinghamshire County Council,1111/1001,Children and Young People,CYP,Transport Related,CCA,25/02/2015,11-16082,1900,[Redacted],,,,,,,,,,
Nottinghamshire County Council,1111/1001,Children and Young People,CYP,Transport Related,CCA,25/02/2015,11-16083,1500,[Redacted],,,,,,,,,,
Nottinghamshire County Council,1111/1001,Children and Young People,CYP,Transport Related,CCA,25/02/2015,11-16084,2000,[Redacted],,,,,,,,,,
Nottinghamshire County Council,1111/1001,Children and Young People,CYP,Transport Related,CCA,26/02/2015,11-16108,1390.8,Town Cars (UK) Ltd,,,,,,,,,,
Nottinghamshire County Council,1111/1001,Children and Young People,CYP,Transport Related,CCA,27/02/2015,11-16180,1400,Abacus Cars,,,,,,,,,,
Nottinghamshire County Council,1111/1001,Children and Young People,CYP,Transport Related,CCA,27/02/2015,11-16181,1400,Abacus Cars,,,,,,,,,,
Nottinghamshire County Council,1111/1001,Children and Young People,CYP,Transport Related,CDA,04/02/2015,11-10543,1411.4,Arrow Specialised Transport Ltd,,,,,,,,,,
Nottinghamshire County Council,1111/1001,Children and Young People,CYP,Transport Related,CDA,04/02/2015,11-10554,746.9,Arrow Specialised Transport Ltd,,,,,,,,,,
Nottinghamshire County Council,1111/1001,Children and Young People,CYP,Transport Related,CDA,04/02/2015,11-10559,1415.9,Arrow Specialised Transport Ltd,,,,,,,,,,
Nottinghamshire County Council,1111/1001,Children and Young People,CYP,Transport Related,CDA,04/02/2015,11-10579,2600,Nottingham Minibuses & Coaches,,,,,,,,,,
Nottinghamshire County Council,1111/1001,Children and Young People,CYP,Transport Related,CDA,04/02/2015,11-10580,2800,Nottingham Minibuses & Coaches,,,,,,,,,,
Nottinghamshire County Council,1111/1001,Children and Young People,CYP,Transport Related,CDA,04/02/2015,11-10582,2500,Nottingham Minibuses & Coaches,,,,,,,,,,
Nottinghamshire County Council,1111/1001,Children and Young People,CYP,Transport Related,CDA,04/02/2015,11-10583,1900,Nottingham Minibuses & Coaches,,,,,,,,,,
Nottinghamshire County Council,1111/1001,Children and Young People,CYP,Transport Related,CDA,04/02/2015,11-10584,2600,Nottingham Minibuses & Coaches,,,,,,,,,,
Nottinghamshire County Council,1111/1001,Children and Young People,CYP,Transport Related,CDA,04/02/2015,11-10585,2800,Nottingham Minibuses & Coaches,,,,,,,,,,
Nottinghamshire County Council,1111/1001,Children and Young People,CYP,Transport Related,CDA,04/02/2015,11-10587,3740,Nottingham Minibuses & Coaches,,,,,,,,,,
Nottinghamshire County Council,1111/1001,Children and Young People,CYP,Transport Related,CDA,04/02/2015,11-10588,7700,Nottingham Minibuses & Coaches,,,,,,,,,,
Nottinghamshire County Council,1111/1001,Children and Young People,CYP,Transport Related,CDA,04/02/2015,11-10641,747.5,Fozcabs Newark Taxis,,,,,,,,,,
Nottinghamshire County Council,1111/1001,Children and Young People,CYP,Transport Related,CDA,04/02/2015,11-10644,1140,Galaxy Cabs,,,,,,,,,,
Nottinghamshire County Council,1111/1001,Children and Young People,CYP,Transport Related,CDA,04/02/2015,11-10668,907.8,P & P Taxis,,,,,,,,,,
Nottinghamshire County Council,1111/1001,Children and Young People,CYP,Transport Related,CDA,06/02/2015,11-10895,504.36,Arrow Specialised Transport Ltd,,,,,,,,,,
Nottinghamshire County Council,1111/1001,Children and Young People,CYP,Transport Related,CDA,06/02/2015,11-10914,201.66,Bridges Transport Services,,,,,,,,,,
Nottinghamshire County Council,1111/1001,Children and Young People,CYP,Transport Related,CDA,06/02/2015,11-10929,40.78,Fozcabs Newark Taxis,,,,,,,,,,
Nottinghamshire County Council,1111/1001,Children and Young People,CYP,Transport Related,CDA,06/02/2015,11-10944,1187.5,Sprays Transport Ltd,,,,,,,,,,
Nottinghamshire County Council,1111/1001,Children and Young People,CYP,Transport Related,CDA,06/02/2015,11-10950,532.3,Sprays Transport Ltd,,,,,,,,,,
Nottinghamshire County Council,1111/1001,Children and Young People,CYP,Transport Related,CDA,06/02/2015,11-10983,685,D G Private Hire Ltd,,,,,,,,,,
Nottinghamshire County Council,1111/1001,Children and Young People,CYP,Transport Related,CDA,06/02/2015,11-10995,925,D G Private Hire Ltd,,,,,,,,,,
Nottinghamshire County Council,1111/1001,Children and Young People,CYP,Transport Related,CDA,06/02/2015,11-10996,1600,D G Private Hire Ltd,,,,,,,,,,
Nottinghamshire County Council,1111/1001,Children and Young People,CYP,Transport Related,CDA,06/02/2015,11-10999,3608,AOT Coaches,,,,,,,,,,
Nottinghamshire County Council,1111/1001,Children and Young People,CYP,Transport Related,CDA,06/02/2015,11-11000,1980,AOT Coaches,,,,,,,,,,
Nottinghamshire County Council,1111/1001,Children and Young People,CYP,Transport Related,CDA,10/02/2015,11-11320,192,Central Cars Nottm Ltd,,,,,,,,,,
Nottinghamshire County Council,1111/1001,Children and Young People,CYP,Transport Related,CDA,10/02/2015,11-11359,1096.11,D G Private Hire Ltd,,,,,,,,,,
Nottinghamshire County Council,1111/1001,Children and Young People,CYP,Transport Related,CDA,10/02/2015,11-11361,350,D G Private Hire Ltd,,,,,,,,,,
Nottinghamshire County Council,1111/1001,Children and Young People,CYP,Transport Related,CDA,10/02/2015,11-11368,3200,Abacus Cars,,,,,,,,,,
Nottinghamshire County Council,1111/1001,Children and Young People,CYP,Transport Related,CDA,10/02/2015,11-11370,700,Abacus Cars,,,,,,,,,,
Nottinghamshire County Council,1111/1001,Children and Young People,CYP,Transport Related,CDA,17/02/2015,11-11794,6364.8,Paul S Winson Coaches,,,,,,,,,,
Nottinghamshire County Council,1111/1001,Children and Young People,CYP,Transport Related,CDA,18/02/2015,11-11915,978.15,BN Gibson Ltd,,,,,,,,,,
Nottinghamshire County Council,1111/1001,Children and Young People,CYP,Transport Related,CDA,18/02/2015,11-11931,3500,Eurocab 2000 Ltd,,,,,,,,,,
Nottinghamshire County Council,1111/1001,Children and Young People,CYP,Supplies & Services,DAA,02/02/2015,11-10133,167198.13,St Philip Neri with St Bede Vol Aca,,,,,,,,,,
Nottinghamshire County Council,1111/1001,Children and Young People,CYP,Supplies & Services,DBA,03/02/2015,11-10416,233.83,Hallam Country Fresh Foods Ltd,,,,,,,,,,
Nottinghamshire County Council,1111/1001,Children and Young People,CYP,Supplies & Services,DBA,06/02/2015,11-11063,78.97,M Maloney Country Butchers & B Ltd,,,,,,,,,,
Nottinghamshire County Council,1111/1001,Children and Young People,CYP,Supplies & Services,DBA,11/02/2015,11-11500,147.29,Brake Bros Ltd,,,,,,,,,,
Nottinghamshire County Council,1111/1001,Children and Young People,CYP,Supplies & Services,DBA,11/02/2015,11-11503,535.18,Brake Bros Ltd,,,,,,,,,,
Nottinghamshire County Council,1111/1001,Children and Young People,CYP,Supplies & Services,DBA,11/02/2015,11-11508,336.75,Brake Bros Ltd,,,,,,,,,,
Nottinghamshire County Council,1111/1001,Children and Young People,CYP,Supplies & Services,DBA,11/02/2015,11-11511,496.66,Brake Bros Ltd,,,,,,,,,,
Nottinghamshire County Council,1111/1001,Children and Young People,CYP,Supplies & Services,DBA,18/02/2015,11-11900,345.3,Brake Bros Ltd,,,,,,,,,,
Nottinghamshire County Council,1111/1001,Children and Young People,CYP,Supplies & Services,DBA,18/02/2015,11-11903,359.46,Brake Bros Ltd,,,,,,,,,,
Nottinghamshire County Council,1111/1001,Children and Young People,CYP,Supplies & Services,DBA,18/02/2015,11-11906,289.23,Brake Bros Ltd,,,,,,,,,,
Nottinghamshire County Council,1111/1001,Children and Young People,CYP,Supplies & Services,DBA,18/02/2015,11-11909,438.44,Brake Bros Ltd,,,,,,,,,,
Nottinghamshire County Council,1111/1001,Children and Young People,CYP,Supplies & Services,DBA,24/02/2015,11-15998,72.6,M Maloney Country Butchers & B Ltd,,,,,,,,,,
Nottinghamshire County Council,1111/1001,Children and Young People,CYP,Supplies & Services,DBA,24/02/2015,11-16002,78.8,M Maloney Country Butchers & B Ltd,,,,,,,,,,
Nottinghamshire County Council,1111/1001,Children and Young People,CYP,Supplies & Services,DBA,24/02/2015,11-16006,75.19,M Maloney Country Butchers & B Ltd,,,,,,,,,,
Nottinghamshire County Council,1111/1001,Children and Young People,CYP,Supplies & Services,DBA,26/02/2015,11-16136,120.08,Brake Bros Ltd,,,,,,,,,,
Nottinghamshire County Council,1111/1001,Children and Young People,CYP,Supplies & Services,DBA,26/02/2015,11-16140,558.72,Brake Bros Ltd,,,,,,,,,,
Nottinghamshire County Council,1111/1001,Children and Young People,CYP,Supplies & Services,DBA,26/02/2015,11-16143,76.79,Brake Bros Ltd,,,,,,,,,,
Nottinghamshire County Council,1111/1001,Children and Young People,CYP,Supplies & Services,DBA,26/02/2015,11-16147,151.82,Brake Bros Ltd,,,,,,,,,,
Nottinghamshire County Council,1111/1001,Children and Young People,CYP,Supplies & Services,DEA,02/02/2015,11-16192,1350,E Learning Team Ltd,,,,,,,,,,
Nottinghamshire County Council,1111/1001,Children and Young People,CYP,Supplies & Services,DEA,19/02/2015,11-11938,732.56,South Locality Youth Service,,,,,,,,,,
Nottinghamshire County Council,1111/1001,Children and Young People,CYP,Supplies & Services,DEA,19/02/2015,11-11939,561.57,South Locality Youth Service,,,,,,,,,,
Nottinghamshire County Council,1111/1001,Children and Young People,CYP,Supplies & Services,DFA,04/02/2015,11-10719,564.67,Lantec Services Ltd,,,,,,,,,,
Nottinghamshire County Council,1111/1001,Children and Young People,CYP,Supplies & Services,DFA,12/02/2015,11-11587,574.27,Lantec Services Ltd,,,,,,,,,,
Nottinghamshire County Council,1111/1001,Children and Young People,CYP,Supplies & Services,DHA,16/02/2015,11-11714,10000,P B Property Developments Ltd,,,,,,,,,,
Nottinghamshire County Council,1111/1001,Children and Young People,CYP,Supplies & Services,DKA,06/02/2015,11-10869,32197.43,Burton Joyce Primary School,,,,,,,,,,
Nottinghamshire County Council,1111/1001,Children and Young People,CYP,Supplies & Services,DKA,09/02/2015,11-11094,672,200 Cars Ltd,,,,,,,,,,
Nottinghamshire County Council,1111/1001,Children and Young People,CYP,Supplies & Services,DKA,12/02/2015,11-11625,700,CDF,,,,,,,,,,
Nottinghamshire County Council,1111/1001,Children and Young People,CYP,Supplies & Services,DKA,16/02/2015,11-11757,1900,Samworth Academy,,,,,,,,,,
Nottinghamshire County Council,1111/1001,Children and Young People,CYP,Supplies & Services,DKA,16/02/2015,11-11758,6960,St Philip Neri with St Bede Vol Aca,,,,,,,,,,
Nottinghamshire County Council,1111/1001,Children and Young People,CYP,Supplies & Services,DKA,17/02/2015,11-11786,618,Midlands Women'S Aid,,,,,,,,,,
Nottinghamshire County Council,1111/1001,Children and Young People,CYP,Supplies & Services,DKA,18/02/2015,11-11860,630,Rosehill Special School,,,,,,,,,,
Nottinghamshire County Council,1111/1001,Children and Young People,CYP,Supplies & Services,DKA,18/02/2015,11-11861,1900,Christ The King Catholic Voluntary,,,,,,,,,,
Nottinghamshire County Council,1111/1001,Children and Young People,CYP,Supplies & Services,DKA,18/02/2015,11-11913,1890,Blackwell Primary School,,,,,,,,,,
Nottinghamshire County Council,1111/1001,Children and Young People,CYP,Supplies & Services,DKA,19/02/2015,11-11948,8840,Quarrydale Academy,,,,,,,,,,
Nottinghamshire County Council,1111/1001,Children and Young People,CYP,Supplies & Services,DKA,26/02/2015,11-16109,4420,Barnby Road Academy Prim & Nursery,,,,,,,,,,
Nottinghamshire County Council,1111/1001,Children and Young People,CYP,Supplies & Services,DKA,26/02/2015,11-16110,6320,National Church Of England Academy,,,,,,,,,,
Nottinghamshire County Council,1111/1001,Children and Young People,CYP,Third Party Payments,EBA,25/02/2015,11-12051,17717.82,East Leake Schools Ltd,,,,,,,,,,
Nottinghamshire County Council,1111/1001,Children and Young People,CYP,Third Party Payments,EBA,25/02/2015,11-12053,40375.7,Transform Schools,,,,,,,,,,
Nottinghamshire County Council,1111/1001,Children and Young People,CYP,Third Party Payments,EBA,25/02/2015,11-12054,26592.9,Transform Schools,,,,,,,,,,
Nottinghamshire County Council,1111/1001,Children and Young People,CYP,Third Party Payments,EBA,25/02/2015,11-12055,26258.08,Transform Schools,,,,,,,,,,
Nottinghamshire County Council,1111/1001,Children and Young People,CYP,Third Party Payments,EBA,25/02/2015,11-12056,2489.62,Transform Schools,,,,,,,,,,
Nottinghamshire County Council,1111/1001,Children and Young People,CYP,Third Party Payments,EBA,25/02/2015,11-12057,5121.11,Transform Schools,,,,,,,,,,
Nottinghamshire County Council,1111/1001,Children and Young People,CYP,Third Party Payments,EBA,25/02/2015,11-12058,9269.64,Transform Schools,,,,,,,,,,
Nottinghamshire County Council,1111/1001,Children and Young People,CYP,Third Party Payments,EBA,25/02/2015,11-12238,1491523.94,Transform Schools,,,,,,,,,,
Nottinghamshire County Council,1111/1001,Children and Young People,CYP,Third Party Payments,EBA,25/02/2015,11-12240,246198.87,East Leake Schools Ltd,,,,,,,,,,
Nottinghamshire County Council,1111/1001,Children and Young People,CYP,Third Party Payments,EBA,26/02/2015,11-16154,25137.43,Home Group Limited,,,,,,,,,,
Nottinghamshire County Council,1111/1001,Children and Young People,CYP,Third Party Payments,EBA,26/02/2015,11-16159,22405.78,Newark Emmaus Trust,,,,,,,,,,
Nottinghamshire County Council,1111/1001,Children and Young People,CYP,Third Party Payments,EBA,26/02/2015,11-16163,25888.32,Framework Housing Association,,,,,,,,,,
Nottinghamshire County Council,1111/1001,Children and Young People,CYP,Third Party Payments,EBA,26/02/2015,11-16165,24007.24,Nottingham Community Housing,,,,,,,,,,
Nottinghamshire County Council,1111/1001,Children and Young People,CYP,Third Party Payments,EDA,03/02/2015,11-10439,4214,West Bridgford Academy,,,,,,,,,,
Nottinghamshire County Council,1111/1001,Children and Young People,CYP,Third Party Payments,EDA,03/02/2015,11-10440,500,Toothill Academy,,,,,,,,,,
Nottinghamshire County Council,1111/1001,Children and Young People,CYP,Third Party Payments,EDA,03/02/2015,11-10443,3376,St Philip Neri with St Bede Vol Aca,,,,,,,,,,
Nottinghamshire County Council,1111/1001,Children and Young People,CYP,Third Party Payments,EDA,03/02/2015,11-10447,6037,Carlton Le Willows Academy,,,,,,,,,,
Nottinghamshire County Council,1111/1001,Children and Young People,CYP,Third Party Payments,EDA,03/02/2015,11-10448,5400,The Carlton Academy,,,,,,,,,,
Nottinghamshire County Council,1111/1001,Children and Young People,CYP,Third Party Payments,EDA,03/02/2015,11-10449,20380,George Spencer Academy,,,,,,,,,,
Nottinghamshire County Council,1111/1001,Children and Young People,CYP,Third Party Payments,EDA,04/02/2015,11-10023,46519,The Beech Academy,,,,,,,,,,
Nottinghamshire County Council,1111/1001,Children and Young People,CYP,Third Party Payments,EDA,05/02/2015,11-10027,23531,Arnbrook Primary Academy,,,,,,,,,,
Nottinghamshire County Council,1111/1001,Children and Young People,CYP,Third Party Payments,EDA,05/02/2015,11-10028,990,Archbishop Cranmer C of E Academy,,,,,,,,,,
Nottinghamshire County Council,1111/1001,Children and Young People,CYP,Third Party Payments,EDA,05/02/2015,11-10088,26916,Bishop Alexander LEAD Academy,,,,,,,,,,
Nottinghamshire County Council,1111/1001,Children and Young People,CYP,Third Party Payments,EDA,05/02/2015,11-10089,17825,Birklands Primary (Academy),,,,,,,,,,
Nottinghamshire County Council,1111/1001,Children and Young People,CYP,Third Party Payments,EDA,05/02/2015,11-10090,37699,Hillside Primary & Nursery School (,,,,,,,,,,
Nottinghamshire County Council,1111/1001,Children and Young People,CYP,Third Party Payments,EDA,05/02/2015,11-10091,13289,Kingston Park Academy,,,,,,,,,,
Nottinghamshire County Council,1111/1001,Children and Young People,CYP,Third Party Payments,EDA,05/02/2015,11-10092,36755,Leamington Primary & Nursery Academ,,,,,,,,,,
Nottinghamshire County Council,1111/1001,Children and Young People,CYP,Third Party Payments,EDA,05/02/2015,11-10093,30540,Mansfield Primary Academy,,,,,,,,,,
Nottinghamshire County Council,1111/1001,Children and Young People,CYP,Third Party Payments,EDA,05/02/2015,11-10094,54760,Norbridge Academy,,,,,,,,,,
Nottinghamshire County Council,1111/1001,Children and Young People,CYP,Third Party Payments,EDA,05/02/2015,11-10095,41116,Peafield Lane Academy,,,,,,,,,,
Nottinghamshire County Council,1111/1001,Children and Young People,CYP,Third Party Payments,EDA,05/02/2015,11-10096,28850,Sparken Hill Academy,,,,,,,,,,
Nottinghamshire County Council,1111/1001,Children and Young People,CYP,Third Party Payments,EDA,05/02/2015,11-10097,22597,St Patricks Catholic Voluntary Acad,,,,,,,,,,
Nottinghamshire County Council,1111/1001,Children and Young People,CYP,Third Party Payments,EDA,05/02/2015,11-10098,2630,St Peters C of E Academy,,,,,,,,,,
Nottinghamshire County Council,1111/1001,Children and Young People,CYP,Third Party Payments,EDA,05/02/2015,11-10099,10199,Sunnyside Spencer Academy,,,,,,,,,,
Nottinghamshire County Council,1111/1001,Children and Young People,CYP,Third Party Payments,EDA,05/02/2015,11-10100,24200,The Flying High Academy,,,,,,,,,,
Nottinghamshire County Council,1111/1001,Children and Young People,CYP,Third Party Payments,EDA,05/02/2015,11-10107,22401,Holy Trinity Catholic Voluntary Aca,,,,,,,,,,
Nottinghamshire County Council,1111/1001,Children and Young People,CYP,Third Party Payments,EDA,09/02/2015,11-11072,81782,Foxwood Academy,,,,,,,,,,
Nottinghamshire County Council,1111/1001,Children and Young People,CYP,Third Party Payments,EDA,09/02/2015,11-11073,46519,The Beech Academy,,,,,,,,,,
Nottinghamshire County Council,1111/1001,Children and Young People,CYP,Third Party Payments,EDA,12/02/2015,11-11596,2747,Ashfield Academy,,,,,,,,,,
Nottinghamshire County Council,1111/1001,Children and Young People,CYP,Third Party Payments,EDA,12/02/2015,11-11597,3647,Ashfield Academy,,,,,,,,,,
Nottinghamshire County Council,1111/1001,Children and Young People,CYP,Third Party Payments,EDA,12/02/2015,11-11598,2324,Quarrydale Academy,,,,,,,,,,
Nottinghamshire County Council,1111/1001,Children and Young People,CYP,Third Party Payments,EDA,12/02/2015,11-11599,2747,The Brunts Academy,,,,,,,,,,
Nottinghamshire County Council,1111/1001,Children and Young People,CYP,Third Party Payments,EDA,12/02/2015,11-11600,2747,The Brunts Academy,,,,,,,,,,
Nottinghamshire County Council,1111/1001,Children and Young People,CYP,Third Party Payments,EDA,12/02/2015,11-11601,1846,Sacred Heart Catholic Voluntary Aca,,,,,,,,,,
Nottinghamshire County Council,1111/1001,Children and Young People,CYP,Third Party Payments,EDA,12/02/2015,11-11602,1946,Holy Cross Catholic Voluntary Acade,,,,,,,,,,
Nottinghamshire County Council,1111/1001,Children and Young People,CYP,Third Party Payments,EDA,12/02/2015,11-11603,2307,Christ The King Catholic Voluntary,,,,,,,,,,
Nottinghamshire County Council,1111/1001,Children and Young People,CYP,Third Party Payments,EDA,12/02/2015,11-11607,2899,Serlby Park Academy,,,,,,,,,,
Nottinghamshire County Council,1111/1001,Children and Young People,CYP,Third Party Payments,EDA,12/02/2015,11-11608,2700,The Priory Catholic Voluntary Acade,,,,,,,,,,
Nottinghamshire County Council,1111/1001,Children and Young People,CYP,Third Party Payments,EDA,12/02/2015,11-11609,4700,The Elizabethan Academy,,,,,,,,,,
Nottinghamshire County Council,1111/1001,Children and Young People,CYP,Third Party Payments,EDA,12/02/2015,11-11612,30490,The Brunts Academy,,,,,,,,,,
Nottinghamshire County Council,1111/1001,Children and Young People,CYP,Third Party Payments,EDA,12/02/2015,11-11614,1272,Arnold Hill Academy,,,,,,,,,,
Nottinghamshire County Council,1111/1001,Children and Young People,CYP,Third Party Payments,EDA,12/02/2015,11-11615,47829,Ashfield Academy,,,,,,,,,,
Nottinghamshire County Council,1111/1001,Children and Young People,CYP,Third Party Payments,EDA,12/02/2015,11-11616,1666,Barnby Road Academy Prim & Nursery,,,,,,,,,,
Nottinghamshire County Council,1111/1001,Children and Young People,CYP,Third Party Payments,EDA,12/02/2015,11-11617,1670,Tuxford Primary Academy,,,,,,,,,,
Nottinghamshire County Council,1111/1001,Children and Young People,CYP,Third Party Payments,EDA,12/02/2015,11-11618,1484,Good Shephard Prim Catholic Vol Aca,,,,,,,,,,
Nottinghamshire County Council,1111/1001,Children and Young People,CYP,Third Party Payments,EDA,12/02/2015,11-11619,8600,Queen Elizabeth's Academy,,,,,,,,,,
Nottinghamshire County Council,1111/1001,Children and Young People,CYP,Third Party Payments,EDA,17/02/2015,11-11800,11700,Wainwright Primary Academy,,,,,,,,,,
Nottinghamshire County Council,1111/1001,Children and Young People,CYP,Third Party Payments,EDA,24/02/2015,11-16019,565,Queen Elizabeth's Academy,,,,,,,,,,
Nottinghamshire County Council,1111/1001,Children and Young People,CYP,Third Party Payments,EDA,24/02/2015,11-16020,2247,Cotgrave Candleby Lane School,,,,,,,,,,
Nottinghamshire County Council,1111/1001,Children and Young People,CYP,Third Party Payments,EDA,24/02/2015,11-16031,2247,South Nottinghamshire Academy,,,,,,,,,,
Nottinghamshire County Council,1111/1001,Children and Young People,CYP,Third Party Payments,EDA,24/02/2015,11-16032,2515,Dukeries Academy,,,,,,,,,,
Nottinghamshire County Council,1111/1001,Children and Young People,CYP,Third Party Payments,EDA,24/02/2015,11-16033,4736,Kirkby College,,,,,,,,,,
Nottinghamshire County Council,1111/1001,Children and Young People,CYP,Third Party Payments,EDA,24/02/2015,11-16034,1713,The South Wolds Academy & Sixth For,,,,,,,,,,
Nottinghamshire County Council,1111/1001,Children and Young People,CYP,Third Party Payments,EDA,24/02/2015,11-16035,10843,Serlby Park Academy,,,,,,,,,,
Nottinghamshire County Council,1111/1001,Children and Young People,CYP,Third Party Payments,EDA,24/02/2015,11-16036,2301,Kirkby College,,,,,,,,,,
Nottinghamshire County Council,1111/1001,Children and Young People,CYP,Third Party Payments,EDA,24/02/2015,11-16037,3358,The Priory Catholic Voluntary Acade,,,,,,,,,,
Nottinghamshire County Council,1111/1001,Children and Young People,CYP,Third Party Payments,EDA,24/02/2015,11-16038,800,Toothill Academy,,,,,,,,,,
Nottinghamshire County Council,1111/1001,Children and Young People,CYP,Third Party Payments,EDA,24/02/2015,11-16039,4804,Ashfield Academy,,,,,,,,,,
Nottinghamshire County Council,1111/1001,Children and Young People,CYP,Third Party Payments,EDA,24/02/2015,11-16040,870,The Elizabethan Academy,,,,,,,,,,
Nottinghamshire County Council,1111/1001,Children and Young People,CYP,Third Party Payments,EDA,24/02/2015,11-16041,1445,The Brunts Academy,,,,,,,,,,
Nottinghamshire County Council,1111/1001,Children and Young People,CYP,Third Party Payments,EDA,25/02/2015,11-16086,565,Wainwright Primary Academy,,,,,,,,,,
Nottinghamshire County Council,1111/1001,Children and Young People,CYP,Third Party Payments,EDA,27/02/2015,11-10441,2302,The Bramcote School,,,,,,,,,,
Nottinghamshire County Council,1111/1001,Children and Young People,CYP,Third Party Payments,EDA,27/02/2015,11-10442,2530,All Saints Catholic Voluntary Acade,,,,,,,,,,
Nottinghamshire County Council,1111/1001,Children and Young People,CYP,Third Party Payments,EDA,27/02/2015,11-10444,2530,Holy Trinity Catholic Voluntary Aca,,,,,,,,,,
Nottinghamshire County Council,1111/1001,Children and Young People,CYP,Third Party Payments,EDA,27/02/2015,11-10445,3810,St Patricks Catholic Voluntary Acad,,,,,,,,,,
Nottinghamshire County Council,1111/1001,Children and Young People,CYP,Third Party Payments,EDA,27/02/2015,11-10446,6579,East Leake Academy,,,,,,,,,,
Nottinghamshire County Council,1111/1001,Children and Young People,CYP,Third Party Payments,EGA,02/02/2015,11-16193,19285.8,Independent Childcare Group Of Schs,,,,,,,,,,
Nottinghamshire County Council,1111/1001,Children and Young People,CYP,Third Party Payments,EGA,02/02/2015,11-16195,3158.75,[Redacted],,,,,,,,,,
Nottinghamshire County Council,1111/1001,Children and Young People,CYP,Third Party Payments,EGA,02/02/2015,11-16196,1130074.33,Nottinghamshire Healthcare Nhs Trus,,,,,,,,,,
Nottinghamshire County Council,1111/1001,Children and Young People,CYP,Third Party Payments,EGA,03/02/2015,11-10429,835.66,Nottingham Community Housing,,,,,,,,,,
Nottinghamshire County Council,1111/1001,Children and Young People,CYP,Third Party Payments,EGA,04/02/2015,11-10715,1924.02,Hucknall Day Nursery,,,,,,,,,,
Nottinghamshire County Council,1111/1001,Children and Young People,CYP,Third Party Payments,EGA,04/02/2015,11-10716,641.34,[Redacted],,,,,,,,,,
Nottinghamshire County Council,1111/1001,Children and Young People,CYP,Third Party Payments,EGA,04/02/2015,11-10717,641.34,[Redacted],,,,,,,,,,
Nottinghamshire County Council,1111/1001,Children and Young People,CYP,Third Party Payments,EGA,04/02/2015,11-10718,641.34,Amandas Birth - 11 Childcare,,,,,,,,,,
Nottinghamshire County Council,1111/1001,Children and Young People,CYP,Third Party Payments,EGA,04/02/2015,11-16197,9964,Broadwood Educational Services Ltd,,,,,,,,,,
Nottinghamshire County Council,1111/1001,Children and Young People,CYP,Third Party Payments,EGA,06/02/2015,11-10929,550.53,Fozcabs Newark Taxis,,,,,,,,,,
Nottinghamshire County Council,1111/1001,Children and Young People,CYP,Third Party Payments,EGA,06/02/2015,11-11050,513.07,[Redacted],,,,,,,,,,
Nottinghamshire County Council,1111/1001,Children and Young People,CYP,Third Party Payments,EGA,09/02/2015,11-10714,13277.88,PSLA Newstead Childcare,,,,,,,,,,
Nottinghamshire County Council,1111/1001,Children and Young People,CYP,Third Party Payments,EGA,11/02/2015,11-11515,950.04,Jubilee House Christian School,,,,,,,,,,
Nottinghamshire County Council,1111/1001,Children and Young People,CYP,Third Party Payments,EGA,12/02/2015,11-11528,616,Serendipity Day Nursery,,,,,,,,,,
Nottinghamshire County Council,1111/1001,Children and Young People,CYP,Third Party Payments,EGA,12/02/2015,11-11529,504,Buttercross Pre School,,,,,,,,,,
Nottinghamshire County Council,1111/1001,Children and Young People,CYP,Third Party Payments,EGA,12/02/2015,11-11530,630,Alphabet House Nursery,,,,,,,,,,
Nottinghamshire County Council,1111/1001,Children and Young People,CYP,Third Party Payments,EGA,13/02/2015,11-11655,714,Safe Haven Day Nursery,,,,,,,,,,
Nottinghamshire County Council,1111/1001,Children and Young People,CYP,Third Party Payments,EGA,16/02/2015,11-11752,641.34,[Redacted],,,,,,,,,,
Nottinghamshire County Council,1111/1001,Children and Young People,CYP,Third Party Payments,EGA,16/02/2015,11-11753,11899.44,Smarties Private Day Nursery,,,,,,,,,,
Nottinghamshire County Council,1111/1001,Children and Young People,CYP,Third Party Payments,EGA,16/02/2015,11-11754,641.34,Fleur De Lys Pre School,,,,,,,,,,
Nottinghamshire County Council,1111/1001,Children and Young People,CYP,Third Party Payments,EGA,16/02/2015,11-11755,1068.9,Fleur De Lys Pre School,,,,,,,,,,
Nottinghamshire County Council,1111/1001,Children and Young People,CYP,Third Party Payments,EGA,16/02/2015,11-11756,1068.9,Stapleford Day Nursery,,,,,,,,,,
Nottinghamshire County Council,1111/1001,Children and Young People,CYP,Third Party Payments,EGA,18/02/2015,11-11516,641.34,Lorraine Daniels Childminding Servi,,,,,,,,,,
Nottinghamshire County Council,1111/1001,Children and Young People,CYP,Third Party Payments,EGA,23/02/2015,11-12060,8147.16,Sconce Hills Pre-School Playgroup,,,,,,,,,,
Nottinghamshire County Council,1111/1001,Children and Young People,CYP,Third Party Payments,EGA,23/02/2015,11-12061,16649.64,Good Foundations Day Nursery,,,,,,,,,,
Nottinghamshire County Council,1111/1001,Children and Young People,CYP,Third Party Payments,EGA,23/02/2015,11-12062,641.34,[Redacted],,,,,,,,,,
Nottinghamshire County Council,1111/1001,Children and Young People,CYP,Support Services,HAA,04/02/2015,11-10492,1700,All Wayz Travel,,,,,,,,,,
Nottinghamshire County Council,1111/1001,Children and Young People,CYP,Support Services,HAA,04/02/2015,11-10493,1400,All Wayz Travel,,,,,,,,,,
Nottinghamshire County Council,1111/1001,Children and Young People,CYP,Support Services,HAA,04/02/2015,11-10578,1800,Nottingham Minibuses & Coaches,,,,,,,,,,
Nottinghamshire County Council,1111/1001,Children and Young People,CYP,Support Services,HAA,04/02/2015,11-10581,3000,Nottingham Minibuses & Coaches,,,,,,,,,,
Nottinghamshire County Council,1111/1001,Children and Young People,CYP,Support Services,HAA,04/02/2015,11-10593,7735.1,Freeway Coaches Ltd,,,,,,,,,,
Nottinghamshire County Council,1111/1001,Children and Young People,CYP,Support Services,HAA,04/02/2015,11-10594,2820,Freeway Coaches Ltd,,,,,,,,,,
Nottinghamshire County Council,1111/1001,Children and Young People,CYP,Support Services,HAA,04/02/2015,11-10595,2550,Freeway Coaches Ltd,,,,,,,,,,
Nottinghamshire County Council,1111/1001,Children and Young People,CYP,Support Services,HAA,04/02/2015,11-10596,1588.8,Freeway Coaches Ltd,,,,,,,,,,
Nottinghamshire County Council,1111/1001,Children and Young People,CYP,Support Services,HAA,04/02/2015,11-10597,2500,Freeway Coaches Ltd,,,,,,,,,,
Nottinghamshire County Council,1111/1001,Children and Young People,CYP,Support Services,HAA,04/02/2015,11-10598,2370,Kettlewell Retford Ltd,,,,,,,,,,
Nottinghamshire County Council,1111/1001,Children and Young People,CYP,Support Services,HAA,04/02/2015,11-10599,2205,Kettlewell Retford Ltd,,,,,,,,,,
Nottinghamshire County Council,1111/1001,Children and Young People,CYP,Support Services,HAA,04/02/2015,11-10600,2190,Kettlewell Retford Ltd,,,,,,,,,,
Nottinghamshire County Council,1111/1001,Children and Young People,CYP,Support Services,HAA,04/02/2015,11-10601,2871,Kettlewell Retford Ltd,,,,,,,,,,
Nottinghamshire County Council,1111/1001,Children and Young People,CYP,Support Services,HAA,04/02/2015,11-10602,2313,Kettlewell Retford Ltd,,,,,,,,,,
Nottinghamshire County Council,1111/1001,Children and Young People,CYP,Support Services,HAA,04/02/2015,11-10603,2313,Kettlewell Retford Ltd,,,,,,,,,,
Nottinghamshire County Council,1111/1001,Children and Young People,CYP,Support Services,HAA,04/02/2015,11-10604,3000,Kettlewell Retford Ltd,,,,,,,,,,
Nottinghamshire County Council,1111/1001,Children and Young People,CYP,Support Services,HAA,04/02/2015,11-10634,897.6,Fozcabs Newark Taxis,,,,,,,,,,
Nottinghamshire County Council,1111/1001,Children and Young People,CYP,Support Services,HAA,04/02/2015,11-10635,1395,Fozcabs Newark Taxis,,,,,,,,,,
Nottinghamshire County Council,1111/1001,Children and Young People,CYP,Support Services,HAA,04/02/2015,11-10664,1200,K & R Cars,,,,,,,,,,
Nottinghamshire County Council,1111/1001,Children and Young People,CYP,Support Services,HAA,04/02/2015,11-10665,1924,Ashfield Travel,,,,,,,,,,
Nottinghamshire County Council,1111/1001,Children and Young People,CYP,Support Services,HAA,04/02/2015,11-10670,1560,P & P Taxis,,,,,,,,,,
Nottinghamshire County Council,1111/1001,Children and Young People,CYP,Support Services,HAA,04/02/2015,11-10674,2847.9,Freeway Coaches Ltd,,,,,,,,,,
Nottinghamshire County Council,1111/1001,Children and Young People,CYP,Support Services,HAA,04/02/2015,11-10675,1580,Paul S Winson Coaches,,,,,,,,,,
Nottinghamshire County Council,1111/1001,Children and Young People,CYP,Support Services,HAA,04/02/2015,11-10676,3446.75,C W Moxon Ltd,,,,,,,,,,
Nottinghamshire County Council,1111/1001,Children and Young People,CYP,Support Services,HAA,04/02/2015,11-10677,6270,C W Moxon Ltd,,,,,,,,,,
Nottinghamshire County Council,1111/1001,Children and Young People,CYP,Support Services,HAA,04/02/2015,11-10678,3400,C W Moxon Ltd,,,,,,,,,,
Nottinghamshire County Council,1111/1001,Children and Young People,CYP,Support Services,HAA,04/02/2015,11-10679,3400.9,C W Moxon Ltd,,,,,,,,,,
Nottinghamshire County Council,1111/1001,Children and Young People,CYP,Support Services,HAA,04/02/2015,11-10680,2744.1,C W Moxon Ltd,,,,,,,,,,
Nottinghamshire County Council,1111/1001,Children and Young People,CYP,Support Services,HAA,04/02/2015,11-10681,2928,C W Moxon Ltd,,,,,,,,,,
Nottinghamshire County Council,1111/1001,Children and Young People,CYP,Support Services,HAA,04/02/2015,11-10691,2656.7,Nottingham Coaches,,,,,,,,,,
Nottinghamshire County Council,1111/1001,Children and Young People,CYP,Support Services,HAA,04/02/2015,11-10692,2641,Nottingham Coaches,,,,,,,,,,
Nottinghamshire County Council,1111/1001,Children and Young People,CYP,Support Services,HAA,04/02/2015,11-10693,2431,Nottingham Coaches,,,,,,,,,,
Nottinghamshire County Council,1111/1001,Children and Young People,CYP,Support Services,HAA,06/02/2015,11-10890,2266.4,Arnold Acorn Travel,,,,,,,,,,
Nottinghamshire County Council,1111/1001,Children and Young People,CYP,Support Services,HAA,06/02/2015,11-10919,596.7,Bridges Transport Services,,,,,,,,,,
Nottinghamshire County Council,1111/1001,Children and Young People,CYP,Support Services,HAA,06/02/2015,11-10970,2124,Sprays Transport Ltd,,,,,,,,,,
Nottinghamshire County Council,1111/1001,Children and Young People,CYP,Support Services,HAA,06/02/2015,11-10973,1530,F & J Marriott T/A Unity Coaches,,,,,,,,,,
Nottinghamshire County Council,1111/1001,Children and Young People,CYP,Support Services,HAA,06/02/2015,11-10974,2322,F & J Marriott T/A Unity Coaches,,,,,,,,,,
Nottinghamshire County Council,1111/1001,Children and Young People,CYP,Support Services,HAA,06/02/2015,11-10975,1859.5,F & J Marriott T/A Unity Coaches,,,,,,,,,,
Nottinghamshire County Council,1111/1001,Children and Young People,CYP,Support Services,HAA,06/02/2015,11-10984,540,D G Private Hire Ltd,,,,,,,,,,
Nottinghamshire County Council,1111/1001,Children and Young People,CYP,Support Services,HAA,06/02/2015,11-10997,3200,AOT Coaches,,,,,,,,,,
Nottinghamshire County Council,1111/1001,Children and Young People,CYP,Support Services,HAA,06/02/2015,11-10998,3200,AOT Coaches,,,,,,,,,,
Nottinghamshire County Council,1111/1001,Children and Young People,CYP,Support Services,HAA,06/02/2015,11-11001,3001,AOT Coaches,,,,,,,,,,
Nottinghamshire County Council,1111/1001,Children and Young People,CYP,Support Services,HAA,06/02/2015,11-11002,2370,AOT Coaches,,,,,,,,,,
Nottinghamshire County Council,1111/1001,Children and Young People,CYP,Support Services,HAA,06/02/2015,11-11003,2180,AOT Coaches,,,,,,,,,,
Nottinghamshire County Council,1111/1001,Children and Young People,CYP,Support Services,HAA,06/02/2015,11-11004,2505,AOT Coaches,,,,,,,,,,
Nottinghamshire County Council,1111/1001,Children and Young People,CYP,Support Services,HAA,06/02/2015,11-11005,2039.8,Marshalls Of Sutton On Trent Ltd,,,,,,,,,,
Nottinghamshire County Council,1111/1001,Children and Young People,CYP,Support Services,HAA,06/02/2015,11-11014,3300,Marshalls Of Sutton On Trent Ltd,,,,,,,,,,
Nottinghamshire County Council,1111/1001,Children and Young People,CYP,Support Services,HAA,06/02/2015,11-11016,1980,Marshalls Of Sutton On Trent Ltd,,,,,,,,,,
Nottinghamshire County Council,1111/1001,Children and Young People,CYP,Support Services,HAA,06/02/2015,11-11017,3300,Marshalls Of Sutton On Trent Ltd,,,,,,,,,,
Nottinghamshire County Council,1111/1001,Children and Young People,CYP,Support Services,HAA,06/02/2015,11-11018,1909.44,Marshalls Of Sutton On Trent Ltd,,,,,,,,,,
Nottinghamshire County Council,1111/1001,Children and Young People,CYP,Support Services,HAA,06/02/2015,11-11020,13106,Travel Wright Ltd,,,,,,,,,,
Nottinghamshire County Council,1111/1001,Children and Young People,CYP,Support Services,HAA,06/02/2015,11-11022,3414.02,Travel Wright Ltd,,,,,,,,,,
Nottinghamshire County Council,1111/1001,Children and Young People,CYP,Support Services,HAA,06/02/2015,11-11023,3333.36,Travel Wright Ltd,,,,,,,,,,
Nottinghamshire County Council,1111/1001,Children and Young People,CYP,Support Services,HAA,06/02/2015,11-11024,4659.91,Travel Wright Ltd,,,,,,,,,,
Nottinghamshire County Council,1111/1001,Children and Young People,CYP,Support Services,HAA,06/02/2015,11-11026,120,Travel Wright Ltd,,,,,,,,,,
Nottinghamshire County Council,1111/1001,Children and Young People,CYP,Support Services,HAA,06/02/2015,11-11028,2512.77,Travel Wright Ltd,,,,,,,,,,
Nottinghamshire County Council,1111/1001,Children and Young People,CYP,Support Services,HAA,06/02/2015,11-11031,3199,Travel Wright Ltd,,,,,,,,,,
Nottinghamshire County Council,1111/1001,Children and Young People,CYP,Support Services,HAA,06/02/2015,11-11032,1893.71,Travel Wright Ltd,,,,,,,,,,
Nottinghamshire County Council,1111/1001,Children and Young People,CYP,Support Services,HAA,06/02/2015,11-11043,1100,Broadsword Cars,,,,,,,,,,
Nottinghamshire County Council,1111/1001,Children and Young People,CYP,Support Services,HAA,06/02/2015,11-11044,2698,Nottingham Coaches,,,,,,,,,,
Nottinghamshire County Council,1111/1001,Children and Young People,CYP,Support Services,HAA,06/02/2015,11-11045,2965.6,Nottingham Coaches,,,,,,,,,,
Nottinghamshire County Council,1111/1001,Children and Young People,CYP,Support Services,HAA,09/02/2015,11-11090,3297.1,Glenn Ryder Coaches,,,,,,,,,,
Nottinghamshire County Council,1111/1001,Children and Young People,CYP,Support Services,HAA,09/02/2015,11-11091,3347.65,Glenn Ryder Coaches,,,,,,,,,,
Nottinghamshire County Council,1111/1001,Children and Young People,CYP,Support Services,HAA,09/02/2015,11-11097,2552.45,Butler Brothers Ltd,,,,,,,,,,
Nottinghamshire County Council,1111/1001,Children and Young People,CYP,Support Services,HAA,09/02/2015,11-11100,800,Ng11 Cars,,,,,,,,,,
Nottinghamshire County Council,1111/1001,Children and Young People,CYP,Support Services,HAA,09/02/2015,11-11113,3419.9,Gem Mini Travel Ltd,,,,,,,,,,
Nottinghamshire County Council,1111/1001,Children and Young People,CYP,Support Services,HAA,09/02/2015,11-11114,3267.9,Gem Mini Travel Ltd,,,,,,,,,,
Nottinghamshire County Council,1111/1001,Children and Young People,CYP,Support Services,HAA,09/02/2015,11-11115,2510.8,Gem Mini Travel Ltd,,,,,,,,,,
Nottinghamshire County Council,1111/1001,Children and Young People,CYP,Support Services,HAA,09/02/2015,11-11116,3036.3,Gem Mini Travel Ltd,,,,,,,,,,
Nottinghamshire County Council,1111/1001,Children and Young People,CYP,Support Services,HAA,09/02/2015,11-11120,2495,Jb Tours Watnall Ltd,,,,,,,,,,
Nottinghamshire County Council,1111/1001,Children and Young People,CYP,Support Services,HAA,09/02/2015,11-11121,2417.9,Jb Tours Watnall Ltd,,,,,,,,,,
Nottinghamshire County Council,1111/1001,Children and Young People,CYP,Support Services,HAA,09/02/2015,11-11122,2176,Jb Tours Watnall Ltd,,,,,,,,,,
Nottinghamshire County Council,1111/1001,Children and Young People,CYP,Support Services,HAA,09/02/2015,11-11125,1260,Meden Travel,,,,,,,,,,
Nottinghamshire County Council,1111/1001,Children and Young People,CYP,Support Services,HAA,09/02/2015,11-11126,4831.05,Stagecoach Services Ltd,,,,,,,,,,
Nottinghamshire County Council,1111/1001,Children and Young People,CYP,Support Services,HAA,09/02/2015,11-11127,4841,Stagecoach Services Ltd,,,,,,,,,,
Nottinghamshire County Council,1111/1001,Children and Young People,CYP,Support Services,HAA,09/02/2015,11-11131,520,Rio Cabs,,,,,,,,,,
Nottinghamshire County Council,1111/1001,Children and Young People,CYP,Support Services,HAA,09/02/2015,11-11132,1500,Rio Cabs,,,,,,,,,,
Nottinghamshire County Council,1111/1001,Children and Young People,CYP,Support Services,HAA,09/02/2015,11-11136,1009.51,Cotswold CVS Trading Ltd,,,,,,,,,,
Nottinghamshire County Council,1111/1001,Children and Young People,CYP,Support Services,HAA,10/02/2015,11-11371,1200,Abacus Cars,,,,,,,,,,
Nottinghamshire County Council,1111/1001,Children and Young People,CYP,Support Services,HAA,10/02/2015,11-11381,2239.4,Silverdale Tours Nottm Ltd,,,,,,,,,,
Nottinghamshire County Council,1111/1001,Children and Young People,CYP,Support Services,HAA,10/02/2015,11-11382,3139,Silverdale Tours Nottm Ltd,,,,,,,,,,
Nottinghamshire County Council,1111/1001,Children and Young People,CYP,Support Services,HAA,10/02/2015,11-11383,2721.7,Silverdale Tours Nottm Ltd,,,,,,,,,,
Nottinghamshire County Council,1111/1001,Children and Young People,CYP,Support Services,HAA,10/02/2015,11-11384,2935.3,Silverdale Tours Nottm Ltd,,,,,,,,,,
Nottinghamshire County Council,1111/1001,Children and Young People,CYP,Support Services,HAA,10/02/2015,11-11385,2633.3,Silverdale Tours Nottm Ltd,,,,,,,,,,
Nottinghamshire County Council,1111/1001,Children and Young People,CYP,Support Services,HAA,10/02/2015,11-11386,1925,Silverdale Tours Nottm Ltd,,,,,,,,,,
Nottinghamshire County Council,1111/1001,Children and Young People,CYP,Support Services,HAA,10/02/2015,11-11387,2835,Silverdale Tours Nottm Ltd,,,,,,,,,,
Nottinghamshire County Council,1111/1001,Children and Young People,CYP,Support Services,HAA,10/02/2015,11-11388,2149,Silverdale Tours Nottm Ltd,,,,,,,,,,
Nottinghamshire County Council,1111/1001,Children and Young People,CYP,Support Services,HAA,10/02/2015,11-11389,1482.76,Stagecoach Services Ltd,,,,,,,,,,
Nottinghamshire County Council,1111/1001,Children and Young People,CYP,Support Services,HAA,10/02/2015,11-11390,1482.76,Stagecoach Services Ltd,,,,,,,,,,
Nottinghamshire County Council,1111/1001,Children and Young People,CYP,Support Services,HAA,10/02/2015,11-11394,4063.92,Stagecoach Services Ltd,,,,,,,,,,
Nottinghamshire County Council,1111/1001,Children and Young People,CYP,Support Services,HAA,10/02/2015,11-11405,4021.49,Stagecoach Services Ltd,,,,,,,,,,
Nottinghamshire County Council,1111/1001,Children and Young People,CYP,Support Services,HAA,10/02/2015,11-11409,1166.22,Stagecoach Services Ltd,,,,,,,,,,
Nottinghamshire County Council,1111/1001,Children and Young People,CYP,Support Services,HAA,10/02/2015,11-11428,2721.05,Tiger European Uk Ltd,,,,,,,,,,
Nottinghamshire County Council,1111/1001,Children and Young People,CYP,Support Services,HAA,10/02/2015,11-11429,2600,Tiger European Uk Ltd,,,,,,,,,,
Nottinghamshire County Council,1111/1001,Children and Young People,CYP,Support Services,HAA,10/02/2015,11-11430,2552.9,Tiger European Uk Ltd,,,,,,,,,,
Nottinghamshire County Council,1111/1001,Children and Young People,CYP,Support Services,HAA,10/02/2015,11-11431,2900,Tiger European Uk Ltd,,,,,,,,,,
Nottinghamshire County Council,1111/1001,Children and Young People,CYP,Support Services,HAA,10/02/2015,11-11432,2932.9,Tiger European Uk Ltd,,,,,,,,,,
Nottinghamshire County Council,1111/1001,Children and Young People,CYP,Support Services,HAA,10/02/2015,11-11433,2945,Tiger European Uk Ltd,,,,,,,,,,
Nottinghamshire County Council,1111/1001,Children and Young People,CYP,Support Services,HAA,10/02/2015,11-11434,2939.3,Tiger European Uk Ltd,,,,,,,,,,
Nottinghamshire County Council,1111/1001,Children and Young People,CYP,Support Services,HAA,10/02/2015,11-11435,3700,Tiger European Uk Ltd,,,,,,,,,,
Nottinghamshire County Council,1111/1001,Children and Young People,CYP,Support Services,HAA,10/02/2015,11-11436,3060,Tiger European Uk Ltd,,,,,,,,,,
Nottinghamshire County Council,1111/1001,Children and Young People,CYP,Support Services,HAA,10/02/2015,11-11437,1300,Tiger European Uk Ltd,,,,,,,,,,
Nottinghamshire County Council,1111/1001,Children and Young People,CYP,Support Services,HAA,10/02/2015,11-11438,3130,Tiger European Uk Ltd,,,,,,,,,,
Nottinghamshire County Council,1111/1001,Children and Young People,CYP,Support Services,HAA,10/02/2015,11-11439,3181.5,Tiger European Uk Ltd,,,,,,,,,,
Nottinghamshire County Council,1111/1001,Children and Young People,CYP,Support Services,HAA,10/02/2015,11-11440,4360.5,Isle Coaches,,,,,,,,,,
Nottinghamshire County Council,1111/1001,Children and Young People,CYP,Support Services,HAA,12/02/2015,11-11541,2481.4,Sharpes Of Nottingham,,,,,,,,,,
Nottinghamshire County Council,1111/1001,Children and Young People,CYP,Support Services,HAA,12/02/2015,11-11542,2787.05,Sharpes Of Nottingham,,,,,,,,,,
Nottinghamshire County Council,1111/1001,Children and Young People,CYP,Support Services,HAA,12/02/2015,11-11543,3064,Sharpes Of Nottingham,,,,,,,,,,
Nottinghamshire County Council,1111/1001,Children and Young People,CYP,Support Services,HAA,12/02/2015,11-11544,2688.1,Sharpes Of Nottingham,,,,,,,,,,
Nottinghamshire County Council,1111/1001,Children and Young People,CYP,Support Services,HAA,12/02/2015,11-11545,3040.8,Sharpes Of Nottingham,,,,,,,,,,
Nottinghamshire County Council,1111/1001,Children and Young People,CYP,Support Services,HAA,12/02/2015,11-11549,3064,Sharpes Of Nottingham,,,,,,,,,,
Nottinghamshire County Council,1111/1001,Children and Young People,CYP,Support Services,HAA,12/02/2015,11-11550,2574.8,Sharpes Of Nottingham,,,,,,,,,,
Nottinghamshire County Council,1111/1001,Children and Young People,CYP,Support Services,HAA,12/02/2015,11-11551,2917,Sharpes Of Nottingham,,,,,,,,,,
Nottinghamshire County Council,1111/1001,Children and Young People,CYP,Support Services,HAA,12/02/2015,11-11552,2869.3,Sharpes Of Nottingham,,,,,,,,,,
Nottinghamshire County Council,1111/1001,Children and Young People,CYP,Support Services,HAA,12/02/2015,11-11553,2150.05,Sharpes Of Nottingham,,,,,,,,,,
Nottinghamshire County Council,1111/1001,Children and Young People,CYP,Support Services,HAA,12/02/2015,11-11554,3050,Sharpes Of Nottingham,,,,,,,,,,
Nottinghamshire County Council,1111/1001,Children and Young People,CYP,Support Services,HAA,12/02/2015,11-11556,17000,Johnson Bros Tours Ltd,,,,,,,,,,
Nottinghamshire County Council,1111/1001,Children and Young People,CYP,Support Services,HAA,12/02/2015,11-11557,2660,Johnson Bros Tours Ltd,,,,,,,,,,
Nottinghamshire County Council,1111/1001,Children and Young People,CYP,Support Services,HAA,12/02/2015,11-11558,3175.7,Johnson Bros Tours Ltd,,,,,,,,,,
Nottinghamshire County Council,1111/1001,Children and Young People,CYP,Support Services,HAA,12/02/2015,11-11559,5494.15,Johnson Bros Tours Ltd,,,,,,,,,,
Nottinghamshire County Council,1111/1001,Children and Young People,CYP,Support Services,HAA,12/02/2015,11-11560,2828.85,Johnson Bros Tours Ltd,,,,,,,,,,
Nottinghamshire County Council,1111/1001,Children and Young People,CYP,Support Services,HAA,12/02/2015,11-11561,12285.15,Johnson Bros Tours Ltd,,,,,,,,,,
Nottinghamshire County Council,1111/1001,Children and Young People,CYP,Support Services,HAA,12/02/2015,11-11562,19836.6,Johnson Bros Tours Ltd,,,,,,,,,,
Nottinghamshire County Council,1111/1001,Children and Young People,CYP,Support Services,HAA,12/02/2015,11-11563,3464.95,Johnson Bros Tours Ltd,,,,,,,,,,
Nottinghamshire County Council,1111/1001,Children and Young People,CYP,Support Services,HAA,12/02/2015,11-11565,1520,Midland Fleet Maintenance,,,,,,,,,,
Nottinghamshire County Council,1111/1001,Children and Young People,CYP,Support Services,HAA,12/02/2015,11-11571,2990,Silverdale Tours Nottm Ltd,,,,,,,,,,
Nottinghamshire County Council,1111/1001,Children and Young People,CYP,Support Services,HAA,12/02/2015,11-11574,1960,Wilfreda Beehive,,,,,,,,,,
Nottinghamshire County Council,1111/1001,Children and Young People,CYP,Support Services,HAA,12/02/2015,11-11579,2100,Travel Liner,,,,,,,,,,
Nottinghamshire County Council,1111/1001,Children and Young People,CYP,Support Services,HAA,18/02/2015,11-11923,2431.6,AOT Coaches,,,,,,,,,,
Nottinghamshire County Council,1111/1001,Children and Young People,CYP,Support Services,HAA,18/02/2015,11-11924,2401.6,AOT Coaches,,,,,,,,,,
Nottinghamshire County Council,1111/1001,Children and Young People,CYP,Support Services,HAA,18/02/2015,11-11925,2585.8,AOT Coaches,,,,,,,,,,
Nottinghamshire County Council,1111/1001,Children and Young People,CYP,Support Services,HAA,18/02/2015,11-11926,1267.4,Bassetlaw Action Centre,,,,,,,,,,
Nottinghamshire County Council,1111/1001,Children and Young People,CYP,Support Services,HAA,18/02/2015,11-11927,2376,Bassetlaw Action Centre,,,,,,,,,,
Nottinghamshire County Council,1111/1001,Children and Young People,CYP,Support Services,HAA,25/02/2015,11-16079,1707.4,Wallis Coachways,,,,,,,,,,
Nottinghamshire County Council,1111/1001,Adult Social Care and Health,ASCH,Premises Related,BAA,03/02/2015,11-10369,989,Key Construction,,,,,,,,,,
Nottinghamshire County Council,1111/1001,Adult Social Care and Health,ASCH,Premises Related,BAA,11/02/2015,11-11489,565,Sues Maintenance Services,,,,,,,,,,
Nottinghamshire County Council,1111/1001,Adult Social Care and Health,ASCH,Premises Related,BAA,16/02/2015,11-11743,575,Cw Plumbing Heating & Gas Services,,,,,,,,,,
Nottinghamshire County Council,1111/1001,Adult Social Care and Health,ASCH,Premises Related,BAA,20/02/2015,11-12020,537,Ashfield Glazing,,,,,,,,,,
Nottinghamshire County Council,1111/1001,Adult Social Care and Health,ASCH,Transport Related,CBA,04/02/2015,11-10651,2348.01,Ja Travel Ltd,,,,,,,,,,
Nottinghamshire County Council,1111/1001,Adult Social Care and Health,ASCH,Transport Related,CBA,04/02/2015,11-10657,3454.5,Vallances Coaches,,,,,,,,,,
Nottinghamshire County Council,1111/1001,Adult Social Care and Health,ASCH,Transport Related,CBA,04/02/2015,11-10672,1823.13,Aj Travel,,,,,,,,,,
Nottinghamshire County Council,1111/1001,Adult Social Care and Health,ASCH,Transport Related,CBA,06/02/2015,11-10980,3411.26,F & J Marriott T/A Unity Coaches,,,,,,,,,,
Nottinghamshire County Council,1111/1001,Adult Social Care and Health,ASCH,Transport Related,CBA,06/02/2015,11-10982,3276.84,F & J Marriott T/A Unity Coaches,,,,,,,,,,
Nottinghamshire County Council,1111/1001,Adult Social Care and Health,ASCH,Transport Related,CBA,09/02/2015,11-11099,3408.51,Mct Uk Ltd,,,,,,,,,,
Nottinghamshire County Council,1111/1001,Adult Social Care and Health,ASCH,Transport Related,CBA,09/02/2015,11-11134,4701.69,Cotswold CVS Trading Ltd,,,,,,,,,,
Nottinghamshire County Council,1111/1001,Adult Social Care and Health,ASCH,Transport Related,CBA,17/02/2015,11-11824,3054.06,BN Gibson Ltd,,,,,,,,,,
Nottinghamshire County Council,1111/1001,Adult Social Care and Health,ASCH,Transport Related,CCA,04/02/2015,11-10490,367.36,All Wayz Travel,,,,,,,,,,
Nottinghamshire County Council,1111/1001,Adult Social Care and Health,ASCH,Transport Related,CCA,04/02/2015,11-10573,1249.2,Midfield Travel,,,,,,,,,,
Nottinghamshire County Council,1111/1001,Adult Social Care and Health,ASCH,Transport Related,CCA,04/02/2015,11-10589,580,P & P Taxis,,,,,,,,,,
Nottinghamshire County Council,1111/1001,Adult Social Care and Health,ASCH,Transport Related,CCA,06/02/2015,11-10893,192.05,Alpha Cars,,,,,,,,,,
Nottinghamshire County Council,1111/1001,Adult Social Care and Health,ASCH,Transport Related,CCA,06/02/2015,11-10903,560,Bridges Transport Services,,,,,,,,,,
Nottinghamshire County Council,1111/1001,Adult Social Care and Health,ASCH,Transport Related,CCA,06/02/2015,11-10927,680,Bridges Transport Services,,,,,,,,,,
Nottinghamshire County Council,1111/1001,Adult Social Care and Health,ASCH,Transport Related,CCA,06/02/2015,11-11034,1342.5,P & P Taxis,,,,,,,,,,
Nottinghamshire County Council,1111/1001,Adult Social Care and Health,ASCH,Transport Related,CCA,06/02/2015,11-11035,1296,P & P Taxis,,,,,,,,,,
Nottinghamshire County Council,1111/1001,Adult Social Care and Health,ASCH,Transport Related,CCA,06/02/2015,11-11039,714,Town Cars (UK) Ltd,,,,,,,,,,
Nottinghamshire County Council,1111/1001,Adult Social Care and Health,ASCH,Transport Related,CCA,10/02/2015,11-11334,574.92,Acorn Contracts,,,,,,,,,,
Nottinghamshire County Council,1111/1001,Adult Social Care and Health,ASCH,Transport Related,CCA,10/02/2015,11-11344,865.45,Erewash Community Transport,,,,,,,,,,
Nottinghamshire County Council,1111/1001,Adult Social Care and Health,ASCH,Transport Related,CCA,10/02/2015,11-11367,640,Abacus Cars,,,,,,,,,,
Nottinghamshire County Council,1111/1001,Adult Social Care and Health,ASCH,Transport Related,CCA,17/02/2015,11-11822,2718.03,BN Gibson Ltd,,,,,,,,,,
Nottinghamshire County Council,1111/1001,Adult Social Care and Health,ASCH,Transport Related,CCA,17/02/2015,11-11824,427.76,BN Gibson Ltd,,,,,,,,,,
Nottinghamshire County Council,1111/1001,Adult Social Care and Health,ASCH,Transport Related,CCA,18/02/2015,11-11928,750,AAA Cabs,,,,,,,,,,
Nottinghamshire County Council,1111/1001,Adult Social Care and Health,ASCH,Transport Related,CCA,24/02/2015,11-12181,567.7,SJW (Muskham) Ltd T/A Z Cars,,,,,,,,,,
Nottinghamshire County Council,1111/1001,Adult Social Care and Health,ASCH,Transport Related,CDA,04/02/2015,11-10473,2810.1,Taxicover Uk Ltd,,,,,,,,,,
Nottinghamshire County Council,1111/1001,Adult Social Care and Health,ASCH,Transport Related,CDA,04/02/2015,11-10489,840,Southside Cars,,,,,,,,,,
Nottinghamshire County Council,1111/1001,Adult Social Care and Health,ASCH,Transport Related,CDA,04/02/2015,11-10528,1026,Arrow Specialised Transport Ltd,,,,,,,,,,
Nottinghamshire County Council,1111/1001,Adult Social Care and Health,ASCH,Transport Related,CDA,04/02/2015,11-10531,2320,Arrow Specialised Transport Ltd,,,,,,,,,,
Nottinghamshire County Council,1111/1001,Adult Social Care and Health,ASCH,Transport Related,CDA,04/02/2015,11-10533,1079.1,Arrow Specialised Transport Ltd,,,,,,,,,,
Nottinghamshire County Council,1111/1001,Adult Social Care and Health,ASCH,Transport Related,CDA,04/02/2015,11-10537,201.28,Arrow Specialised Transport Ltd,,,,,,,,,,
Nottinghamshire County Council,1111/1001,Adult Social Care and Health,ASCH,Transport Related,CDA,04/02/2015,11-10539,686.66,Arrow Specialised Transport Ltd,,,,,,,,,,
Nottinghamshire County Council,1111/1001,Adult Social Care and Health,ASCH,Transport Related,CDA,04/02/2015,11-10569,2277.72,Hawkins Taxis & Transport,,,,,,,,,,
Nottinghamshire County Council,1111/1001,Adult Social Care and Health,ASCH,Transport Related,CDA,04/02/2015,11-10573,1249.2,Midfield Travel,,,,,,,,,,
Nottinghamshire County Council,1111/1001,Adult Social Care and Health,ASCH,Transport Related,CDA,04/02/2015,11-10590,799,P & P Taxis,,,,,,,,,,
Nottinghamshire County Council,1111/1001,Adult Social Care and Health,ASCH,Transport Related,CDA,04/02/2015,11-10591,864,P & P Taxis,,,,,,,,,,
Nottinghamshire County Council,1111/1001,Adult Social Care and Health,ASCH,Transport Related,CDA,04/02/2015,11-10663,1142.4,Beechwood Taxis,,,,,,,,,,
Nottinghamshire County Council,1111/1001,Adult Social Care and Health,ASCH,Transport Related,CDA,04/02/2015,11-10669,1536,P & P Taxis,,,,,,,,,,
Nottinghamshire County Council,1111/1001,Adult Social Care and Health,ASCH,Transport Related,CDA,04/02/2015,11-10671,658,P & P Taxis,,,,,,,,,,
Nottinghamshire County Council,1111/1001,Adult Social Care and Health,ASCH,Transport Related,CDA,04/02/2015,11-10672,276.03,Aj Travel,,,,,,,,,,
Nottinghamshire County Council,1111/1001,Adult Social Care and Health,ASCH,Transport Related,CDA,04/02/2015,11-10686,2000,[Redacted],,,,,,,,,,
Nottinghamshire County Council,1111/1001,Adult Social Care and Health,ASCH,Transport Related,CDA,06/02/2015,11-10881,652.28,CBC Taxis Ltd,,,,,,,,,,
Nottinghamshire County Council,1111/1001,Adult Social Care and Health,ASCH,Transport Related,CDA,06/02/2015,11-10882,756.04,CBC Taxis Ltd,,,,,,,,,,
Nottinghamshire County Council,1111/1001,Adult Social Care and Health,ASCH,Transport Related,CDA,06/02/2015,11-10883,936.64,CBC Taxis Ltd,,,,,,,,,,
Nottinghamshire County Council,1111/1001,Adult Social Care and Health,ASCH,Transport Related,CDA,06/02/2015,11-10884,698.25,CBC Taxis Ltd,,,,,,,,,,
Nottinghamshire County Council,1111/1001,Adult Social Care and Health,ASCH,Transport Related,CDA,06/02/2015,11-10885,542.7,Ace Of Mansfield Ltd,,,,,,,,,,
Nottinghamshire County Council,1111/1001,Adult Social Care and Health,ASCH,Transport Related,CDA,06/02/2015,11-10886,700.8,Ace Of Mansfield Ltd,,,,,,,,,,
Nottinghamshire County Council,1111/1001,Adult Social Care and Health,ASCH,Transport Related,CDA,06/02/2015,11-10887,540,Ace Of Mansfield Ltd,,,,,,,,,,
Nottinghamshire County Council,1111/1001,Adult Social Care and Health,ASCH,Transport Related,CDA,06/02/2015,11-10891,864,Alpha Cars,,,,,,,,,,
Nottinghamshire County Council,1111/1001,Adult Social Care and Health,ASCH,Transport Related,CDA,06/02/2015,11-10897,1040,Bridges Transport Services,,,,,,,,,,
Nottinghamshire County Council,1111/1001,Adult Social Care and Health,ASCH,Transport Related,CDA,06/02/2015,11-10898,640,Bridges Transport Services,,,,,,,,,,
Nottinghamshire County Council,1111/1001,Adult Social Care and Health,ASCH,Transport Related,CDA,06/02/2015,11-10899,3313.59,Bridges Transport Services,,,,,,,,,,
Nottinghamshire County Council,1111/1001,Adult Social Care and Health,ASCH,Transport Related,CDA,06/02/2015,11-10900,2047.29,Bridges Transport Services,,,,,,,,,,
Nottinghamshire County Council,1111/1001,Adult Social Care and Health,ASCH,Transport Related,CDA,06/02/2015,11-10901,800,Bridges Transport Services,,,,,,,,,,
Nottinghamshire County Council,1111/1001,Adult Social Care and Health,ASCH,Transport Related,CDA,06/02/2015,11-10902,1160,Bridges Transport Services,,,,,,,,,,
Nottinghamshire County Council,1111/1001,Adult Social Care and Health,ASCH,Transport Related,CDA,06/02/2015,11-10904,1260,Bridges Transport Services,,,,,,,,,,
Nottinghamshire County Council,1111/1001,Adult Social Care and Health,ASCH,Transport Related,CDA,06/02/2015,11-10905,560,Bridges Transport Services,,,,,,,,,,
Nottinghamshire County Council,1111/1001,Adult Social Care and Health,ASCH,Transport Related,CDA,06/02/2015,11-10928,586.2,Fozcabs Newark Taxis,,,,,,,,,,
Nottinghamshire County Council,1111/1001,Adult Social Care and Health,ASCH,Transport Related,CDA,06/02/2015,11-10969,2611.2,Sprays Transport Ltd,,,,,,,,,,
Nottinghamshire County Council,1111/1001,Adult Social Care and Health,ASCH,Transport Related,CDA,06/02/2015,11-10980,366.01,F & J Marriott T/A Unity Coaches,,,,,,,,,,
Nottinghamshire County Council,1111/1001,Adult Social Care and Health,ASCH,Transport Related,CDA,06/02/2015,11-10986,840,D G Private Hire Ltd,,,,,,,,,,
Nottinghamshire County Council,1111/1001,Adult Social Care and Health,ASCH,Transport Related,CDA,06/02/2015,11-10990,564.6,D G Private Hire Ltd,,,,,,,,,,
Nottinghamshire County Council,1111/1001,Adult Social Care and Health,ASCH,Transport Related,CDA,06/02/2015,11-10992,840,D G Private Hire Ltd,,,,,,,,,,
Nottinghamshire County Council,1111/1001,Adult Social Care and Health,ASCH,Transport Related,CDA,06/02/2015,11-10993,607,D G Private Hire Ltd,,,,,,,,,,
Nottinghamshire County Council,1111/1001,Adult Social Care and Health,ASCH,Transport Related,CDA,06/02/2015,11-10994,770,D G Private Hire Ltd,,,,,,,,,,
Nottinghamshire County Council,1111/1001,Adult Social Care and Health,ASCH,Transport Related,CDA,06/02/2015,11-11036,1026,P & P Taxis,,,,,,,,,,
Nottinghamshire County Council,1111/1001,Adult Social Care and Health,ASCH,Transport Related,CDA,09/02/2015,11-11095,1312.2,Acorn Contracts,,,,,,,,,,
Nottinghamshire County Council,1111/1001,Adult Social Care and Health,ASCH,Transport Related,CDA,09/02/2015,11-11104,512,Ng11 Cars,,,,,,,,,,
Nottinghamshire County Council,1111/1001,Adult Social Care and Health,ASCH,Transport Related,CDA,09/02/2015,11-11106,649.6,Shelleys Taxis Ltd,,,,,,,,,,
Nottinghamshire County Council,1111/1001,Adult Social Care and Health,ASCH,Transport Related,CDA,09/02/2015,11-11110,662.07,Aaeron Cars,,,,,,,,,,
Nottinghamshire County Council,1111/1001,Adult Social Care and Health,ASCH,Transport Related,CDA,09/02/2015,11-11111,591.15,Aaeron Cars,,,,,,,,,,
Nottinghamshire County Council,1111/1001,Adult Social Care and Health,ASCH,Transport Related,CDA,10/02/2015,11-11363,1142.4,Abacus Cars,,,,,,,,,,
Nottinghamshire County Council,1111/1001,Adult Social Care and Health,ASCH,Transport Related,CDA,10/02/2015,11-11364,640,Abacus Cars,,,,,,,,,,
Nottinghamshire County Council,1111/1001,Adult Social Care and Health,ASCH,Transport Related,CDA,10/02/2015,11-11365,554.88,Abacus Cars,,,,,,,,,,
Nottinghamshire County Council,1111/1001,Adult Social Care and Health,ASCH,Transport Related,CDA,10/02/2015,11-11366,1836,Abacus Cars,,,,,,,,,,
Nottinghamshire County Council,1111/1001,Adult Social Care and Health,ASCH,Transport Related,CDA,10/02/2015,11-11369,642.6,Abacus Cars,,,,,,,,,,
Nottinghamshire County Council,1111/1001,Adult Social Care and Health,ASCH,Transport Related,CDA,10/02/2015,11-11374,672,Abacus Cars,,,,,,,,,,
Nottinghamshire County Council,1111/1001,Adult Social Care and Health,ASCH,Transport Related,CDA,10/02/2015,11-11378,749.6,Abacus Cars,,,,,,,,,,
Nottinghamshire County Council,1111/1001,Adult Social Care and Health,ASCH,Transport Related,CDA,10/02/2015,11-11442,1602.47,In Taxis,,,,,,,,,,
Nottinghamshire County Council,1111/1001,Adult Social Care and Health,ASCH,Transport Related,CDA,11/02/2015,11-11495,403.56,Arrow Specialised Transport Ltd,,,,,,,,,,
Nottinghamshire County Council,1111/1001,Adult Social Care and Health,ASCH,Transport Related,CDA,12/02/2015,11-11569,1535.4,Abacus Cars,,,,,,,,,,
Nottinghamshire County Council,1111/1001,Adult Social Care and Health,ASCH,Transport Related,CDA,17/02/2015,11-11808,584.22,Alert Cars Ltd,,,,,,,,,,
Nottinghamshire County Council,1111/1001,Adult Social Care and Health,ASCH,Transport Related,CDA,17/02/2015,11-11824,392.89,BN Gibson Ltd,,,,,,,,,,
Nottinghamshire County Council,1111/1001,Adult Social Care and Health,ASCH,Transport Related,CDA,18/02/2015,11-11920,3780,BN Gibson Ltd,,,,,,,,,,
Nottinghamshire County Council,1111/1001,Adult Social Care and Health,ASCH,Supplies & Services,DAA,17/02/2015,11-16210,1523.34,Nutri Pack Uk Ltd,,,,,,,,,,
Nottinghamshire County Council,1111/1001,Adult Social Care and Health,ASCH,Supplies & Services,DAA,27/02/2015,11-10748,64020.71,British Red Cross Society,,,,,,,,,,
Nottinghamshire County Council,1111/1001,Adult Social Care and Health,ASCH,Supplies & Services,DAA,27/02/2015,11-11140,483299.38,British Red Cross Society,,,,,,,,,,
Nottinghamshire County Council,1111/1001,Adult Social Care and Health,ASCH,Supplies & Services,DBA,03/02/2015,11-10416,1902.44,Hallam Country Fresh Foods Ltd,,,,,,,,,,
Nottinghamshire County Council,1111/1001,Adult Social Care and Health,ASCH,Supplies & Services,DBA,06/02/2015,11-11063,5197.75,M Maloney Country Butchers & B Ltd,,,,,,,,,,
Nottinghamshire County Council,1111/1001,Adult Social Care and Health,ASCH,Supplies & Services,DBA,11/02/2015,11-11499,806.69,Brake Bros Ltd,,,,,,,,,,
Nottinghamshire County Council,1111/1001,Adult Social Care and Health,ASCH,Supplies & Services,DBA,11/02/2015,11-11500,78.99,Brake Bros Ltd,,,,,,,,,,
Nottinghamshire County Council,1111/1001,Adult Social Care and Health,ASCH,Supplies & Services,DBA,11/02/2015,11-11503,423.85,Brake Bros Ltd,,,,,,,,,,
Nottinghamshire County Council,1111/1001,Adult Social Care and Health,ASCH,Supplies & Services,DBA,11/02/2015,11-11507,559.38,Brake Bros Ltd,,,,,,,,,,
Nottinghamshire County Council,1111/1001,Adult Social Care and Health,ASCH,Supplies & Services,DBA,11/02/2015,11-11508,995.65,Brake Bros Ltd,,,,,,,,,,
Nottinghamshire County Council,1111/1001,Adult Social Care and Health,ASCH,Supplies & Services,DBA,11/02/2015,11-11511,2560.11,Brake Bros Ltd,,,,,,,,,,
Nottinghamshire County Council,1111/1001,Adult Social Care and Health,ASCH,Supplies & Services,DBA,18/02/2015,11-11900,2807.03,Brake Bros Ltd,,,,,,,,,,
Nottinghamshire County Council,1111/1001,Adult Social Care and Health,ASCH,Supplies & Services,DBA,18/02/2015,11-11906,1546.99,Brake Bros Ltd,,,,,,,,,,
Nottinghamshire County Council,1111/1001,Adult Social Care and Health,ASCH,Supplies & Services,DBA,18/02/2015,11-11909,71.72,Brake Bros Ltd,,,,,,,,,,
Nottinghamshire County Council,1111/1001,Adult Social Care and Health,ASCH,Supplies & Services,DBA,18/02/2015,11-11912,568.57,Brake Bros Ltd,,,,,,,,,,
Nottinghamshire County Council,1111/1001,Adult Social Care and Health,ASCH,Supplies & Services,DBA,24/02/2015,11-15998,2883.75,M Maloney Country Butchers & B Ltd,,,,,,,,,,
Nottinghamshire County Council,1111/1001,Adult Social Care and Health,ASCH,Supplies & Services,DBA,24/02/2015,11-16002,4149.79,M Maloney Country Butchers & B Ltd,,,,,,,,,,
Nottinghamshire County Council,1111/1001,Adult Social Care and Health,ASCH,Supplies & Services,DBA,24/02/2015,11-16006,3649.42,M Maloney Country Butchers & B Ltd,,,,,,,,,,
Nottinghamshire County Council,1111/1001,Adult Social Care and Health,ASCH,Supplies & Services,DBA,26/02/2015,11-16136,588.68,Brake Bros Ltd,,,,,,,,,,
Nottinghamshire County Council,1111/1001,Adult Social Care and Health,ASCH,Supplies & Services,DBA,26/02/2015,11-16140,2446.95,Brake Bros Ltd,,,,,,,,,,
Nottinghamshire County Council,1111/1001,Adult Social Care and Health,ASCH,Supplies & Services,DBA,26/02/2015,11-16143,848.91,Brake Bros Ltd,,,,,,,,,,
Nottinghamshire County Council,1111/1001,Adult Social Care and Health,ASCH,Supplies & Services,DBA,26/02/2015,11-16146,1151.38,Brake Bros Ltd,,,,,,,,,,
Nottinghamshire County Council,1111/1001,Adult Social Care and Health,ASCH,Supplies & Services,DBA,26/02/2015,11-16147,69.28,Brake Bros Ltd,,,,,,,,,,
Nottinghamshire County Council,1111/1001,Adult Social Care and Health,ASCH,Supplies & Services,DFA,26/02/2015,11-16112,817.63,Lantec Services Ltd,,,,,,,,,,
Nottinghamshire County Council,1111/1001,Adult Social Care and Health,ASCH,Supplies & Services,DHA,10/02/2015,11-11444,7590,Rushcliffe Community & Vol Serv,,,,,,,,,,
Nottinghamshire County Council,1111/1001,Adult Social Care and Health,ASCH,Supplies & Services,DKA,27/02/2015,11-10748,297.5,British Red Cross Society,,,,,,,,,,
Nottinghamshire County Council,1111/1001,Adult Social Care and Health,ASCH,Supplies & Services,DKA,27/02/2015,11-11140,75722.11,British Red Cross Society,,,,,,,,,,
Nottinghamshire County Council,1111/1001,Adult Social Care and Health,ASCH,Third Party Payments,EBA,26/02/2015,11-16154,12608.39,Home Group Limited,,,,,,,,,,
Nottinghamshire County Council,1111/1001,Adult Social Care and Health,ASCH,Third Party Payments,EBA,26/02/2015,11-16156,9320,Aspirations (Midlands) Ltd,,,,,,,,,,
Nottinghamshire County Council,1111/1001,Adult Social Care and Health,ASCH,Third Party Payments,EBA,26/02/2015,11-16157,1080,Reach Housing Gloria Miller,,,,,,,,,,
Nottinghamshire County Council,1111/1001,Adult Social Care and Health,ASCH,Third Party Payments,EBA,26/02/2015,11-16158,51955.56,Royal Society Mencap,,,,,,,,,,
Nottinghamshire County Council,1111/1001,Adult Social Care and Health,ASCH,Third Party Payments,EBA,26/02/2015,11-16160,83169.08,Eden Supported Living Ltd,,,,,,,,,,
Nottinghamshire County Council,1111/1001,Adult Social Care and Health,ASCH,Third Party Payments,EBA,26/02/2015,11-16161,2920,Care UK Learning Disabilities Servi,,,,,,,,,,
Nottinghamshire County Council,1111/1001,Adult Social Care and Health,ASCH,Third Party Payments,EBA,26/02/2015,11-16162,2160,Oakdale Ozier Ltd,,,,,,,,,,
Nottinghamshire County Council,1111/1001,Adult Social Care and Health,ASCH,Third Party Payments,EBA,26/02/2015,11-16163,395153.52,Framework Housing Association,,,,,,,,,,
Nottinghamshire County Council,1111/1001,Adult Social Care and Health,ASCH,Third Party Payments,EBA,26/02/2015,11-16165,4969.49,Nottingham Community Housing,,,,,,,,,,
Nottinghamshire County Council,1111/1001,Adult Social Care and Health,ASCH,Third Party Payments,EBA,26/02/2015,11-16167,4440,Fitzroy,,,,,,,,,,
Nottinghamshire County Council,1111/1001,Adult Social Care and Health,ASCH,Third Party Payments,EBA,26/02/2015,11-16168,16087.92,Lifeways Community Care Ltd,,,,,,,,,,
Nottinghamshire County Council,1111/1001,Adult Social Care and Health,ASCH,Third Party Payments,EBA,26/02/2015,11-16169,5720,Voyage Ltd,,,,,,,,,,
Nottinghamshire County Council,1111/1001,Adult Social Care and Health,ASCH,Third Party Payments,EBA,26/02/2015,11-16170,28151.8,Thera East Midlands,,,,,,,,,,
Nottinghamshire County Council,1111/1001,Adult Social Care and Health,ASCH,Third Party Payments,EBA,26/02/2015,11-16171,14160,Choice Support,,,,,,,,,,
Nottinghamshire County Council,1111/1001,Adult Social Care and Health,ASCH,Third Party Payments,EBA,26/02/2015,11-16172,12040,United Response,,,,,,,,,,
Nottinghamshire County Council,1111/1001,Adult Social Care and Health,ASCH,Third Party Payments,EBA,26/02/2015,11-16173,1840,Heritage Care,,,,,,,,,,
Nottinghamshire County Council,1111/1001,Adult Social Care and Health,ASCH,Third Party Payments,EBA,26/02/2015,11-16174,2360,Real Life Options,,,,,,,,,,
Nottinghamshire County Council,1111/1001,Adult Social Care and Health,ASCH,Third Party Payments,EBA,26/02/2015,11-16175,10331.2,NCHA Ltd,,,,,,,,,,
Nottinghamshire County Council,1111/1001,Adult Social Care and Health,ASCH,Third Party Payments,ECA,02/02/2015,11-10141,443.56,Belle Vue,,,,,,,,,,
Nottinghamshire County Council,1111/1001,Adult Social Care and Health,ASCH,Third Party Payments,ECA,02/02/2015,11-10147,443.56,Belle Vue,,,,,,,,,,
Nottinghamshire County Council,1111/1001,Adult Social Care and Health,ASCH,Third Party Payments,ECA,02/02/2015,11-10150,190.1,Beauvale Nursing Home,,,,,,,,,,
Nottinghamshire County Council,1111/1001,Adult Social Care and Health,ASCH,Third Party Payments,ECA,02/02/2015,11-10163,1647.51,Albemarle Hall Nursing Home,,,,,,,,,,
Nottinghamshire County Council,1111/1001,Adult Social Care and Health,ASCH,Third Party Payments,ECA,02/02/2015,11-10166,443.56,Alexandra House Nursing Home,,,,,,,,,,
Nottinghamshire County Council,1111/1001,Adult Social Care and Health,ASCH,Third Party Payments,ECA,02/02/2015,11-10169,443.56,Alexandra House Nursing Home,,,,,,,,,,
Nottinghamshire County Council,1111/1001,Adult Social Care and Health,ASCH,Third Party Payments,ECA,02/02/2015,11-10171,443.56,Alexandra House Nursing Home,,,,,,,,,,
Nottinghamshire County Council,1111/1001,Adult Social Care and Health,ASCH,Third Party Payments,ECA,02/02/2015,11-10177,443.56,Alexandra House Nursing Home,,,,,,,,,,
Nottinghamshire County Council,1111/1001,Adult Social Care and Health,ASCH,Third Party Payments,ECA,02/02/2015,11-10179,443.56,Alexandra House Nursing Home,,,,,,,,,,
Nottinghamshire County Council,1111/1001,Adult Social Care and Health,ASCH,Third Party Payments,ECA,02/02/2015,11-10183,110.89,Ashley House Nursing Home,,,,,,,,,,
Nottinghamshire County Council,1111/1001,Adult Social Care and Health,ASCH,Third Party Payments,ECA,02/02/2015,11-10186,1251.47,Woodthorpe Manor Nursing Home,,,,,,,,,,
Nottinghamshire County Council,1111/1001,Adult Social Care and Health,ASCH,Third Party Payments,ECA,02/02/2015,11-10189,110.89,Countrywide Care Homes Ltd T/A Gate,,,,,,,,,,
Nottinghamshire County Council,1111/1001,Adult Social Care and Health,ASCH,Third Party Payments,ECA,02/02/2015,11-10197,269.3,Hawthorne Nursing Home,,,,,,,,,,
Nottinghamshire County Council,1111/1001,Adult Social Care and Health,ASCH,Third Party Payments,ECA,02/02/2015,11-10199,443.56,Carisbrooke Nursing Home,,,,,,,,,,
Nottinghamshire County Council,1111/1001,Adult Social Care and Health,ASCH,Third Party Payments,ECA,02/02/2015,11-10247,221.78,Victoria Care Home,,,,,,,,,,
Nottinghamshire County Council,1111/1001,Adult Social Care and Health,ASCH,Third Party Payments,ECA,02/02/2015,11-10250,506.93,Victoria Care Home,,,,,,,,,,
Nottinghamshire County Council,1111/1001,Adult Social Care and Health,ASCH,Third Party Payments,ECA,02/02/2015,11-10254,443.56,The Poplars (Derbys),,,,,,,,,,
Nottinghamshire County Council,1111/1001,Adult Social Care and Health,ASCH,Third Party Payments,ECA,02/02/2015,11-10261,554.45,Lound Hall Nursing Home,,,,,,,,,,
Nottinghamshire County Council,1111/1001,Adult Social Care and Health,ASCH,Third Party Payments,ECA,02/02/2015,11-10265,2312.85,Ernhale Lodge Nursing Home,,,,,,,,,,
Nottinghamshire County Council,1111/1001,Adult Social Care and Health,ASCH,Third Party Payments,ECA,02/02/2015,11-10268,1441.57,Pathfinders Neurological Care Centr,,,,,,,,,,
Nottinghamshire County Council,1111/1001,Adult Social Care and Health,ASCH,Third Party Payments,ECA,02/02/2015,11-10284,221.78,Westvilla Nursing Home,,,,,,,,,,
Nottinghamshire County Council,1111/1001,Adult Social Care and Health,ASCH,Third Party Payments,ECA,02/02/2015,11-10329,744.55,Jubilee Court Nursing Home,,,,,,,,,,
Nottinghamshire County Council,1111/1001,Adult Social Care and Health,ASCH,Third Party Payments,ECA,02/02/2015,11-10332,887.12,Morton Grange Care Home,,,,,,,,,,
Nottinghamshire County Council,1111/1001,Adult Social Care and Health,ASCH,Third Party Payments,ECA,02/02/2015,11-10340,443.56,Canal Vue,,,,,,,,,,
Nottinghamshire County Council,1111/1001,Adult Social Care and Health,ASCH,Third Party Payments,ECA,02/02/2015,11-10342,205.94,Canal Vue,,,,,,,,,,
Nottinghamshire County Council,1111/1001,Adult Social Care and Health,ASCH,Third Party Payments,ECA,02/02/2015,11-10345,443.56,Canal Vue,,,,,,,,,,
Nottinghamshire County Council,1111/1001,Adult Social Care and Health,ASCH,Third Party Payments,ECA,02/02/2015,11-10349,443.56,Canal Vue,,,,,,,,,,
Nottinghamshire County Council,1111/1001,Adult Social Care and Health,ASCH,Third Party Payments,ECA,02/02/2015,11-10351,221.78,Beeston Lodge Nursing Home,,,,,,,,,,
Nottinghamshire County Council,1111/1001,Adult Social Care and Health,ASCH,Third Party Payments,ECA,03/02/2015,11-10306,443.56,Beechdale Manor Care Home,,,,,,,,,,
Nottinghamshire County Council,1111/1001,Adult Social Care and Health,ASCH,Third Party Payments,ECA,09/02/2015,11-11158,1520.78,Bramcote Hills Care Home,,,,,,,,,,
Nottinghamshire County Council,1111/1001,Adult Social Care and Health,ASCH,Third Party Payments,ECA,09/02/2015,11-11161,380.19,Ashcroft,,,,,,,,,,
Nottinghamshire County Council,1111/1001,Adult Social Care and Health,ASCH,Third Party Payments,ECA,09/02/2015,11-11163,697.02,Kingsthorpe View Nursing Home,,,,,,,,,,
Nottinghamshire County Council,1111/1001,Adult Social Care and Health,ASCH,Third Party Payments,ECA,09/02/2015,11-11168,221.78,Oaks Care Centre,,,,,,,,,,
Nottinghamshire County Council,1111/1001,Adult Social Care and Health,ASCH,Third Party Payments,ECA,09/02/2015,11-11170,298,Charnwood House,,,,,,,,,,
Nottinghamshire County Council,1111/1001,Adult Social Care and Health,ASCH,Third Party Payments,ECA,09/02/2015,11-11172,332.67,Charnwood House,,,,,,,,,,
Nottinghamshire County Council,1111/1001,Adult Social Care and Health,ASCH,Third Party Payments,ECA,09/02/2015,11-11179,205.94,Beeches Nursing Home,,,,,,,,,,
Nottinghamshire County Council,1111/1001,Adult Social Care and Health,ASCH,Third Party Payments,ECA,09/02/2015,11-11187,7443.84,Landermeads Nursing Home,,,,,,,,,,
Nottinghamshire County Council,1111/1001,Adult Social Care and Health,ASCH,Third Party Payments,ECA,09/02/2015,11-11189,1378.2,Landermeads Nursing Home,,,,,,,,,,
Nottinghamshire County Council,1111/1001,Adult Social Care and Health,ASCH,Third Party Payments,ECA,09/02/2015,11-11191,871.28,Lawn Park Nursing Home,,,,,,,,,,
Nottinghamshire County Council,1111/1001,Adult Social Care and Health,ASCH,Third Party Payments,ECA,09/02/2015,11-11198,332.67,Ashley House Nursing Home,,,,,,,,,,
Nottinghamshire County Council,1111/1001,Adult Social Care and Health,ASCH,Third Party Payments,ECA,09/02/2015,11-11201,205.94,Ashley House Nursing Home,,,,,,,,,,
Nottinghamshire County Council,1111/1001,Adult Social Care and Health,ASCH,Third Party Payments,ECA,09/02/2015,11-11203,110.89,Forest Hill Nursing Home,,,,,,,,,,
Nottinghamshire County Council,1111/1001,Adult Social Care and Health,ASCH,Third Party Payments,ECA,09/02/2015,11-11207,110.89,Countrywide Care Homes Ltd T/A Gate,,,,,,,,,,
Nottinghamshire County Council,1111/1001,Adult Social Care and Health,ASCH,Third Party Payments,ECA,09/02/2015,11-11213,411.88,Hawthorne Nursing Home,,,,,,,,,,
Nottinghamshire County Council,1111/1001,Adult Social Care and Health,ASCH,Third Party Payments,ECA,09/02/2015,11-11239,633.66,Lound Hall Nursing Home,,,,,,,,,,
Nottinghamshire County Council,1111/1001,Adult Social Care and Health,ASCH,Third Party Payments,ECA,09/02/2015,11-11260,110.89,Westvilla Nursing Home,,,,,,,,,,
Nottinghamshire County Council,1111/1001,Adult Social Care and Health,ASCH,Third Party Payments,ECA,09/02/2015,11-11276,522.77,Jubilee Court Nursing Home,,,,,,,,,,
Nottinghamshire County Council,1111/1001,Adult Social Care and Health,ASCH,Third Party Payments,ECA,09/02/2015,11-11278,2487.1,Highfields Care Home,,,,,,,,,,
Nottinghamshire County Council,1111/1001,Adult Social Care and Health,ASCH,Third Party Payments,ECA,10/02/2015,11-11292,950.49,Belle Vue,,,,,,,,,,
Nottinghamshire County Council,1111/1001,Adult Social Care and Health,ASCH,Third Party Payments,ECA,10/02/2015,11-11445,269.3,Berry Hill Park,,,,,,,,,,
Nottinghamshire County Council,1111/1001,Adult Social Care and Health,ASCH,Third Party Payments,ECA,24/02/2015,11-12248,15.84,The Royal Care Home,,,,,,,,,,
Nottinghamshire County Council,1111/1001,Adult Social Care and Health,ASCH,Third Party Payments,ECA,24/02/2015,11-12263,443.56,Bramcote Hills Care Home,,,,,,,,,,
Nottinghamshire County Council,1111/1001,Adult Social Care and Health,ASCH,Third Party Payments,ECA,24/02/2015,11-12266,443.56,Bramcote Hills Care Home,,,,,,,,,,
Nottinghamshire County Council,1111/1001,Adult Social Care and Health,ASCH,Third Party Payments,ECA,24/02/2015,11-12270,744.55,Bramcote Hills Care Home,,,,,,,,,,
Nottinghamshire County Council,1111/1001,Adult Social Care and Health,ASCH,Third Party Payments,ECA,24/02/2015,11-12272,443.56,Bramcote Hills Care Home,,,,,,,,,,
Nottinghamshire County Council,1111/1001,Adult Social Care and Health,ASCH,Third Party Payments,ECA,24/02/2015,11-12286,443.56,The Grange Nursing Home,,,,,,,,,,
Nottinghamshire County Council,1111/1001,Adult Social Care and Health,ASCH,Third Party Payments,ECA,24/02/2015,11-12290,443.56,The Grange Nursing Home,,,,,,,,,,
Nottinghamshire County Council,1111/1001,Adult Social Care and Health,ASCH,Third Party Payments,ECA,24/02/2015,11-12292,2043.54,The Grange Nursing Home,,,,,,,,,,
Nottinghamshire County Council,1111/1001,Adult Social Care and Health,ASCH,Third Party Payments,ECA,24/02/2015,11-12308,443.56,Belle Vue,,,,,,,,,,
Nottinghamshire County Council,1111/1001,Adult Social Care and Health,ASCH,Third Party Payments,ECA,24/02/2015,11-12312,443.56,Belle Vue,,,,,,,,,,
Nottinghamshire County Council,1111/1001,Adult Social Care and Health,ASCH,Third Party Payments,ECA,24/02/2015,11-12321,443.56,Ashcroft,,,,,,,,,,
Nottinghamshire County Council,1111/1001,Adult Social Care and Health,ASCH,Third Party Payments,ECA,24/02/2015,11-12324,443.56,Ashcroft,,,,,,,,,,
Nottinghamshire County Council,1111/1001,Adult Social Care and Health,ASCH,Third Party Payments,ECA,24/02/2015,11-12328,443.56,Ashcroft,,,,,,,,,,
Nottinghamshire County Council,1111/1001,Adult Social Care and Health,ASCH,Third Party Payments,ECA,24/02/2015,11-12331,443.56,Ashcroft,,,,,,,,,,
Nottinghamshire County Council,1111/1001,Adult Social Care and Health,ASCH,Third Party Payments,ECA,24/02/2015,11-12333,443.56,Ashcroft,,,,,,,,,,
Nottinghamshire County Council,1111/1001,Adult Social Care and Health,ASCH,Third Party Payments,ECA,24/02/2015,11-12336,443.56,Ashcroft,,,,,,,,,,
Nottinghamshire County Council,1111/1001,Adult Social Care and Health,ASCH,Third Party Payments,ECA,24/02/2015,11-12338,443.56,Ashcroft,,,,,,,,,,
Nottinghamshire County Council,1111/1001,Adult Social Care and Health,ASCH,Third Party Payments,ECA,24/02/2015,11-12343,443.56,Ashcroft,,,,,,,,,,
Nottinghamshire County Council,1111/1001,Adult Social Care and Health,ASCH,Third Party Payments,ECA,24/02/2015,11-12348,887.12,Ashcroft,,,,,,,,,,
Nottinghamshire County Council,1111/1001,Adult Social Care and Health,ASCH,Third Party Payments,ECA,24/02/2015,11-12350,443.56,Ashcroft,,,,,,,,,,
Nottinghamshire County Council,1111/1001,Adult Social Care and Health,ASCH,Third Party Payments,ECA,24/02/2015,11-12352,443.56,Ashcroft,,,,,,,,,,
Nottinghamshire County Council,1111/1001,Adult Social Care and Health,ASCH,Third Party Payments,ECA,24/02/2015,11-12354,443.56,Ashcroft,,,,,,,,,,
Nottinghamshire County Council,1111/1001,Adult Social Care and Health,ASCH,Third Party Payments,ECA,24/02/2015,11-12356,443.56,Ashcroft,,,,,,,,,,
Nottinghamshire County Council,1111/1001,Adult Social Care and Health,ASCH,Third Party Payments,ECA,24/02/2015,11-12358,443.56,Ashcroft,,,,,,,,,,
Nottinghamshire County Council,1111/1001,Adult Social Care and Health,ASCH,Third Party Payments,ECA,24/02/2015,11-12360,443.56,Ashcroft,,,,,,,,,,
Nottinghamshire County Council,1111/1001,Adult Social Care and Health,ASCH,Third Party Payments,ECA,24/02/2015,11-12367,443.56,Kingsthorpe View Nursing Home,,,,,,,,,,
Nottinghamshire County Council,1111/1001,Adult Social Care and Health,ASCH,Third Party Payments,ECA,24/02/2015,11-12378,443.56,Beauvale Nursing Home,,,,,,,,,,
Nottinghamshire County Council,1111/1001,Adult Social Care and Health,ASCH,Third Party Payments,ECA,24/02/2015,11-12381,443.56,Beauvale Nursing Home,,,,,,,,,,
Nottinghamshire County Council,1111/1001,Adult Social Care and Health,ASCH,Third Party Payments,ECA,24/02/2015,11-12384,443.56,Beauvale Nursing Home,,,,,,,,,,
Nottinghamshire County Council,1111/1001,Adult Social Care and Health,ASCH,Third Party Payments,ECA,24/02/2015,11-12386,443.56,Beauvale Nursing Home,,,,,,,,,,
Nottinghamshire County Council,1111/1001,Adult Social Care and Health,ASCH,Third Party Payments,ECA,24/02/2015,11-12388,443.56,Beauvale Nursing Home,,,,,,,,,,
Nottinghamshire County Council,1111/1001,Adult Social Care and Health,ASCH,Third Party Payments,ECA,24/02/2015,11-12390,1314.84,Beauvale Nursing Home,,,,,,,,,,
Nottinghamshire County Council,1111/1001,Adult Social Care and Health,ASCH,Third Party Payments,ECA,24/02/2015,11-12394,443.56,Beauvale Nursing Home,,,,,,,,,,
Nottinghamshire County Council,1111/1001,Adult Social Care and Health,ASCH,Third Party Payments,ECA,24/02/2015,11-12396,443.56,Beauvale Nursing Home,,,,,,,,,,
Nottinghamshire County Council,1111/1001,Adult Social Care and Health,ASCH,Third Party Payments,ECA,24/02/2015,11-12408,443.56,Avalon Nursing Home,,,,,,,,,,
Nottinghamshire County Council,1111/1001,Adult Social Care and Health,ASCH,Third Party Payments,ECA,24/02/2015,11-12411,443.56,Avalon Nursing Home,,,,,,,,,,
Nottinghamshire County Council,1111/1001,Adult Social Care and Health,ASCH,Third Party Payments,ECA,24/02/2015,11-12415,443.56,Avalon Nursing Home,,,,,,,,,,
Nottinghamshire County Council,1111/1001,Adult Social Care and Health,ASCH,Third Party Payments,ECA,24/02/2015,11-12417,443.56,Avalon Nursing Home,,,,,,,,,,
Nottinghamshire County Council,1111/1001,Adult Social Care and Health,ASCH,Third Party Payments,ECA,24/02/2015,11-12422,443.56,Avalon Nursing Home,,,,,,,,,,
Nottinghamshire County Council,1111/1001,Adult Social Care and Health,ASCH,Third Party Payments,ECA,24/02/2015,11-12424,443.56,Avalon Nursing Home,,,,,,,,,,
Nottinghamshire County Council,1111/1001,Adult Social Care and Health,ASCH,Third Party Payments,ECA,24/02/2015,11-12426,443.56,Avalon Nursing Home,,,,,,,,,,
Nottinghamshire County Council,1111/1001,Adult Social Care and Health,ASCH,Third Party Payments,ECA,24/02/2015,11-12428,902.96,Avalon Nursing Home,,,,,,,,,,
Nottinghamshire County Council,1111/1001,Adult Social Care and Health,ASCH,Third Party Payments,ECA,24/02/2015,11-12430,443.56,Avalon Nursing Home,,,,,,,,,,
Nottinghamshire County Council,1111/1001,Adult Social Care and Health,ASCH,Third Party Payments,ECA,24/02/2015,11-12432,443.56,Avalon Nursing Home,,,,,,,,,,
Nottinghamshire County Council,1111/1001,Adult Social Care and Health,ASCH,Third Party Payments,ECA,24/02/2015,11-12436,443.56,Silverwood Care Home,,,,,,,,,,
Nottinghamshire County Council,1111/1001,Adult Social Care and Health,ASCH,Third Party Payments,ECA,24/02/2015,11-12439,443.56,Silverwood Care Home,,,,,,,,,,
Nottinghamshire County Council,1111/1001,Adult Social Care and Health,ASCH,Third Party Payments,ECA,24/02/2015,11-12441,443.56,Silverwood Care Home,,,,,,,,,,
Nottinghamshire County Council,1111/1001,Adult Social Care and Health,ASCH,Third Party Payments,ECA,24/02/2015,11-12446,443.56,Silverwood Care Home,,,,,,,,,,
Nottinghamshire County Council,1111/1001,Adult Social Care and Health,ASCH,Third Party Payments,ECA,24/02/2015,11-12450,443.56,Silverwood Care Home,,,,,,,,,,
Nottinghamshire County Council,1111/1001,Adult Social Care and Health,ASCH,Third Party Payments,ECA,24/02/2015,11-12453,443.56,Silverwood Care Home,,,,,,,,,,
Nottinghamshire County Council,1111/1001,Adult Social Care and Health,ASCH,Third Party Payments,ECA,24/02/2015,11-12456,443.56,Silverwood Care Home,,,,,,,,,,
Nottinghamshire County Council,1111/1001,Adult Social Care and Health,ASCH,Third Party Payments,ECA,24/02/2015,11-12460,443.56,Silverwood Care Home,,,,,,,,,,
Nottinghamshire County Council,1111/1001,Adult Social Care and Health,ASCH,Third Party Payments,ECA,24/02/2015,11-12462,443.56,Silverwood Care Home,,,,,,,,,,
Nottinghamshire County Council,1111/1001,Adult Social Care and Health,ASCH,Third Party Payments,ECA,24/02/2015,11-12470,443.56,Silverwood Care Home,,,,,,,,,,
Nottinghamshire County Council,1111/1001,Adult Social Care and Health,ASCH,Third Party Payments,ECA,24/02/2015,11-12472,443.56,Silverwood Care Home,,,,,,,,,,
Nottinghamshire County Council,1111/1001,Adult Social Care and Health,ASCH,Third Party Payments,ECA,24/02/2015,11-12474,443.56,Silverwood Care Home,,,,,,,,,,
Nottinghamshire County Council,1111/1001,Adult Social Care and Health,ASCH,Third Party Payments,ECA,24/02/2015,11-12482,443.56,Spring Water Lodge,,,,,,,,,,
Nottinghamshire County Council,1111/1001,Adult Social Care and Health,ASCH,Third Party Payments,ECA,24/02/2015,11-12485,443.56,Spring Water Lodge,,,,,,,,,,
Nottinghamshire County Council,1111/1001,Adult Social Care and Health,ASCH,Third Party Payments,ECA,24/02/2015,11-12489,443.56,Spring Water Lodge,,,,,,,,,,
Nottinghamshire County Council,1111/1001,Adult Social Care and Health,ASCH,Third Party Payments,ECA,24/02/2015,11-12495,443.56,Spring Water Lodge,,,,,,,,,,
Nottinghamshire County Council,1111/1001,Adult Social Care and Health,ASCH,Third Party Payments,ECA,24/02/2015,11-12533,443.56,Oaks Care Centre,,,,,,,,,,
Nottinghamshire County Council,1111/1001,Adult Social Care and Health,ASCH,Third Party Payments,ECA,24/02/2015,11-12540,443.56,Oaks Care Centre,,,,,,,,,,
Nottinghamshire County Council,1111/1001,Adult Social Care and Health,ASCH,Third Party Payments,ECA,24/02/2015,11-12542,443.56,Oaks Care Centre,,,,,,,,,,
Nottinghamshire County Council,1111/1001,Adult Social Care and Health,ASCH,Third Party Payments,ECA,24/02/2015,11-12544,443.56,Oaks Care Centre,,,,,,,,,,
Nottinghamshire County Council,1111/1001,Adult Social Care and Health,ASCH,Third Party Payments,ECA,24/02/2015,11-12546,443.56,Oaks Care Centre,,,,,,,,,,
Nottinghamshire County Council,1111/1001,Adult Social Care and Health,ASCH,Third Party Payments,ECA,24/02/2015,11-12551,1394.05,Oaks Care Centre,,,,,,,,,,
Nottinghamshire County Council,1111/1001,Adult Social Care and Health,ASCH,Third Party Payments,ECA,24/02/2015,11-12554,221.78,Oaks Care Centre,,,,,,,,,,
Nottinghamshire County Council,1111/1001,Adult Social Care and Health,ASCH,Third Party Payments,ECA,24/02/2015,11-12556,443.56,Oaks Care Centre,,,,,,,,,,
Nottinghamshire County Council,1111/1001,Adult Social Care and Health,ASCH,Third Party Payments,ECA,24/02/2015,11-12563,443.56,Oaks Care Centre,,,,,,,,,,
Nottinghamshire County Council,1111/1001,Adult Social Care and Health,ASCH,Third Party Payments,ECA,24/02/2015,11-12565,443.56,Oaks Care Centre,,,,,,,,,,
Nottinghamshire County Council,1111/1001,Adult Social Care and Health,ASCH,Third Party Payments,ECA,24/02/2015,11-12567,443.56,Oaks Care Centre,,,,,,,,,,
Nottinghamshire County Council,1111/1001,Adult Social Care and Health,ASCH,Third Party Payments,ECA,24/02/2015,11-12575,443.56,Oaks Care Centre,,,,,,,,,,
Nottinghamshire County Council,1111/1001,Adult Social Care and Health,ASCH,Third Party Payments,ECA,24/02/2015,11-12595,443.56,Charnwood House,,,,,,,,,,
Nottinghamshire County Council,1111/1001,Adult Social Care and Health,ASCH,Third Party Payments,ECA,24/02/2015,11-12602,443.56,Charnwood House,,,,,,,,,,
Nottinghamshire County Council,1111/1001,Adult Social Care and Health,ASCH,Third Party Payments,ECA,24/02/2015,11-12605,443.56,Charnwood House,,,,,,,,,,
Nottinghamshire County Council,1111/1001,Adult Social Care and Health,ASCH,Third Party Payments,ECA,24/02/2015,11-12609,443.56,Charnwood House,,,,,,,,,,
Nottinghamshire County Council,1111/1001,Adult Social Care and Health,ASCH,Third Party Payments,ECA,24/02/2015,11-12612,443.56,Charnwood House,,,,,,,,,,
Nottinghamshire County Council,1111/1001,Adult Social Care and Health,ASCH,Third Party Payments,ECA,24/02/2015,11-12616,443.56,Charnwood House,,,,,,,,,,
Nottinghamshire County Council,1111/1001,Adult Social Care and Health,ASCH,Third Party Payments,ECA,24/02/2015,11-12618,443.56,Charnwood House,,,,,,,,,,
Nottinghamshire County Council,1111/1001,Adult Social Care and Health,ASCH,Third Party Payments,ECA,24/02/2015,11-12624,443.56,Four Seasons (Evedale) Ltd Re Charn,,,,,,,,,,
Nottinghamshire County Council,1111/1001,Adult Social Care and Health,ASCH,Third Party Payments,ECA,24/02/2015,11-12626,5436.69,Four Seasons (Evedale) Ltd Re Charn,,,,,,,,,,
Nottinghamshire County Council,1111/1001,Adult Social Care and Health,ASCH,Third Party Payments,ECA,24/02/2015,11-12627,443.56,Four Seasons (Evedale) Ltd Re Charn,,,,,,,,,,
Nottinghamshire County Council,1111/1001,Adult Social Care and Health,ASCH,Third Party Payments,ECA,24/02/2015,11-12629,443.56,Four Seasons (Evedale) Ltd Re Charn,,,,,,,,,,
Nottinghamshire County Council,1111/1001,Adult Social Care and Health,ASCH,Third Party Payments,ECA,24/02/2015,11-12632,443.56,Four Seasons (Evedale) Ltd Re Sycam,,,,,,,,,,
Nottinghamshire County Council,1111/1001,Adult Social Care and Health,ASCH,Third Party Payments,ECA,24/02/2015,11-12636,443.56,Four Seasons (Evedale) Ltd Re Sycam,,,,,,,,,,
Nottinghamshire County Council,1111/1001,Adult Social Care and Health,ASCH,Third Party Payments,ECA,24/02/2015,11-12640,443.56,Four Seasons (Evedale) Ltd Re Sycam,,,,,,,,,,
Nottinghamshire County Council,1111/1001,Adult Social Care and Health,ASCH,Third Party Payments,ECA,24/02/2015,11-12647,443.56,Four Seasons (Evedale) Ltd Re Sycam,,,,,,,,,,
Nottinghamshire County Council,1111/1001,Adult Social Care and Health,ASCH,Third Party Payments,ECA,24/02/2015,11-12652,443.56,Four Seasons (Evedale) Ltd Re Sycam,,,,,,,,,,
Nottinghamshire County Council,1111/1001,Adult Social Care and Health,ASCH,Third Party Payments,ECA,24/02/2015,11-12656,443.56,Four Seasons (Evedale) Ltd Re Sycam,,,,,,,,,,
Nottinghamshire County Council,1111/1001,Adult Social Care and Health,ASCH,Third Party Payments,ECA,24/02/2015,11-12663,443.56,Howson Care Centre,,,,,,,,,,
Nottinghamshire County Council,1111/1001,Adult Social Care and Health,ASCH,Third Party Payments,ECA,24/02/2015,11-12665,443.56,Howson Care Centre,,,,,,,,,,
Nottinghamshire County Council,1111/1001,Adult Social Care and Health,ASCH,Third Party Payments,ECA,24/02/2015,11-12667,610.44,Howson Care Centre,,,,,,,,,,
Nottinghamshire County Council,1111/1001,Adult Social Care and Health,ASCH,Third Party Payments,ECA,24/02/2015,11-12670,610.44,Howson Care Centre,,,,,,,,,,
Nottinghamshire County Council,1111/1001,Adult Social Care and Health,ASCH,Third Party Payments,ECA,24/02/2015,11-12672,443.56,Howson Care Centre,,,,,,,,,,
Nottinghamshire County Council,1111/1001,Adult Social Care and Health,ASCH,Third Party Payments,ECA,24/02/2015,11-12674,443.56,Howson Care Centre,,,,,,,,,,
Nottinghamshire County Council,1111/1001,Adult Social Care and Health,ASCH,Third Party Payments,ECA,24/02/2015,11-12676,443.56,Churchfield Drive Care Home,,,,,,,,,,
Nottinghamshire County Council,1111/1001,Adult Social Care and Health,ASCH,Third Party Payments,ECA,24/02/2015,11-12678,443.56,Churchfield Drive Care Home,,,,,,,,,,
Nottinghamshire County Council,1111/1001,Adult Social Care and Health,ASCH,Third Party Payments,ECA,24/02/2015,11-12681,443.56,Churchfield Drive Care Home,,,,,,,,,,
Nottinghamshire County Council,1111/1001,Adult Social Care and Health,ASCH,Third Party Payments,ECA,24/02/2015,11-12683,443.56,Churchfield Drive Care Home,,,,,,,,,,
Nottinghamshire County Council,1111/1001,Adult Social Care and Health,ASCH,Third Party Payments,ECA,24/02/2015,11-12692,443.56,Churchfield Drive Care Home,,,,,,,,,,
Nottinghamshire County Council,1111/1001,Adult Social Care and Health,ASCH,Third Party Payments,ECA,24/02/2015,11-12697,443.56,Churchfield Drive Care Home,,,,,,,,,,
Nottinghamshire County Council,1111/1001,Adult Social Care and Health,ASCH,Third Party Payments,ECA,24/02/2015,11-12719,443.56,Churchfield Nursing Home,,,,,,,,,,
Nottinghamshire County Council,1111/1001,Adult Social Care and Health,ASCH,Third Party Payments,ECA,24/02/2015,11-12721,633.66,Churchfield Nursing Home,,,,,,,,,,
Nottinghamshire County Council,1111/1001,Adult Social Care and Health,ASCH,Third Party Payments,ECA,24/02/2015,11-12723,443.56,Churchfield Nursing Home,,,,,,,,,,
Nottinghamshire County Council,1111/1001,Adult Social Care and Health,ASCH,Third Party Payments,ECA,24/02/2015,11-12768,443.56,Stoneyford Christian Nursing Home,,,,,,,,,,
Nottinghamshire County Council,1111/1001,Adult Social Care and Health,ASCH,Third Party Payments,ECA,24/02/2015,11-12770,443.56,Stoneyford Christian Nursing Home,,,,,,,,,,
Nottinghamshire County Council,1111/1001,Adult Social Care and Health,ASCH,Third Party Payments,ECA,24/02/2015,11-12774,443.56,Stoneyford Christian Nursing Home,,,,,,,,,,
Nottinghamshire County Council,1111/1001,Adult Social Care and Health,ASCH,Third Party Payments,ECA,24/02/2015,11-12776,443.56,Stoneyford Christian Nursing Home,,,,,,,,,,
Nottinghamshire County Council,1111/1001,Adult Social Care and Health,ASCH,Third Party Payments,ECA,24/02/2015,11-12778,443.56,Stoneyford Christian Nursing Home,,,,,,,,,,
Nottinghamshire County Council,1111/1001,Adult Social Care and Health,ASCH,Third Party Payments,ECA,24/02/2015,11-12780,443.56,Stoneyford Christian Nursing Home,,,,,,,,,,
Nottinghamshire County Council,1111/1001,Adult Social Care and Health,ASCH,Third Party Payments,ECA,24/02/2015,11-12784,443.56,Stoneyford Christian Nursing Home,,,,,,,,,,
Nottinghamshire County Council,1111/1001,Adult Social Care and Health,ASCH,Third Party Payments,ECA,24/02/2015,11-12786,443.56,Stoneyford Christian Nursing Home,,,,,,,,,,
Nottinghamshire County Council,1111/1001,Adult Social Care and Health,ASCH,Third Party Payments,ECA,24/02/2015,11-12788,443.56,Stoneyford Christian Nursing Home,,,,,,,,,,
Nottinghamshire County Council,1111/1001,Adult Social Care and Health,ASCH,Third Party Payments,ECA,24/02/2015,11-12790,443.56,Stoneyford Christian Nursing Home,,,,,,,,,,
Nottinghamshire County Council,1111/1001,Adult Social Care and Health,ASCH,Third Party Payments,ECA,24/02/2015,11-12794,443.56,Stoneyford Christian Nursing Home,,,,,,,,,,
Nottinghamshire County Council,1111/1001,Adult Social Care and Health,ASCH,Third Party Payments,ECA,24/02/2015,11-12798,443.56,Stoneyford Christian Nursing Home,,,,,,,,,,
Nottinghamshire County Council,1111/1001,Adult Social Care and Health,ASCH,Third Party Payments,ECA,24/02/2015,11-12800,443.56,Stoneyford Christian Nursing Home,,,,,,,,,,
Nottinghamshire County Council,1111/1001,Adult Social Care and Health,ASCH,Third Party Payments,ECA,24/02/2015,11-12803,443.56,Stoneyford Christian Nursing Home,,,,,,,,,,
Nottinghamshire County Council,1111/1001,Adult Social Care and Health,ASCH,Third Party Payments,ECA,24/02/2015,11-12812,443.56,Beeches Nursing Home,,,,,,,,,,
Nottinghamshire County Council,1111/1001,Adult Social Care and Health,ASCH,Third Party Payments,ECA,24/02/2015,11-12818,443.56,Beeches Nursing Home,,,,,,,,,,
Nottinghamshire County Council,1111/1001,Adult Social Care and Health,ASCH,Third Party Payments,ECA,24/02/2015,11-12820,443.56,Beeches Nursing Home,,,,,,,,,,
Nottinghamshire County Council,1111/1001,Adult Social Care and Health,ASCH,Third Party Payments,ECA,24/02/2015,11-12823,443.56,Beeches Nursing Home,,,,,,,,,,
Nottinghamshire County Council,1111/1001,Adult Social Care and Health,ASCH,Third Party Payments,ECA,24/02/2015,11-12827,443.56,Beeches Nursing Home,,,,,,,,,,
Nottinghamshire County Council,1111/1001,Adult Social Care and Health,ASCH,Third Party Payments,ECA,24/02/2015,11-12829,443.56,Beeches Nursing Home,,,,,,,,,,
Nottinghamshire County Council,1111/1001,Adult Social Care and Health,ASCH,Third Party Payments,ECA,24/02/2015,11-12831,443.56,Beeches Nursing Home,,,,,,,,,,
Nottinghamshire County Council,1111/1001,Adult Social Care and Health,ASCH,Third Party Payments,ECA,24/02/2015,11-12835,443.56,Beeches Nursing Home,,,,,,,,,,
Nottinghamshire County Council,1111/1001,Adult Social Care and Health,ASCH,Third Party Payments,ECA,24/02/2015,11-12837,443.56,Beeches Nursing Home,,,,,,,,,,
Nottinghamshire County Council,1111/1001,Adult Social Care and Health,ASCH,Third Party Payments,ECA,24/02/2015,11-12839,443.56,Beeches Nursing Home,,,,,,,,,,
Nottinghamshire County Council,1111/1001,Adult Social Care and Health,ASCH,Third Party Payments,ECA,24/02/2015,11-12842,443.56,Berry Hill Park,,,,,,,,,,
Nottinghamshire County Council,1111/1001,Adult Social Care and Health,ASCH,Third Party Payments,ECA,24/02/2015,11-12846,443.56,Berry Hill Park,,,,,,,,,,
Nottinghamshire County Council,1111/1001,Adult Social Care and Health,ASCH,Third Party Payments,ECA,24/02/2015,11-12849,443.56,Berry Hill Park,,,,,,,,,,
Nottinghamshire County Council,1111/1001,Adult Social Care and Health,ASCH,Third Party Payments,ECA,24/02/2015,11-12851,443.56,Berry Hill Park,,,,,,,,,,
Nottinghamshire County Council,1111/1001,Adult Social Care and Health,ASCH,Third Party Payments,ECA,24/02/2015,11-12854,443.56,Berry Hill Park,,,,,,,,,,
Nottinghamshire County Council,1111/1001,Adult Social Care and Health,ASCH,Third Party Payments,ECA,24/02/2015,11-12856,443.56,Berry Hill Park,,,,,,,,,,
Nottinghamshire County Council,1111/1001,Adult Social Care and Health,ASCH,Third Party Payments,ECA,24/02/2015,11-12859,443.56,Berry Hill Park,,,,,,,,,,
Nottinghamshire County Council,1111/1001,Adult Social Care and Health,ASCH,Third Party Payments,ECA,24/02/2015,11-12861,443.56,Berry Hill Park,,,,,,,,,,
Nottinghamshire County Council,1111/1001,Adult Social Care and Health,ASCH,Third Party Payments,ECA,24/02/2015,11-12864,443.56,Berry Hill Park,,,,,,,,,,
Nottinghamshire County Council,1111/1001,Adult Social Care and Health,ASCH,Third Party Payments,ECA,24/02/2015,11-12866,443.56,Berry Hill Park,,,,,,,,,,
Nottinghamshire County Council,1111/1001,Adult Social Care and Health,ASCH,Third Party Payments,ECA,24/02/2015,11-12868,443.56,Berry Hill Park,,,,,,,,,,
Nottinghamshire County Council,1111/1001,Adult Social Care and Health,ASCH,Third Party Payments,ECA,24/02/2015,11-12875,443.56,Berry Hill Park,,,,,,,,,,
Nottinghamshire County Council,1111/1001,Adult Social Care and Health,ASCH,Third Party Payments,ECA,24/02/2015,11-12877,443.56,Berry Hill Park,,,,,,,,,,
Nottinghamshire County Council,1111/1001,Adult Social Care and Health,ASCH,Third Party Payments,ECA,24/02/2015,11-12895,443.56,Countrywide Care Homes Ltd T/A Clum,,,,,,,,,,
Nottinghamshire County Council,1111/1001,Adult Social Care and Health,ASCH,Third Party Payments,ECA,24/02/2015,11-12897,443.56,Countrywide Care Homes Ltd T/A Clum,,,,,,,,,,
Nottinghamshire County Council,1111/1001,Adult Social Care and Health,ASCH,Third Party Payments,ECA,24/02/2015,11-12899,443.56,Countrywide Care Homes Ltd T/A Clum,,,,,,,,,,
Nottinghamshire County Council,1111/1001,Adult Social Care and Health,ASCH,Third Party Payments,ECA,24/02/2015,11-12901,443.56,Countrywide Care Homes Ltd T/A Clum,,,,,,,,,,
Nottinghamshire County Council,1111/1001,Adult Social Care and Health,ASCH,Third Party Payments,ECA,24/02/2015,11-12903,443.56,Countrywide Care Homes Ltd T/A Clum,,,,,,,,,,
Nottinghamshire County Council,1111/1001,Adult Social Care and Health,ASCH,Third Party Payments,ECA,24/02/2015,11-12905,443.56,Countrywide Care Homes Ltd T/A Clum,,,,,,,,,,
Nottinghamshire County Council,1111/1001,Adult Social Care and Health,ASCH,Third Party Payments,ECA,24/02/2015,11-12907,443.56,Countrywide Care Homes Ltd T/A Clum,,,,,,,,,,
Nottinghamshire County Council,1111/1001,Adult Social Care and Health,ASCH,Third Party Payments,ECA,24/02/2015,11-12911,443.56,Countrywide Care Homes Ltd T/A Clum,,,,,,,,,,
Nottinghamshire County Council,1111/1001,Adult Social Care and Health,ASCH,Third Party Payments,ECA,24/02/2015,11-12914,610.44,Countrywide Care Homes Ltd T/A Clum,,,,,,,,,,
Nottinghamshire County Council,1111/1001,Adult Social Care and Health,ASCH,Third Party Payments,ECA,24/02/2015,11-12915,443.56,Countrywide Care Homes Ltd T/A Clum,,,,,,,,,,
Nottinghamshire County Council,1111/1001,Adult Social Care and Health,ASCH,Third Party Payments,ECA,24/02/2015,11-12917,610.44,Countrywide Care Homes Ltd T/A Clum,,,,,,,,,,
Nottinghamshire County Council,1111/1001,Adult Social Care and Health,ASCH,Third Party Payments,ECA,24/02/2015,11-12919,443.56,Countrywide Care Homes Ltd T/A Clum,,,,,,,,,,
Nottinghamshire County Council,1111/1001,Adult Social Care and Health,ASCH,Third Party Payments,ECA,24/02/2015,11-12921,443.56,Countrywide Care Homes Ltd T/A Clum,,,,,,,,,,
Nottinghamshire County Council,1111/1001,Adult Social Care and Health,ASCH,Third Party Payments,ECA,24/02/2015,11-12923,443.56,Countrywide Care Homes Ltd T/A Clum,,,,,,,,,,
Nottinghamshire County Council,1111/1001,Adult Social Care and Health,ASCH,Third Party Payments,ECA,24/02/2015,11-12926,443.56,Countrywide Care Homes Ltd T/A Clum,,,,,,,,,,
Nottinghamshire County Council,1111/1001,Adult Social Care and Health,ASCH,Third Party Payments,ECA,24/02/2015,11-12928,443.56,Countrywide Care Homes Ltd T/A Clum,,,,,,,,,,
Nottinghamshire County Council,1111/1001,Adult Social Care and Health,ASCH,Third Party Payments,ECA,24/02/2015,11-12935,443.56,Landermeads Nursing Home,,,,,,,,,,
Nottinghamshire County Council,1111/1001,Adult Social Care and Health,ASCH,Third Party Payments,ECA,24/02/2015,11-12937,443.56,Landermeads Nursing Home,,,,,,,,,,
Nottinghamshire County Council,1111/1001,Adult Social Care and Health,ASCH,Third Party Payments,ECA,24/02/2015,11-12939,443.56,Landermeads Nursing Home,,,,,,,,,,
Nottinghamshire County Council,1111/1001,Adult Social Care and Health,ASCH,Third Party Payments,ECA,24/02/2015,11-12942,443.56,Landermeads Nursing Home,,,,,,,,,,
Nottinghamshire County Council,1111/1001,Adult Social Care and Health,ASCH,Third Party Payments,ECA,24/02/2015,11-12944,443.56,Landermeads Nursing Home,,,,,,,,,,
Nottinghamshire County Council,1111/1001,Adult Social Care and Health,ASCH,Third Party Payments,ECA,24/02/2015,11-12946,443.56,Landermeads Nursing Home,,,,,,,,,,
Nottinghamshire County Council,1111/1001,Adult Social Care and Health,ASCH,Third Party Payments,ECA,24/02/2015,11-12948,443.56,Landermeads Nursing Home,,,,,,,,,,
Nottinghamshire County Council,1111/1001,Adult Social Care and Health,ASCH,Third Party Payments,ECA,24/02/2015,11-12950,443.56,Landermeads Nursing Home,,,,,,,,,,
Nottinghamshire County Council,1111/1001,Adult Social Care and Health,ASCH,Third Party Payments,ECA,24/02/2015,11-12952,610.44,Landermeads Nursing Home,,,,,,,,,,
Nottinghamshire County Council,1111/1001,Adult Social Care and Health,ASCH,Third Party Payments,ECA,24/02/2015,11-12954,610.44,Landermeads Nursing Home,,,,,,,,,,
Nottinghamshire County Council,1111/1001,Adult Social Care and Health,ASCH,Third Party Payments,ECA,24/02/2015,11-12958,443.56,Landermeads Nursing Home,,,,,,,,,,
Nottinghamshire County Council,1111/1001,Adult Social Care and Health,ASCH,Third Party Payments,ECA,24/02/2015,11-12960,443.56,Landermeads Nursing Home,,,,,,,,,,
Nottinghamshire County Council,1111/1001,Adult Social Care and Health,ASCH,Third Party Payments,ECA,24/02/2015,11-12962,998.01,Landermeads Nursing Home,,,,,,,,,,
Nottinghamshire County Council,1111/1001,Adult Social Care and Health,ASCH,Third Party Payments,ECA,24/02/2015,11-12964,-934.64,Landermeads Nursing Home,,,,,,,,,,
Nottinghamshire County Council,1111/1001,Adult Social Care and Health,ASCH,Third Party Payments,ECA,24/02/2015,11-12966,443.56,Landermeads Nursing Home,,,,,,,,,,
Nottinghamshire County Council,1111/1001,Adult Social Care and Health,ASCH,Third Party Payments,ECA,24/02/2015,11-12968,443.56,Landermeads Nursing Home,,,,,,,,,,
Nottinghamshire County Council,1111/1001,Adult Social Care and Health,ASCH,Third Party Payments,ECA,24/02/2015,11-12970,443.56,Landermeads Nursing Home,,,,,,,,,,
Nottinghamshire County Council,1111/1001,Adult Social Care and Health,ASCH,Third Party Payments,ECA,24/02/2015,11-12974,443.56,Landermeads Nursing Home,,,,,,,,,,
Nottinghamshire County Council,1111/1001,Adult Social Care and Health,ASCH,Third Party Payments,ECA,24/02/2015,11-12977,443.56,Landermeads Nursing Home,,,,,,,,,,
Nottinghamshire County Council,1111/1001,Adult Social Care and Health,ASCH,Third Party Payments,ECA,24/02/2015,11-12979,443.56,Landermeads Nursing Home,,,,,,,,,,
Nottinghamshire County Council,1111/1001,Adult Social Care and Health,ASCH,Third Party Payments,ECA,24/02/2015,11-12982,443.56,Landermeads Nursing Home,,,,,,,,,,
Nottinghamshire County Council,1111/1001,Adult Social Care and Health,ASCH,Third Party Payments,ECA,24/02/2015,11-12984,443.56,Landermeads Nursing Home,,,,,,,,,,
Nottinghamshire County Council,1111/1001,Adult Social Care and Health,ASCH,Third Party Payments,ECA,24/02/2015,11-13013,2158.47,Highfields Nursing Home,,,,,,,,,,
Nottinghamshire County Council,1111/1001,Adult Social Care and Health,ASCH,Third Party Payments,ECA,24/02/2015,11-13052,443.56,Albemarle Hall Nursing Home,,,,,,,,,,
Nottinghamshire County Council,1111/1001,Adult Social Care and Health,ASCH,Third Party Payments,ECA,24/02/2015,11-13054,443.56,Albemarle Hall Nursing Home,,,,,,,,,,
Nottinghamshire County Council,1111/1001,Adult Social Care and Health,ASCH,Third Party Payments,ECA,24/02/2015,11-13058,443.56,Albemarle Hall Nursing Home,,,,,,,,,,
Nottinghamshire County Council,1111/1001,Adult Social Care and Health,ASCH,Third Party Payments,ECA,24/02/2015,11-13060,443.56,Albemarle Hall Nursing Home,,,,,,,,,,
Nottinghamshire County Council,1111/1001,Adult Social Care and Health,ASCH,Third Party Payments,ECA,24/02/2015,11-13062,443.56,Albemarle Hall Nursing Home,,,,,,,,,,
Nottinghamshire County Council,1111/1001,Adult Social Care and Health,ASCH,Third Party Payments,ECA,24/02/2015,11-13064,443.56,Albemarle Hall Nursing Home,,,,,,,,,,
Nottinghamshire County Council,1111/1001,Adult Social Care and Health,ASCH,Third Party Payments,ECA,24/02/2015,11-13066,443.56,Albemarle Hall Nursing Home,,,,,,,,,,
Nottinghamshire County Council,1111/1001,Adult Social Care and Health,ASCH,Third Party Payments,ECA,24/02/2015,11-13068,1045.53,Alexandra House Nursing Home,,,,,,,,,,
Nottinghamshire County Council,1111/1001,Adult Social Care and Health,ASCH,Third Party Payments,ECA,24/02/2015,11-13071,174.26,Alexandra House Nursing Home,,,,,,,,,,
Nottinghamshire County Council,1111/1001,Adult Social Care and Health,ASCH,Third Party Payments,ECA,24/02/2015,11-13077,443.56,Lawn Park Nursing Home,,,,,,,,,,
Nottinghamshire County Council,1111/1001,Adult Social Care and Health,ASCH,Third Party Payments,ECA,24/02/2015,11-13079,443.56,Lawn Park Nursing Home,,,,,,,,,,
Nottinghamshire County Council,1111/1001,Adult Social Care and Health,ASCH,Third Party Payments,ECA,24/02/2015,11-13082,443.56,Lawn Park Nursing Home,,,,,,,,,,
Nottinghamshire County Council,1111/1001,Adult Social Care and Health,ASCH,Third Party Payments,ECA,24/02/2015,11-13084,443.56,Lawn Park Nursing Home,,,,,,,,,,
Nottinghamshire County Council,1111/1001,Adult Social Care and Health,ASCH,Third Party Payments,ECA,24/02/2015,11-13086,443.56,Lawn Park Nursing Home,,,,,,,,,,
Nottinghamshire County Council,1111/1001,Adult Social Care and Health,ASCH,Third Party Payments,ECA,24/02/2015,11-13092,443.56,Lawn Park Nursing Home,,,,,,,,,,
Nottinghamshire County Council,1111/1001,Adult Social Care and Health,ASCH,Third Party Payments,ECA,24/02/2015,11-13094,443.56,Lawn Park Nursing Home,,,,,,,,,,
Nottinghamshire County Council,1111/1001,Adult Social Care and Health,ASCH,Third Party Payments,ECA,24/02/2015,11-13097,443.56,Lawn Park Nursing Home,,,,,,,,,,
Nottinghamshire County Council,1111/1001,Adult Social Care and Health,ASCH,Third Party Payments,ECA,24/02/2015,11-13099,443.56,Lawn Park Nursing Home,,,,,,,,,,
Nottinghamshire County Council,1111/1001,Adult Social Care and Health,ASCH,Third Party Payments,ECA,24/02/2015,11-13101,443.56,Lawn Park Nursing Home,,,,,,,,,,
Nottinghamshire County Council,1111/1001,Adult Social Care and Health,ASCH,Third Party Payments,ECA,24/02/2015,11-13103,443.56,Lawn Park Nursing Home,,,,,,,,,,
Nottinghamshire County Council,1111/1001,Adult Social Care and Health,ASCH,Third Party Payments,ECA,24/02/2015,11-13109,443.56,Lawn Park Nursing Home,,,,,,,,,,
Nottinghamshire County Council,1111/1001,Adult Social Care and Health,ASCH,Third Party Payments,ECA,24/02/2015,11-13112,443.56,Lawn Park Nursing Home,,,,,,,,,,
Nottinghamshire County Council,1111/1001,Adult Social Care and Health,ASCH,Third Party Payments,ECA,24/02/2015,11-13119,443.56,Bluebell Lodge,,,,,,,,,,
Nottinghamshire County Council,1111/1001,Adult Social Care and Health,ASCH,Third Party Payments,ECA,24/02/2015,11-13157,443.56,Ashley House Nursing Home,,,,,,,,,,
Nottinghamshire County Council,1111/1001,Adult Social Care and Health,ASCH,Third Party Payments,ECA,24/02/2015,11-13159,443.56,Ashley House Nursing Home,,,,,,,,,,
Nottinghamshire County Council,1111/1001,Adult Social Care and Health,ASCH,Third Party Payments,ECA,24/02/2015,11-13161,610.44,Ashley House Nursing Home,,,,,,,,,,
Nottinghamshire County Council,1111/1001,Adult Social Care and Health,ASCH,Third Party Payments,ECA,24/02/2015,11-13164,443.56,Ashley House Nursing Home,,,,,,,,,,
Nottinghamshire County Council,1111/1001,Adult Social Care and Health,ASCH,Third Party Payments,ECA,24/02/2015,11-13166,443.56,Ashley House Nursing Home,,,,,,,,,,
Nottinghamshire County Council,1111/1001,Adult Social Care and Health,ASCH,Third Party Payments,ECA,24/02/2015,11-13169,443.56,Ashley House Nursing Home,,,,,,,,,,
Nottinghamshire County Council,1111/1001,Adult Social Care and Health,ASCH,Third Party Payments,ECA,24/02/2015,11-13171,443.56,Ashley House Nursing Home,,,,,,,,,,
Nottinghamshire County Council,1111/1001,Adult Social Care and Health,ASCH,Third Party Payments,ECA,24/02/2015,11-13173,443.56,Ashley House Nursing Home,,,,,,,,,,
Nottinghamshire County Council,1111/1001,Adult Social Care and Health,ASCH,Third Party Payments,ECA,24/02/2015,11-13176,443.56,Ashley House Nursing Home,,,,,,,,,,
Nottinghamshire County Council,1111/1001,Adult Social Care and Health,ASCH,Third Party Payments,ECA,24/02/2015,11-13178,443.56,Ashley House Nursing Home,,,,,,,,,,
Nottinghamshire County Council,1111/1001,Adult Social Care and Health,ASCH,Third Party Payments,ECA,24/02/2015,11-13180,443.56,Ashley House Nursing Home,,,,,,,,,,
Nottinghamshire County Council,1111/1001,Adult Social Care and Health,ASCH,Third Party Payments,ECA,24/02/2015,11-13182,610.44,Ashley House Nursing Home,,,,,,,,,,
Nottinghamshire County Council,1111/1001,Adult Social Care and Health,ASCH,Third Party Payments,ECA,24/02/2015,11-13183,610.44,Ashley House Nursing Home,,,,,,,,,,
Nottinghamshire County Council,1111/1001,Adult Social Care and Health,ASCH,Third Party Payments,ECA,24/02/2015,11-13184,443.56,Ashley House Nursing Home,,,,,,,,,,
Nottinghamshire County Council,1111/1001,Adult Social Care and Health,ASCH,Third Party Payments,ECA,24/02/2015,11-13186,221.78,Ashley House Nursing Home,,,,,,,,,,
Nottinghamshire County Council,1111/1001,Adult Social Care and Health,ASCH,Third Party Payments,ECA,24/02/2015,11-13189,-79.21,Ashley House Nursing Home,,,,,,,,,,
Nottinghamshire County Council,1111/1001,Adult Social Care and Health,ASCH,Third Party Payments,ECA,24/02/2015,11-13192,443.56,Ashley House Nursing Home,,,,,,,,,,
Nottinghamshire County Council,1111/1001,Adult Social Care and Health,ASCH,Third Party Payments,ECA,24/02/2015,11-13196,443.56,Ashley House Nursing Home,,,,,,,,,,
Nottinghamshire County Council,1111/1001,Adult Social Care and Health,ASCH,Third Party Payments,ECA,24/02/2015,11-13198,610.44,Ashley House Nursing Home,,,,,,,,,,
Nottinghamshire County Council,1111/1001,Adult Social Care and Health,ASCH,Third Party Payments,ECA,24/02/2015,11-13199,443.56,Ashley House Nursing Home,,,,,,,,,,
Nottinghamshire County Council,1111/1001,Adult Social Care and Health,ASCH,Third Party Payments,ECA,24/02/2015,11-13201,443.56,Ashley House Nursing Home,,,,,,,,,,
Nottinghamshire County Council,1111/1001,Adult Social Care and Health,ASCH,Third Party Payments,ECA,24/02/2015,11-13204,443.56,Aslockton Hall Nursing Home,,,,,,,,,,
Nottinghamshire County Council,1111/1001,Adult Social Care and Health,ASCH,Third Party Payments,ECA,24/02/2015,11-13206,443.56,Aslockton Hall Nursing Home,,,,,,,,,,
Nottinghamshire County Council,1111/1001,Adult Social Care and Health,ASCH,Third Party Payments,ECA,24/02/2015,11-13209,443.56,Aslockton Hall Nursing Home,,,,,,,,,,
Nottinghamshire County Council,1111/1001,Adult Social Care and Health,ASCH,Third Party Payments,ECA,24/02/2015,11-13211,443.56,Aslockton Hall Nursing Home,,,,,,,,,,
Nottinghamshire County Council,1111/1001,Adult Social Care and Health,ASCH,Third Party Payments,ECA,24/02/2015,11-13213,443.56,Aslockton Hall Nursing Home,,,,,,,,,,
Nottinghamshire County Council,1111/1001,Adult Social Care and Health,ASCH,Third Party Payments,ECA,24/02/2015,11-13215,443.56,Aslockton Hall Nursing Home,,,,,,,,,,
Nottinghamshire County Council,1111/1001,Adult Social Care and Health,ASCH,Third Party Payments,ECA,24/02/2015,11-13217,443.56,Aslockton Hall Nursing Home,,,,,,,,,,
Nottinghamshire County Council,1111/1001,Adult Social Care and Health,ASCH,Third Party Payments,ECA,24/02/2015,11-13219,443.56,Aslockton Hall Nursing Home,,,,,,,,,,
Nottinghamshire County Council,1111/1001,Adult Social Care and Health,ASCH,Third Party Payments,ECA,24/02/2015,11-13233,443.56,Rodenvine Nottm Ltd T/A Parker Hous,,,,,,,,,,
Nottinghamshire County Council,1111/1001,Adult Social Care and Health,ASCH,Third Party Payments,ECA,24/02/2015,11-13235,443.56,Rodenvine Nottm Ltd T/A Parker Hous,,,,,,,,,,
Nottinghamshire County Council,1111/1001,Adult Social Care and Health,ASCH,Third Party Payments,ECA,24/02/2015,11-13237,443.56,Rodenvine Nottm Ltd T/A Parker Hous,,,,,,,,,,
Nottinghamshire County Council,1111/1001,Adult Social Care and Health,ASCH,Third Party Payments,ECA,24/02/2015,11-13240,443.56,Rodenvine Nottm Ltd T/A Parker Hous,,,,,,,,,,
Nottinghamshire County Council,1111/1001,Adult Social Care and Health,ASCH,Third Party Payments,ECA,24/02/2015,11-13244,443.56,Rodenvine Nottm Ltd T/A Parker Hous,,,,,,,,,,
Nottinghamshire County Council,1111/1001,Adult Social Care and Health,ASCH,Third Party Payments,ECA,24/02/2015,11-13246,443.56,Rodenvine Nottm Ltd T/A Parker Hous,,,,,,,,,,
Nottinghamshire County Council,1111/1001,Adult Social Care and Health,ASCH,Third Party Payments,ECA,24/02/2015,11-13248,443.56,Rodenvine Nottm Ltd T/A Parker Hous,,,,,,,,,,
Nottinghamshire County Council,1111/1001,Adult Social Care and Health,ASCH,Third Party Payments,ECA,24/02/2015,11-13250,1980.18,Gables Nursing Home,,,,,,,,,,
Nottinghamshire County Council,1111/1001,Adult Social Care and Health,ASCH,Third Party Payments,ECA,24/02/2015,11-13251,887.12,Gables Nursing Home,,,,,,,,,,
Nottinghamshire County Council,1111/1001,Adult Social Care and Health,ASCH,Third Party Payments,ECA,24/02/2015,11-13253,443.56,Gables Nursing Home,,,,,,,,,,
Nottinghamshire County Council,1111/1001,Adult Social Care and Health,ASCH,Third Party Payments,ECA,24/02/2015,11-13255,443.56,Gables Nursing Home,,,,,,,,,,
Nottinghamshire County Council,1111/1001,Adult Social Care and Health,ASCH,Third Party Payments,ECA,24/02/2015,11-13257,443.56,Gables Nursing Home,,,,,,,,,,
Nottinghamshire County Council,1111/1001,Adult Social Care and Health,ASCH,Third Party Payments,ECA,24/02/2015,11-13259,443.56,Gables Nursing Home,,,,,,,,,,
Nottinghamshire County Council,1111/1001,Adult Social Care and Health,ASCH,Third Party Payments,ECA,24/02/2015,11-13261,443.56,Gables Nursing Home,,,,,,,,,,
Nottinghamshire County Council,1111/1001,Adult Social Care and Health,ASCH,Third Party Payments,ECA,24/02/2015,11-13263,443.56,Gables Nursing Home,,,,,,,,,,
Nottinghamshire County Council,1111/1001,Adult Social Care and Health,ASCH,Third Party Payments,ECA,24/02/2015,11-13280,443.56,The Firs Nursing Home,,,,,,,,,,
Nottinghamshire County Council,1111/1001,Adult Social Care and Health,ASCH,Third Party Payments,ECA,24/02/2015,11-13283,443.56,Forest Hill Nursing Home,,,,,,,,,,
Nottinghamshire County Council,1111/1001,Adult Social Care and Health,ASCH,Third Party Payments,ECA,24/02/2015,11-13285,443.56,Forest Hill Nursing Home,,,,,,,,,,
Nottinghamshire County Council,1111/1001,Adult Social Care and Health,ASCH,Third Party Payments,ECA,24/02/2015,11-13287,443.56,Forest Hill Nursing Home,,,,,,,,,,
Nottinghamshire County Council,1111/1001,Adult Social Care and Health,ASCH,Third Party Payments,ECA,24/02/2015,11-13291,443.56,Forest Hill Nursing Home,,,,,,,,,,
Nottinghamshire County Council,1111/1001,Adult Social Care and Health,ASCH,Third Party Payments,ECA,24/02/2015,11-13293,443.56,Forest Hill Nursing Home,,,,,,,,,,
Nottinghamshire County Council,1111/1001,Adult Social Care and Health,ASCH,Third Party Payments,ECA,24/02/2015,11-13295,443.56,Forest Hill Nursing Home,,,,,,,,,,
Nottinghamshire County Council,1111/1001,Adult Social Care and Health,ASCH,Third Party Payments,ECA,24/02/2015,11-13297,443.56,Forest Hill Nursing Home,,,,,,,,,,
Nottinghamshire County Council,1111/1001,Adult Social Care and Health,ASCH,Third Party Payments,ECA,24/02/2015,11-13299,443.56,Forest Hill Nursing Home,,,,,,,,,,
Nottinghamshire County Council,1111/1001,Adult Social Care and Health,ASCH,Third Party Payments,ECA,24/02/2015,11-13301,443.56,Forest Hill Nursing Home,,,,,,,,,,
Nottinghamshire County Council,1111/1001,Adult Social Care and Health,ASCH,Third Party Payments,ECA,24/02/2015,11-13303,443.56,Forest Hill Nursing Home,,,,,,,,,,
Nottinghamshire County Council,1111/1001,Adult Social Care and Health,ASCH,Third Party Payments,ECA,24/02/2015,11-13306,443.56,Forest Hill Nursing Home,,,,,,,,,,
Nottinghamshire County Council,1111/1001,Adult Social Care and Health,ASCH,Third Party Payments,ECA,24/02/2015,11-13308,443.56,Forest Hill Nursing Home,,,,,,,,,,
Nottinghamshire County Council,1111/1001,Adult Social Care and Health,ASCH,Third Party Payments,ECA,24/02/2015,11-13310,443.56,Forest Hill Nursing Home,,,,,,,,,,
Nottinghamshire County Council,1111/1001,Adult Social Care and Health,ASCH,Third Party Payments,ECA,24/02/2015,11-13312,966.33,Forest Hill Nursing Home,,,,,,,,,,
Nottinghamshire County Council,1111/1001,Adult Social Care and Health,ASCH,Third Party Payments,ECA,24/02/2015,11-13314,443.56,Forest Hill Nursing Home,,,,,,,,,,
Nottinghamshire County Council,1111/1001,Adult Social Care and Health,ASCH,Third Party Payments,ECA,24/02/2015,11-13316,443.56,Forest Hill Nursing Home,,,,,,,,,,
Nottinghamshire County Council,1111/1001,Adult Social Care and Health,ASCH,Third Party Payments,ECA,24/02/2015,11-13318,443.56,Forest Hill Nursing Home,,,,,,,,,,
Nottinghamshire County Council,1111/1001,Adult Social Care and Health,ASCH,Third Party Payments,ECA,24/02/2015,11-13320,443.56,Forest Hill Nursing Home,,,,,,,,,,
Nottinghamshire County Council,1111/1001,Adult Social Care and Health,ASCH,Third Party Payments,ECA,24/02/2015,11-13322,443.56,Forest Hill Nursing Home,,,,,,,,,,
Nottinghamshire County Council,1111/1001,Adult Social Care and Health,ASCH,Third Party Payments,ECA,24/02/2015,11-13331,443.56,Woodhall Park Nursing Home,,,,,,,,,,
Nottinghamshire County Council,1111/1001,Adult Social Care and Health,ASCH,Third Party Payments,ECA,24/02/2015,11-13334,443.56,Woodhall Park Nursing Home,,,,,,,,,,
Nottinghamshire County Council,1111/1001,Adult Social Care and Health,ASCH,Third Party Payments,ECA,24/02/2015,11-13337,887.12,Woodthorpe Manor Nursing Home,,,,,,,,,,
Nottinghamshire County Council,1111/1001,Adult Social Care and Health,ASCH,Third Party Payments,ECA,24/02/2015,11-13339,776.23,Woodthorpe Manor Nursing Home,,,,,,,,,,
Nottinghamshire County Council,1111/1001,Adult Social Care and Health,ASCH,Third Party Payments,ECA,24/02/2015,11-13340,443.56,Woodthorpe Manor Nursing Home,,,,,,,,,,
Nottinghamshire County Council,1111/1001,Adult Social Care and Health,ASCH,Third Party Payments,ECA,24/02/2015,11-13342,443.56,Woodthorpe Manor Nursing Home,,,,,,,,,,
Nottinghamshire County Council,1111/1001,Adult Social Care and Health,ASCH,Third Party Payments,ECA,24/02/2015,11-13355,443.56,The Moorlands Nursing Home,,,,,,,,,,
Nottinghamshire County Council,1111/1001,Adult Social Care and Health,ASCH,Third Party Payments,ECA,24/02/2015,11-13357,443.56,The Moorlands Nursing Home,,,,,,,,,,
Nottinghamshire County Council,1111/1001,Adult Social Care and Health,ASCH,Third Party Payments,ECA,24/02/2015,11-13361,443.56,The Moorlands Nursing Home,,,,,,,,,,
Nottinghamshire County Council,1111/1001,Adult Social Care and Health,ASCH,Third Party Payments,ECA,24/02/2015,11-13364,443.56,The Moorlands Nursing Home,,,,,,,,,,
Nottinghamshire County Council,1111/1001,Adult Social Care and Health,ASCH,Third Party Payments,ECA,24/02/2015,11-13366,443.56,The Moorlands Nursing Home,,,,,,,,,,
Nottinghamshire County Council,1111/1001,Adult Social Care and Health,ASCH,Third Party Payments,ECA,24/02/2015,11-13368,855.44,The Moorlands Nursing Home,,,,,,,,,,
Nottinghamshire County Council,1111/1001,Adult Social Care and Health,ASCH,Third Party Payments,ECA,24/02/2015,11-13387,443.56,Church Farm Nursing Home Ltd,,,,,,,,,,
Nottinghamshire County Council,1111/1001,Adult Social Care and Health,ASCH,Third Party Payments,ECA,24/02/2015,11-13389,443.56,Church Farm Nursing Home Ltd,,,,,,,,,,
Nottinghamshire County Council,1111/1001,Adult Social Care and Health,ASCH,Third Party Payments,ECA,24/02/2015,11-13391,443.56,Church Farm Nursing Home Ltd,,,,,,,,,,
Nottinghamshire County Council,1111/1001,Adult Social Care and Health,ASCH,Third Party Payments,ECA,24/02/2015,11-13393,681.18,Church Farm Nursing Home Ltd,,,,,,,,,,
Nottinghamshire County Council,1111/1001,Adult Social Care and Health,ASCH,Third Party Payments,ECA,24/02/2015,11-13394,443.56,Church Farm Nursing Home Ltd,,,,,,,,,,
Nottinghamshire County Council,1111/1001,Adult Social Care and Health,ASCH,Third Party Payments,ECA,24/02/2015,11-13396,443.56,Church Farm Nursing Home Ltd,,,,,,,,,,
Nottinghamshire County Council,1111/1001,Adult Social Care and Health,ASCH,Third Party Payments,ECA,24/02/2015,11-13398,443.56,Church Farm Nursing Home Ltd,,,,,,,,,,
Nottinghamshire County Council,1111/1001,Adult Social Care and Health,ASCH,Third Party Payments,ECA,24/02/2015,11-13400,610.44,Church Farm Nursing Home Ltd,,,,,,,,,,
Nottinghamshire County Council,1111/1001,Adult Social Care and Health,ASCH,Third Party Payments,ECA,24/02/2015,11-13401,443.56,Church Farm Nursing Home Ltd,,,,,,,,,,
Nottinghamshire County Council,1111/1001,Adult Social Care and Health,ASCH,Third Party Payments,ECA,24/02/2015,11-13403,443.56,Church Farm Nursing Home Ltd,,,,,,,,,,
Nottinghamshire County Council,1111/1001,Adult Social Care and Health,ASCH,Third Party Payments,ECA,24/02/2015,11-13405,443.56,Church Farm Nursing Home Ltd,,,,,,,,,,
Nottinghamshire County Council,1111/1001,Adult Social Care and Health,ASCH,Third Party Payments,ECA,24/02/2015,11-13407,443.56,Church Farm Nursing Home Ltd,,,,,,,,,,
Nottinghamshire County Council,1111/1001,Adult Social Care and Health,ASCH,Third Party Payments,ECA,24/02/2015,11-13409,443.56,Church Farm Nursing Home Ltd,,,,,,,,,,
